{"text_format":"1","workbook":"xlsx","n_sheets":7,"sheets":["الرئيسية","شهر 10","البوم","DATA","الرئيسية (1)","الرئيسية (2)","كارت حضور عاملين"],"not_rendered":{"charts":0,"images":0,"macros":1,"external_links":0,"defined_names":2,"comments":0,"pivot_tables":0},"unopened":[],"bounds":{"document_bytes":16777216,"sheet_cells":100000,"rows_first":2000,"rows_last":500,"rows_between":2000,"halvings":0,"cell_chars":16384,"cell_head_chars":4096},"cells_cut":0,"cells_raw":0,"read":"whole","date_system":"1900"}

{"sheet":"الرئيسية","index":0,"n_rows":7,"n_cols":6,"rows_kept":7,"cut":false,"hidden":false,"merged":[[1,1,1,5],[2,1,2,5],[3,1,3,5]]}
[]
[null,"كشف حدادين"]
[null,"من شهر 10/2021"]
[null,"الي شهر 12/2021"]
[]
[null,"ID","الاسم","ساعات ","ايام ","سلف"]
[null,1,{"$f":"DGET(DATA!A2:F208,C$6,$B$6:$B$7)","v":"احمد الحديدي"},{"$f":"DGET(DATA!A2:F208,D$6,$B$6:$B$7)","v":0},{"$f":"DGET(DATA!A2:F208,E$6,$B$6:$B$7)","v":0},{"$f":"DGET(DATA!A2:F208,F$6,$B$6:$B$7)","v":0}]

{"sheet":"شهر 10","index":1,"n_rows":202,"n_cols":38,"rows_kept":202,"cut":false,"hidden":false,"merged":[[58,34,59,34],[58,35,59,35],[58,36,59,36],[58,37,59,37],[60,35,61,35],[60,36,61,36],[60,37,61,37],[60,34,61,34],[62,34,63,34],[62,35,63,35],[62,36,63,36],[62,37,63,37],[64,34,65,34],[64,35,65,35],[16,34,17,34],[18,34,19,34],[18,35,19,35],[18,36,19,36],[18,37,19,37],[20,35,21,35],[20,36,21,36],[20,37,21,37],[20,34,21,34],[22,34,23,34],[22,35,23,35],[22,36,23,36],[22,37,23,37],[24,34,25,34],[24,35,25,35],[26,34,27,34],[26,35,27,35],[26,36,27,36],[26,37,27,37],[28,35,29,35],[28,36,29,36],[28,37,29,37],[32,36,33,36],[32,37,33,37],[28,34,29,34],[30,34,31,34],[30,35,31,35],[30,36,31,36],[30,37,31,37],[32,34,33,34],[32,35,33,35],[40,36,41,36],[40,37,41,37],[64,36,65,36],[64,37,65,37],[74,34,75,34],[74,35,75,35],[74,36,75,36],[74,37,75,37],[76,35,77,35],[76,36,77,36],[76,37,77,37],[76,34,77,34],[68,34,69,34],[70,34,71,34],[70,35,71,35],[70,36,71,36],[70,37,71,37],[72,34,73,34],[72,35,73,35],[48,36,49,36],[48,37,49,37],[50,34,51,34],[50,35,51,35],[50,36,51,36],[78,34,79,34],[78,35,79,35],[78,36,79,36],[78,37,79,37],[80,34,81,34],[80,35,81,35],[56,36,57,36],[56,37,57,37],[52,34,53,34],[54,34,55,34],[54,35,55,35],[54,36,55,36],[54,37,55,37],[56,34,57,34],[56,35,57,35],[66,34,67,34],[66,35,67,35],[66,36,67,36],[66,37,67,37],[68,35,69,35],[68,36,69,36],[68,37,69,37],[72,36,73,36],[72,37,73,37],[80,36,81,36],[80,37,81,37],[82,34,83,34],[82,35,83,35],[82,36,83,36],[82,37,83,37],[100,34,101,34],[100,35,101,35],[100,36,101,36],[100,37,101,37],[90,36,91,36],[90,37,91,37],[88,34,89,34],[88,35,89,35],[88,36,89,36],[88,37,89,37],[90,34,91,34],[90,35,91,35],[98,36,99,36],[98,37,99,37],[98,34,99,34],[98,35,99,35],[120,37,121,37],[50,37,51,37],[52,37,53,37],[86,35,87,35],[86,36,87,36],[52,35,53,35],[52,36,53,36],[84,34,85,34],[84,35,85,35],[84,36,85,36],[84,37,85,37],[86,37,87,37],[86,34,87,34],[102,35,103,35],[102,36,103,36],[102,37,103,37],[102,34,103,34],[104,34,105,34],[104,35,105,35],[104,36,105,36],[104,37,105,37],[106,34,107,34],[106,35,107,35],[106,36,107,36],[108,34,109,34],[108,35,109,35],[108,36,109,36],[108,37,109,37],[110,35,111,35],[110,36,111,36],[110,37,111,37],[106,37,107,37],[92,34,93,34],[92,35,93,35],[92,36,93,36],[92,37,93,37],[94,35,95,35],[94,36,95,36],[94,37,95,37],[94,34,95,34],[96,34,97,34],[96,35,97,35],[96,36,97,36],[96,37,97,37],[114,37,115,37],[110,34,111,34],[112,34,113,34],[112,35,113,35],[112,36,113,36],[112,37,113,37],[114,34,115,34],[114,35,115,35],[122,36,123,36],[122,37,123,37],[122,34,123,34],[122,35,123,35],[114,36,115,36],[116,34,117,34],[116,35,117,35],[116,36,117,36],[116,37,117,37],[118,35,119,35],[118,36,119,36],[118,37,119,37],[118,34,119,34],[120,34,121,34],[120,35,121,35],[120,36,121,36],[124,34,125,34],[124,35,125,35],[124,36,125,36],[124,37,125,37],[134,34,135,34],[134,35,135,35],[134,36,135,36],[134,37,135,37],[136,35,137,35],[136,36,137,36],[136,37,137,37],[136,34,137,34],[128,35,129,35],[128,36,129,36],[128,37,129,37],[132,36,133,36],[132,37,133,37],[128,34,129,34],[130,34,131,34],[130,35,131,35],[130,36,131,36],[130,37,131,37],[132,34,133,34],[132,35,133,35],[138,34,139,34],[138,35,139,35],[138,36,139,36],[138,37,139,37],[140,34,141,34],[140,35,141,35],[42,34,43,34],[42,35,43,35],[42,36,43,36],[42,37,43,37],[44,35,45,35],[44,36,45,36],[44,37,45,37],[44,34,45,34],[46,34,47,34],[46,35,47,35],[46,36,47,36],[46,37,47,37],[48,34,49,34],[48,35,49,35],[126,34,127,34],[126,35,127,35],[126,36,127,36],[126,37,127,37],[140,37,141,37],[142,34,143,34],[142,35,143,35],[142,36,143,36],[142,37,143,37],[160,34,161,34],[160,35,161,35],[160,36,161,36],[160,37,161,37],[150,36,151,36],[150,37,151,37],[148,34,149,34],[148,35,149,35],[148,36,149,36],[148,37,149,37],[150,34,151,34],[150,35,151,35],[158,36,159,36],[158,37,159,37],[158,34,159,34],[158,35,159,35],[34,34,35,34],[34,35,35,35],[34,36,35,36],[34,37,35,37],[36,35,37,35],[36,36,37,36],[36,37,37,37],[36,34,37,34],[38,34,39,34],[38,35,39,35],[38,36,39,36],[38,37,39,37],[180,37,181,37],[40,34,41,34],[40,35,41,35],[144,34,145,34],[144,35,145,35],[144,36,145,36],[144,37,145,37],[146,35,147,35],[146,36,147,36],[146,37,147,37],[146,34,147,34],[162,35,163,35],[162,36,163,36],[162,37,163,37],[162,34,163,34],[164,34,165,34],[164,35,165,35],[164,36,165,36],[164,37,165,37],[166,34,167,34],[166,35,167,35],[166,36,167,36],[166,37,167,37],[140,36,141,36],[168,34,169,34],[168,35,169,35],[168,36,169,36],[168,37,169,37],[170,35,171,35],[170,36,171,36],[170,37,171,37],[152,34,153,34],[152,35,153,35],[152,36,153,36],[152,37,153,37],[154,35,155,35],[154,36,155,36],[154,37,155,37],[154,34,155,34],[156,34,157,34],[156,35,157,35],[156,36,157,36],[156,37,157,37],[174,37,175,37],[170,34,171,34],[172,34,173,34],[172,35,173,35],[172,36,173,36],[172,37,173,37],[174,34,175,34],[174,35,175,35],[182,36,183,36],[182,37,183,37],[182,34,183,34],[182,35,183,35],[174,36,175,36],[176,34,177,34],[176,35,177,35],[176,36,177,36],[176,37,177,37],[178,35,179,35],[178,36,179,36],[178,37,179,37],[178,34,179,34],[180,34,181,34],[180,35,181,35],[180,36,181,36],[184,34,185,34],[184,35,185,35],[184,36,185,36],[184,37,185,37],[2,0,3,0],[2,1,3,1],[2,35,3,35],[2,36,3,36],[2,37,3,37],[4,1,5,1],[4,37,5,37],[4,35,5,35],[4,36,5,36],[6,35,7,35],[6,36,7,36],[6,37,7,37],[8,36,9,36],[8,37,9,37],[4,0,5,0],[6,0,7,0],[6,1,7,1],[8,0,9,0],[8,1,9,1],[10,0,11,0],[10,1,11,1],[14,35,15,35],[14,36,15,36],[14,37,15,37],[16,35,17,35],[16,36,17,36],[16,37,17,37],[8,35,9,35],[10,35,11,35],[10,36,11,36],[10,37,11,37],[12,35,13,35],[12,36,13,36],[12,37,13,37],[2,34,3,34],[4,34,5,34],[6,34,7,34],[8,34,9,34],[10,34,11,34],[12,34,13,34],[14,34,15,34],[24,36,25,36],[24,37,25,37],[62,1,63,1],[64,1,65,1],[48,1,49,1],[50,1,51,1],[52,1,53,1],[54,1,55,1],[56,1,57,1],[58,1,59,1],[60,1,61,1],[12,0,13,0],[12,1,13,1],[14,0,15,0],[14,1,15,1],[16,0,17,0],[16,1,17,1],[18,1,19,1],[18,0,19,0],[20,0,21,0],[22,0,23,0],[24,0,25,0],[26,0,27,0],[28,0,29,0],[30,0,31,0],[20,1,21,1],[22,1,23,1],[24,1,25,1],[26,1,27,1],[28,1,29,1],[30,1,31,1],[32,1,33,1],[32,0,33,0],[34,0,35,0],[36,0,37,0],[38,0,39,0],[40,0,41,0],[42,0,43,0],[44,0,45,0],[34,1,35,1],[36,1,37,1],[38,1,39,1],[40,1,41,1],[42,1,43,1],[44,1,45,1],[46,1,47,1],[46,0,47,0],[48,0,49,0],[50,0,51,0],[52,0,53,0],[54,0,55,0],[56,0,57,0],[58,0,59,0],[60,0,61,0],[62,0,63,0],[64,0,65,0],[66,0,67,0],[66,1,67,1],[68,0,69,0],[68,1,69,1],[120,1,121,1],[122,1,123,1],[106,1,107,1],[108,1,109,1],[110,1,111,1],[112,1,113,1],[114,1,115,1],[116,1,117,1],[118,1,119,1],[70,0,71,0],[70,1,71,1],[72,0,73,0],[72,1,73,1],[74,0,75,0],[74,1,75,1],[76,1,77,1],[76,0,77,0],[78,0,79,0],[80,0,81,0],[82,0,83,0],[84,0,85,0],[86,0,87,0],[88,0,89,0],[78,1,79,1],[80,1,81,1],[82,1,83,1],[84,1,85,1],[86,1,87,1],[88,1,89,1],[90,1,91,1],[90,0,91,0],[92,0,93,0],[94,0,95,0],[96,0,97,0],[98,0,99,0],[100,0,101,0],[102,0,103,0],[92,1,93,1],[94,1,95,1],[96,1,97,1],[98,1,99,1],[100,1,101,1],[102,1,103,1],[104,1,105,1],[104,0,105,0],[106,0,107,0],[108,0,109,0],[110,0,111,0],[112,0,113,0],[114,0,115,0],[116,0,117,0],[118,0,119,0],[120,0,121,0],[122,0,123,0],[124,0,125,0],[124,1,125,1],[126,0,127,0],[126,1,127,1],[164,1,165,1],[166,1,167,1],[168,1,169,1],[128,0,129,0],[128,1,129,1],[130,0,131,0],[130,1,131,1],[132,0,133,0],[132,1,133,1],[134,1,135,1],[134,0,135,0],[136,0,137,0],[138,0,139,0],[140,0,141,0],[142,0,143,0],[144,0,145,0],[146,0,147,0],[136,1,137,1],[198,34,199,34],[198,35,199,35],[198,36,199,36],[198,37,199,37],[200,34,201,34],[200,35,201,35],[200,36,201,36],[200,37,201,37],[186,37,187,37],[188,34,189,34],[188,37,189,37],[192,35,193,35],[192,36,193,36],[188,35,189,35],[188,36,189,36],[190,34,191,34],[190,35,191,35],[190,36,191,36],[190,37,191,37],[192,37,193,37],[192,34,193,34],[186,34,187,34],[186,35,187,35],[186,36,187,36],[194,34,195,34],[194,35,195,35],[194,36,195,36],[194,37,195,37],[196,34,197,34],[196,35,197,35],[192,0,193,0],[194,0,195,0],[196,0,197,0],[196,36,197,36],[196,37,197,37],[198,0,199,0],[200,0,201,0],[194,1,195,1],[196,1,197,1],[198,1,199,1],[200,1,201,1],[186,0,187,0],[186,1,187,1],[188,0,189,0],[188,1,189,1],[190,0,191,0],[190,1,191,1],[192,1,193,1],[138,1,139,1],[140,1,141,1],[142,1,143,1],[144,1,145,1],[146,1,147,1],[148,1,149,1],[148,0,149,0],[150,0,151,0],[152,0,153,0],[154,0,155,0],[156,0,157,0],[158,0,159,0],[160,0,161,0],[150,1,151,1],[152,1,153,1],[154,1,155,1],[156,1,157,1],[158,1,159,1],[160,1,161,1],[178,0,179,0],[180,0,181,0],[182,0,183,0],[182,1,183,1],[184,0,185,0],[184,1,185,1],[162,1,163,1],[162,0,163,0],[164,0,165,0],[166,0,167,0],[168,0,169,0],[170,0,171,0],[172,0,173,0],[174,0,175,0],[176,0,177,0],[170,1,171,1],[172,1,173,1],[174,1,175,1],[176,1,177,1],[178,1,179,1],[180,1,181,1]]}
[null,null,null,"2021-10-01","2021-10-02","2021-10-03","2021-10-04","2021-10-05","2021-10-06","2021-10-07","2021-10-08","2021-10-09","2021-10-10","2021-10-11","2021-10-12","2021-10-13","2021-10-14","2021-10-15","2021-10-16","2021-10-17","2021-10-18","2021-10-19","2021-10-20","2021-10-21","2021-10-22","2021-10-23","2021-10-24","2021-10-25","2021-10-26","2021-10-27","2021-10-28","2021-10-29","2021-10-30","2021-10-31","2021-10-01","1"]
["ID","الاسم","م",1,2,3,4,5,6,7,8,9,10,11,12,13,14,15,16,17,18,19,20,21,22,23,24,25,26,27,28,29,30,31,"ساعات العمل","ايام العمل","سلف","حساب بعد السلف"]
[1,{"$f":"DATA!B3","v":"احمد الحديدي"},"يوم",null,null,null,null,null,null,null,null,null,null,null,null,null,null,null,null,null,null,null,null,null,null,null,null,null,null,null,null,null,null,null,{"$f":"SUM(D3:AH3)","v":0},{"$f":"AI3/8","v":0},{"$f":"SUM(D4:AH4)","v":0},{"$f":"AJ3*DATA!F3-AK3","v":0}]
[null,null,"سلف"]
[2,{"$f":"DATA!B5","v":"مدحت عصام"},"يوم",null,null,null,null,null,null,null,null,null,null,null,null,null,null,null,null,null,null,null,null,null,null,null,null,null,null,null,null,null,null,null,{"$f":"SUM(D5:AH5)","v":0},{"$f":"AI5/8","v":0},{"$f":"SUM(D6:AH6)","v":0},{"$f":"AJ5*DATA!F5-AK5","v":0}]
[null,null,"سلف"]
[3,{"$f":"DATA!B7","v":"منير العيسوى"},"يوم",null,null,null,null,null,null,null,null,null,null,null,null,null,null,null,null,null,null,null,null,null,null,null,null,null,null,null,null,null,null,null,{"$f":"SUM(D7:AH7)","v":0},{"$f":"AI7/8","v":0},{"$f":"SUM(D8:AH8)","v":0},{"$f":"AJ7*DATA!F7-AK7","v":0}]
[null,null,"سلف"]
[4,{"$f":"DATA!B9","v":"باسم ابو الخير"},"يوم",null,null,null,null,null,null,null,null,null,null,null,null,null,null,null,null,null,null,null,null,null,null,null,null,null,null,null,null,null,null,null,{"$f":"SUM(D9:AH9)","v":0},{"$f":"AI9/8","v":0},{"$f":"SUM(D10:AH10)","v":0},{"$f":"AJ9*DATA!F9-AK9","v":0}]
[null,null,"سلف"]
[5,{"$f":"DATA!B11","v":"عبد الطيف المرسي"},"يوم",null,null,null,null,null,null,null,null,null,null,null,null,null,null,null,null,null,null,null,null,null,null,null,null,null,null,null,null,null,null,null,{"$f":"SUM(D11:AH11)","v":0},{"$f":"AI11/8","v":0},{"$f":"SUM(D12:AH12)","v":0},{"$f":"AJ11*DATA!F11-AK11","v":0}]
[null,null,"سلف"]
[6,{"$f":"DATA!B13","v":"محمود ابراهيم ضيف"},"يوم",null,null,null,null,null,null,null,null,null,null,null,null,null,null,null,null,null,null,null,null,null,null,null,null,null,null,null,null,null,null,null,{"$f":"SUM(D13:AH13)","v":0},{"$f":"AI13/8","v":0},{"$f":"SUM(D14:AH14)","v":0},{"$f":"AJ13*DATA!F13-AK13","v":0}]
[null,null,"سلف"]
[7,{"$f":"DATA!B15","v":"خليل محمد خليل"},"يوم",null,null,null,null,null,null,null,null,null,null,null,null,null,null,null,null,null,null,null,null,null,null,null,null,null,null,null,null,null,null,null,{"$f":"SUM(D15:AH15)","v":0},{"$f":"AI15/8","v":0},{"$f":"SUM(D16:AH16)","v":0},{"$f":"AJ15*DATA!F15-AK15","v":0}]
[null,null,"سلف"]
[8,{"$f":"DATA!B17","v":"حسام محسن"},"يوم",null,null,null,null,null,null,null,null,null,null,null,null,null,null,null,null,null,null,null,null,null,null,null,null,null,null,null,null,null,null,null,{"$f":"SUM(D17:AH17)","v":0},{"$f":"AI17/8","v":0},{"$f":"SUM(D18:AH18)","v":0},{"$f":"AJ17*DATA!F17-AK17","v":0}]
[null,null,"سلف"]
[9,{"$f":"DATA!B19","v":"محمود المحلاوي"},"يوم",null,null,null,null,null,null,null,null,null,null,null,null,null,null,null,null,null,null,null,null,null,null,null,null,null,null,null,null,null,null,null,{"$f":"SUM(D19:AH19)","v":0},{"$f":"AI19/8","v":0},{"$f":"SUM(D20:AH20)","v":0},{"$f":"AJ19*DATA!F19-AK19","v":0}]
[null,null,"سلف"]
[10,{"$f":"DATA!B21","v":"رضا رمضان الرشيدي"},"يوم",null,null,null,null,null,null,null,null,null,null,null,null,null,null,null,null,null,null,null,null,null,null,null,null,null,null,null,null,null,null,null,{"$f":"SUM(D21:AH21)","v":0},{"$f":"AI21/8","v":0},{"$f":"SUM(D22:AH22)","v":0},{"$f":"AJ21*DATA!F21-AK21","v":0}]
[null,null,"سلف"]
[11,{"$f":"DATA!B23","v":"السيد الدمرداش"},"يوم",null,null,null,null,null,null,null,null,null,null,null,null,null,null,null,null,null,null,null,null,null,null,null,null,null,null,null,null,null,null,null,{"$f":"SUM(D23:AH23)","v":0},{"$f":"AI23/8","v":0},{"$f":"SUM(D24:AH24)","v":0},{"$f":"AJ23*DATA!F23-AK23","v":0}]
[null,null,"سلف"]
[12,{"$f":"DATA!B25","v":"على صبح عطية"},"يوم",null,null,null,null,null,null,null,null,null,null,null,null,null,null,null,null,null,null,null,null,null,null,null,null,null,null,null,null,null,null,null,{"$f":"SUM(D25:AH25)","v":0},{"$f":"AI25/8","v":0},{"$f":"SUM(D26:AH26)","v":0},{"$f":"AJ25*DATA!F25-AK25","v":0}]
[null,null,"سلف"]
[13,{"$f":"DATA!B27","v":"سعد الدين عماد"},"يوم",null,null,null,null,null,null,null,null,null,null,null,null,null,null,null,null,null,null,null,null,null,null,null,null,null,null,null,null,null,null,null,{"$f":"SUM(D27:AH27)","v":0},{"$f":"AI27/8","v":0},{"$f":"SUM(D28:AH28)","v":0},{"$f":"AJ27*DATA!F27-AK27","v":0}]
[null,null,"سلف"]
[14,{"$f":"DATA!B29","v":"صلاح محمد"},"يوم",null,null,null,null,null,null,null,null,null,null,null,null,null,null,null,null,null,null,null,null,null,null,null,null,null,null,null,null,null,null,null,{"$f":"SUM(D29:AH29)","v":0},{"$f":"AI29/8","v":0},{"$f":"SUM(D30:AH30)","v":0},{"$f":"AJ29*DATA!F29-AK29","v":0}]
[null,null,"سلف"]
[15,{"$f":"DATA!B31","v":"يوسف منصور"},"يوم",null,null,null,null,null,null,null,null,null,null,null,null,null,null,null,null,null,null,null,null,null,null,null,null,null,null,null,null,null,null,null,{"$f":"SUM(D31:AH31)","v":0},{"$f":"AI31/8","v":0},{"$f":"SUM(D32:AH32)","v":0},{"$f":"AJ31*DATA!F31-AK31","v":0}]
[null,null,"سلف"]
[16,{"$f":"DATA!B33","v":"ابراهيم نصحي"},"يوم",null,null,null,null,null,null,null,null,null,null,null,null,null,null,null,null,null,null,null,null,null,null,null,null,null,null,null,null,null,null,null,{"$f":"SUM(D33:AH33)","v":0},{"$f":"AI33/8","v":0},{"$f":"SUM(D34:AH34)","v":0},{"$f":"AJ33*DATA!F33-AK33","v":0}]
[null,null,"سلف"]
[17,{"$f":"DATA!B35","v":"احمد علام"},"يوم",null,null,null,null,null,null,null,null,null,null,null,null,null,null,null,null,null,null,null,null,null,null,null,null,null,null,null,null,null,null,null,{"$f":"SUM(D35:AH35)","v":0},{"$f":"AI35/8","v":0},{"$f":"SUM(D36:AH36)","v":0},{"$f":"AJ35*DATA!F35-AK35","v":0}]
[null,null,"سلف"]
[18,{"$f":"DATA!B37","v":"عبد العزيز عبد الشافى"},"يوم",null,null,null,null,null,null,null,null,null,null,null,null,null,null,null,null,null,null,null,null,null,null,null,null,null,null,null,null,null,null,null,{"$f":"SUM(D37:AH37)","v":0},{"$f":"AI37/8","v":0},{"$f":"SUM(D38:AH38)","v":0},{"$f":"AJ37*DATA!F37-AK37","v":0}]
[null,null,"سلف"]
[19,{"$f":"DATA!B39","v":"باسم ابو بكر"},"يوم",null,null,null,null,null,null,null,null,null,null,null,null,null,null,null,null,null,null,null,null,null,null,null,null,null,null,null,null,null,null,null,{"$f":"SUM(D39:AH39)","v":0},{"$f":"AI39/8","v":0},{"$f":"SUM(D40:AH40)","v":0},{"$f":"AJ39*DATA!F39-AK39","v":0}]
[null,null,"سلف"]
[20,{"$f":"DATA!B41","v":"احمد محمد الدمرداش"},"يوم",null,null,null,null,null,null,null,null,null,null,null,null,null,null,null,null,null,null,null,null,null,null,null,null,null,null,null,null,null,null,null,{"$f":"SUM(D41:AH41)","v":0},{"$f":"AI41/8","v":0},{"$f":"SUM(D42:AH42)","v":0},{"$f":"AJ41*DATA!F41-AK41","v":0}]
[null,null,"سلف"]
[21,{"$f":"DATA!B43","v":"محمد احمد جمعه"},"يوم",null,null,null,null,null,null,null,null,null,null,null,null,null,null,null,null,null,null,null,null,null,null,null,null,null,null,null,null,null,null,null,{"$f":"SUM(D43:AH43)","v":0},{"$f":"AI43/8","v":0},{"$f":"SUM(D44:AH44)","v":0},{"$f":"AJ43*DATA!F43-AK43","v":0}]
[null,null,"سلف"]
[22,{"$f":"DATA!B45","v":"السيد رمضان الدسوقى"},"يوم",null,null,null,null,null,null,null,null,null,null,null,null,null,null,null,null,null,null,null,null,null,null,null,null,null,null,null,null,null,null,null,{"$f":"SUM(D45:AH45)","v":0},{"$f":"AI45/8","v":0},{"$f":"SUM(D46:AH46)","v":0},{"$f":"AJ45*DATA!F45-AK45","v":0}]
[null,null,"سلف"]
[23,{"$f":"DATA!B47","v":"على السيد عبد الكريم"},"يوم",null,null,null,null,null,null,null,null,null,null,null,null,null,null,null,null,null,null,null,null,null,null,null,null,null,null,null,null,null,null,null,{"$f":"SUM(D47:AH47)","v":0},{"$f":"AI47/8","v":0},{"$f":"SUM(D48:AH48)","v":0},{"$f":"AJ47*DATA!F47-AK47","v":0}]
[null,null,"سلف"]
[24,{"$f":"DATA!B49","v":"حلمي احمد العجوز"},"يوم",null,null,null,null,null,null,null,null,null,null,null,null,null,null,null,null,null,null,null,null,null,null,null,null,null,null,null,null,null,null,null,{"$f":"SUM(D49:AH49)","v":0},{"$f":"AI49/8","v":0},{"$f":"SUM(D50:AH50)","v":0},{"$f":"AJ49*DATA!F49-AK49","v":0}]
[null,null,"سلف"]
[25,{"$f":"DATA!B51","v":"فارس على عبوده"},"يوم",null,null,null,null,null,null,null,null,null,null,null,null,null,null,null,null,null,null,null,null,null,null,null,null,null,null,null,null,null,null,null,{"$f":"SUM(D51:AH51)","v":0},{"$f":"AI51/8","v":0},{"$f":"SUM(D52:AH52)","v":0},{"$f":"AJ51*DATA!F51-AK51","v":0}]
[null,null,"سلف"]
[26,{"$f":"DATA!B53","v":"محمد عبوده عبد المولى"},"يوم",null,null,null,null,null,null,null,null,null,null,null,null,null,null,null,null,null,null,null,null,null,null,null,null,null,null,null,null,null,null,null,{"$f":"SUM(D53:AH53)","v":0},{"$f":"AI53/8","v":0},{"$f":"SUM(D54:AH54)","v":0},{"$f":"AJ53*DATA!F53-AK53","v":0}]
[null,null,"سلف"]
[27,{"$f":"DATA!B55","v":"ايمن عبوده عبد المولى"},"يوم",null,null,null,null,null,null,null,null,null,null,null,null,null,null,null,null,null,null,null,null,null,null,null,null,null,null,null,null,null,null,null,{"$f":"SUM(D55:AH55)","v":0},{"$f":"AI55/8","v":0},{"$f":"SUM(D56:AH56)","v":0},{"$f":"AJ55*DATA!F55-AK55","v":0}]
[null,null,"سلف"]
[28,{"$f":"DATA!B57","v":"حاتم عبوده عبد المولى"},"يوم",null,null,null,null,null,null,null,null,null,null,null,null,null,null,null,null,null,null,null,null,null,null,null,null,null,null,null,null,null,null,null,{"$f":"SUM(D57:AH57)","v":0},{"$f":"AI57/8","v":0},{"$f":"SUM(D58:AH58)","v":0},{"$f":"AJ57*DATA!F57-AK57","v":0}]
[null,null,"سلف"]
[29,{"$f":"DATA!B59","v":"نادر عبد العال"},"يوم",null,null,null,null,null,null,null,null,null,null,null,null,null,null,null,null,null,null,null,null,null,null,null,null,null,null,null,null,null,null,null,{"$f":"SUM(D59:AH59)","v":0},{"$f":"AI59/8","v":0},{"$f":"SUM(D60:AH60)","v":0},{"$f":"AJ59*DATA!F59-AK59","v":0}]
[null,null,"سلف"]
[30,{"$f":"DATA!B61","v":"محمد متولى عباس"},"يوم",null,null,null,null,null,null,null,null,null,null,null,null,null,null,null,null,null,null,null,null,null,null,null,null,null,null,null,null,null,null,null,{"$f":"SUM(D61:AH61)","v":0},{"$f":"AI61/8","v":0},{"$f":"SUM(D62:AH62)","v":0},{"$f":"AJ61*DATA!F61-AK61","v":0}]
[null,null,"سلف"]
[31,{"$f":"DATA!B63","v":"السعيد الشرقاوي"},"يوم",null,null,null,null,null,null,null,null,null,null,null,null,null,null,null,null,null,null,null,null,null,null,null,null,null,null,null,null,null,null,null,{"$f":"SUM(D63:AH63)","v":0},{"$f":"AI63/8","v":0},{"$f":"SUM(D64:AH64)","v":0},{"$f":"AJ63*DATA!F63-AK63","v":0}]
[null,null,"سلف"]
[32,{"$f":"DATA!B65","v":"عزيز فتحي سعفان"},"يوم",null,null,null,null,null,null,null,null,null,null,null,null,null,null,null,null,null,null,null,null,null,null,null,null,null,null,null,null,null,null,null,{"$f":"SUM(D65:AH65)","v":0},{"$f":"AI65/8","v":0},{"$f":"SUM(D66:AH66)","v":0},{"$f":"AJ65*DATA!F65-AK65","v":0}]
[null,null,"سلف"]
[33,{"$f":"DATA!B67","v":"محمود سعد محمود"},"يوم",null,null,null,null,null,null,null,null,null,null,null,null,null,null,null,null,null,null,null,null,null,null,null,null,null,null,null,null,null,null,null,{"$f":"SUM(D67:AH67)","v":0},{"$f":"AI67/8","v":0},{"$f":"SUM(D68:AH68)","v":0},{"$f":"AJ67*DATA!F67-AK67","v":0}]
[null,null,"سلف"]
[34,{"$f":"DATA!B69","v":"حسن محمد طة"},"يوم",null,null,null,null,null,null,null,null,null,null,null,null,null,null,null,null,null,null,null,null,null,null,null,null,null,null,null,null,null,null,null,{"$f":"SUM(D69:AH69)","v":0},{"$f":"AI69/8","v":0},{"$f":"SUM(D70:AH70)","v":0},{"$f":"AJ69*DATA!F69-AK69","v":0}]
[null,null,"سلف"]
[35,{"$f":"DATA!B71","v":"حسين محمد حسين"},"يوم",null,null,null,null,null,null,null,null,null,null,null,null,null,null,null,null,null,null,null,null,null,null,null,null,null,null,null,null,null,null,null,{"$f":"SUM(D71:AH71)","v":0},{"$f":"AI71/8","v":0},{"$f":"SUM(D72:AH72)","v":0},{"$f":"AJ71*DATA!F71-AK71","v":0}]
[null,null,"سلف"]
[36,{"$f":"DATA!B73","v":"محمد ابراهيم محمد"},"يوم",null,null,null,null,null,null,null,null,null,null,null,null,null,null,null,null,null,null,null,null,null,null,null,null,null,null,null,null,null,null,null,{"$f":"SUM(D73:AH73)","v":0},{"$f":"AI73/8","v":0},{"$f":"SUM(D74:AH74)","v":0},{"$f":"AJ73*DATA!F73-AK73","v":0}]
[null,null,"سلف"]
[37,{"$f":"DATA!B75","v":"مصطفى حسن (القاهرة)"},"يوم",null,null,null,null,null,null,null,null,null,null,null,null,null,null,null,null,null,null,null,null,null,null,null,null,null,null,null,null,null,null,null,{"$f":"SUM(D75:AH75)","v":0},{"$f":"AI75/8","v":0},{"$f":"SUM(D76:AH76)","v":0},{"$f":"AJ75*DATA!F75-AK75","v":0}]
[null,null,"سلف"]
[38,{"$f":"DATA!B77","v":"سمير صلاح"},"يوم",null,null,null,null,null,null,null,null,null,null,null,null,null,null,null,null,null,null,null,null,null,null,null,null,null,null,null,null,null,null,null,{"$f":"SUM(D77:AH77)","v":0},{"$f":"AI77/8","v":0},{"$f":"SUM(D78:AH78)","v":0},{"$f":"AJ77*DATA!F77-AK77","v":0}]
[null,null,"سلف"]
[39,{"$f":"DATA!B79","v":"رمضان ابراهيم منصور"},"يوم",null,null,null,null,null,null,null,null,null,null,null,null,null,null,null,null,null,null,null,null,null,null,null,null,null,null,null,null,null,null,null,{"$f":"SUM(D79:AH79)","v":0},{"$f":"AI79/8","v":0},{"$f":"SUM(D80:AH80)","v":0},{"$f":"AJ79*DATA!F79-AK79","v":0}]
[null,null,"سلف"]
[40,{"$f":"DATA!B81","v":"يوسف الدكروري"},"يوم",null,null,null,null,null,null,null,null,null,null,null,null,null,null,null,null,null,null,null,null,null,null,null,null,null,null,null,null,null,null,null,{"$f":"SUM(D81:AH81)","v":0},{"$f":"AI81/8","v":0},{"$f":"SUM(D82:AH82)","v":0},{"$f":"AJ81*DATA!F81-AK81","v":0}]
[null,null,"سلف"]
[41,{"$f":"DATA!B83","v":"علاء احمد ابراهيم"},"يوم",null,null,null,null,null,null,null,null,null,null,null,null,null,null,null,null,null,null,null,null,null,null,null,null,null,null,null,null,null,null,null,{"$f":"SUM(D83:AH83)","v":0},{"$f":"AI83/8","v":0},{"$f":"SUM(D84:AH84)","v":0},{"$f":"AJ83*DATA!F83-AK83","v":0}]
[null,null,"سلف"]
[42,{"$f":"DATA!B85","v":"محمد ابراهيم السيد عقل"},"يوم",null,null,null,null,null,null,null,null,null,null,null,null,null,null,null,null,null,null,null,null,null,null,null,null,null,null,null,null,null,null,null,{"$f":"SUM(D85:AH85)","v":0},{"$f":"AI85/8","v":0},{"$f":"SUM(D86:AH86)","v":0},{"$f":"AJ85*DATA!F85-AK85","v":0}]
[null,null,"سلف"]
[43,{"$f":"DATA!B87","v":"السيد رمضان"},"يوم",null,null,null,null,null,null,null,null,null,null,null,null,null,null,null,null,null,null,null,null,null,null,null,null,null,null,null,null,null,null,null,{"$f":"SUM(D87:AH87)","v":0},{"$f":"AI87/8","v":0},{"$f":"SUM(D88:AH88)","v":0},{"$f":"AJ87*DATA!F87-AK87","v":0}]
[null,null,"سلف"]
[44,{"$f":"DATA!B89","v":"فارس شاكوش"},"يوم",null,null,null,null,null,null,null,null,null,null,null,null,null,null,null,null,null,null,null,null,null,null,null,null,null,null,null,null,null,null,null,{"$f":"SUM(D89:AH89)","v":0},{"$f":"AI89/8","v":0},{"$f":"SUM(D90:AH90)","v":0},{"$f":"AJ89*DATA!F89-AK89","v":0}]
[null,null,"سلف"]
[45,{"$f":"DATA!B91","v":0},"يوم",null,null,null,null,null,null,null,null,null,null,null,null,null,null,null,null,null,null,null,null,null,null,null,null,null,null,null,null,null,null,null,{"$f":"SUM(D91:AH91)","v":0},{"$f":"AI91/8","v":0},{"$f":"SUM(D92:AH92)","v":0},{"$f":"AJ91*DATA!F91-AK91","v":0}]
[null,null,"سلف"]
[46,{"$f":"DATA!B93","v":"السيد نشأت"},"يوم",null,null,null,null,null,null,null,null,null,null,null,null,null,null,null,null,null,null,null,null,null,null,null,null,null,null,null,null,null,null,null,{"$f":"SUM(D93:AH93)","v":0},{"$f":"AI93/8","v":0},{"$f":"SUM(D94:AH94)","v":0},{"$f":"AJ93*DATA!F93-AK93","v":0}]
[null,null,"سلف"]
[47,{"$f":"DATA!B95","v":"محمود ابراهيم"},"يوم",null,null,null,null,null,null,null,null,null,null,null,null,null,null,null,null,null,null,null,null,null,null,null,null,null,null,null,null,null,null,null,{"$f":"SUM(D95:AH95)","v":0},{"$f":"AI95/8","v":0},{"$f":"SUM(D96:AH96)","v":0},{"$f":"AJ95*DATA!F95-AK95","v":0}]
[null,null,"سلف"]
[48,{"$f":"DATA!B97","v":"نصراحمد مسعد"},"يوم",null,null,null,null,null,null,null,null,null,null,null,null,null,null,null,null,null,null,null,null,null,null,null,null,null,null,null,null,null,null,null,{"$f":"SUM(D97:AH97)","v":0},{"$f":"AI97/8","v":0},{"$f":"SUM(D98:AH98)","v":0},{"$f":"AJ97*DATA!F97-AK97","v":0}]
[null,null,"سلف"]
[49,{"$f":"DATA!B99","v":"ايمن جمعة "},"يوم",null,null,null,null,null,null,null,null,null,null,null,null,null,null,null,null,null,null,null,null,null,null,null,null,null,null,null,null,null,null,null,{"$f":"SUM(D99:AH99)","v":0},{"$f":"AI99/8","v":0},{"$f":"SUM(D100:AH100)","v":0},{"$f":"AJ99*DATA!F99-AK99","v":0}]
[null,null,"سلف"]
[50,{"$f":"DATA!B101","v":0},"يوم",null,null,null,null,null,null,null,null,null,null,null,null,null,null,null,null,null,null,null,null,null,null,null,null,null,null,null,null,null,null,null,{"$f":"SUM(D101:AH101)","v":0},{"$f":"AI101/8","v":0},{"$f":"SUM(D102:AH102)","v":0},{"$f":"AJ101*DATA!F101-AK101","v":0}]
[null,null,"سلف"]
[51,{"$f":"DATA!B103","v":"حسام محسن ابراهيم"},"يوم",null,null,null,null,null,null,null,null,null,null,null,null,null,null,null,null,null,null,null,null,null,null,null,null,null,null,null,null,null,null,null,{"$f":"SUM(D103:AH103)","v":0},{"$f":"AI103/8","v":0},{"$f":"SUM(D104:AH104)","v":0},{"$f":"AJ103*DATA!F103-AK103","v":0}]
[null,null,"سلف"]
[52,{"$f":"DATA!B105","v":"محمد رمضان ابراهيم"},"يوم",null,null,null,null,null,null,null,null,null,null,null,null,null,null,null,null,null,null,null,null,null,null,null,null,null,null,null,null,null,null,null,{"$f":"SUM(D105:AH105)","v":0},{"$f":"AI105/8","v":0},{"$f":"SUM(D106:AH106)","v":0},{"$f":"AJ105*DATA!F105-AK105","v":0}]
[null,null,"سلف"]
[53,{"$f":"DATA!B107","v":"علام السيد"},"يوم",null,null,null,null,null,null,null,null,null,null,null,null,null,null,null,null,null,null,null,null,null,null,null,null,null,null,null,null,null,null,null,{"$f":"SUM(D107:AH107)","v":0},{"$f":"AI107/8","v":0},{"$f":"SUM(D108:AH108)","v":0},{"$f":"AJ107*DATA!F107-AK107","v":0}]
[null,null,"سلف"]
[54,{"$f":"DATA!B109","v":"محمد سكر"},"يوم",null,null,null,null,null,null,null,null,null,null,null,null,null,null,null,null,null,null,null,null,null,null,null,null,null,null,null,null,null,null,null,{"$f":"SUM(D109:AH109)","v":0},{"$f":"AI109/8","v":0},{"$f":"SUM(D110:AH110)","v":0},{"$f":"AJ109*DATA!F109-AK109","v":0}]
[null,null,"سلف"]
[55,{"$f":"DATA!B111","v":"محمد الدمرداش"},"يوم",null,null,null,null,null,null,null,null,null,null,null,null,null,null,null,null,null,null,null,null,null,null,null,null,null,null,null,null,null,null,null,{"$f":"SUM(D111:AH111)","v":0},{"$f":"AI111/8","v":0},{"$f":"SUM(D112:AH112)","v":0},{"$f":"AJ111*DATA!F111-AK111","v":0}]
[null,null,"سلف"]
[56,{"$f":"DATA!B113","v":"عيد المتولى"},"يوم",null,null,null,null,null,null,null,null,null,null,null,null,null,null,null,null,null,null,null,null,null,null,null,null,null,null,null,null,null,null,null,{"$f":"SUM(D113:AH113)","v":0},{"$f":"AI113/8","v":0},{"$f":"SUM(D114:AH114)","v":0},{"$f":"AJ113*DATA!F113-AK113","v":0}]
[null,null,"سلف"]
[57,{"$f":"DATA!B115","v":"سمير الشحات"},"يوم",null,null,null,null,null,null,null,null,null,null,null,null,null,null,null,null,null,null,null,null,null,null,null,null,null,null,null,null,null,null,null,{"$f":"SUM(D115:AH115)","v":0},{"$f":"AI115/8","v":0},{"$f":"SUM(D116:AH116)","v":0},{"$f":"AJ115*DATA!F115-AK115","v":0}]
[null,null,"سلف"]
[58,{"$f":"DATA!B117","v":"حسام محمدان"},"يوم",null,null,null,null,null,null,null,null,null,null,null,null,null,null,null,null,null,null,null,null,null,null,null,null,null,null,null,null,null,null,null,{"$f":"SUM(D117:AH117)","v":0},{"$f":"AI117/8","v":0},{"$f":"SUM(D118:AH118)","v":0},{"$f":"AJ117*DATA!F117-AK117","v":0}]
[null,null,"سلف"]
[59,{"$f":"DATA!B119","v":"رمضان الخميسى"},"يوم",null,null,null,null,null,null,null,null,null,null,null,null,null,null,null,null,null,null,null,null,null,null,null,null,null,null,null,null,null,null,null,{"$f":"SUM(D119:AH119)","v":0},{"$f":"AI119/8","v":0},{"$f":"SUM(D120:AH120)","v":0},{"$f":"AJ119*DATA!F119-AK119","v":0}]
[null,null,"سلف"]
[60,{"$f":"DATA!B121","v":"السيد ذاكى"},"يوم",null,null,null,null,null,null,null,null,null,null,null,null,null,null,null,null,null,null,null,null,null,null,null,null,null,null,null,null,null,null,null,{"$f":"SUM(D121:AH121)","v":0},{"$f":"AI121/8","v":0},{"$f":"SUM(D122:AH122)","v":0},{"$f":"AJ121*DATA!F121-AK121","v":0}]
[null,null,"سلف"]
[61,{"$f":"DATA!B123","v":"احمد فكرى"},"يوم",null,null,null,null,null,null,null,null,null,null,null,null,null,null,null,null,null,null,null,null,null,null,null,null,null,null,null,null,null,null,null,{"$f":"SUM(D123:AH123)","v":0},{"$f":"AI123/8","v":0},{"$f":"SUM(D124:AH124)","v":0},{"$f":"AJ123*DATA!F123-AK123","v":0}]
[null,null,"سلف"]
[62,{"$f":"DATA!B125","v":"محمد سعد"},"يوم",null,null,null,null,null,null,null,null,null,null,null,null,null,null,null,null,null,null,null,null,null,null,null,null,null,null,null,null,null,null,null,{"$f":"SUM(D125:AH125)","v":0},{"$f":"AI125/8","v":0},{"$f":"SUM(D126:AH126)","v":0},{"$f":"AJ125*DATA!F125-AK125","v":0}]
[null,null,"سلف"]
[63,{"$f":"DATA!B127","v":"احمد محمود السعيد"},"يوم",null,null,null,null,null,null,null,null,null,null,null,null,null,null,null,null,null,null,null,null,null,null,null,null,null,null,null,null,null,null,null,{"$f":"SUM(D127:AH127)","v":0},{"$f":"AI127/8","v":0},{"$f":"SUM(D128:AH128)","v":0},{"$f":"AJ127*DATA!F127-AK127","v":0}]
[null,null,"سلف"]
[64,{"$f":"DATA!B129","v":"خالد عزت"},"يوم",null,null,null,null,null,null,null,null,null,null,null,null,null,null,null,null,null,null,null,null,null,null,null,null,null,null,null,null,null,null,null,{"$f":"SUM(D129:AH129)","v":0},{"$f":"AI129/8","v":0},{"$f":"SUM(D130:AH130)","v":0},{"$f":"AJ129*DATA!F129-AK129","v":0}]
[null,null,"سلف"]
[65,{"$f":"DATA!B131","v":"سامح محمد الرشيدى"},"يوم",null,null,null,null,null,null,null,null,null,null,null,null,null,null,null,null,null,null,null,null,null,null,null,null,null,null,null,null,null,null,null,{"$f":"SUM(D131:AH131)","v":0},{"$f":"AI131/8","v":0},{"$f":"SUM(D132:AH132)","v":0},{"$f":"AJ131*DATA!F131-AK131","v":0}]
[null,null,"سلف"]
[66,{"$f":"DATA!B133","v":"خالد وليد"},"يوم",null,null,null,null,null,null,null,null,null,null,null,null,null,null,null,null,null,null,null,null,null,null,null,null,null,null,null,null,null,null,null,{"$f":"SUM(D133:AH133)","v":0},{"$f":"AI133/8","v":0},{"$f":"SUM(D134:AH134)","v":0},{"$f":"AJ133*DATA!F133-AK133","v":0}]
[null,null,"سلف"]
[67,{"$f":"DATA!B135","v":"محمد امر الله"},"يوم",null,null,null,null,null,null,null,null,null,null,null,null,null,null,null,null,null,null,null,null,null,null,null,null,null,null,null,null,null,null,null,{"$f":"SUM(D135:AH135)","v":0},{"$f":"AI135/8","v":0},{"$f":"SUM(D136:AH136)","v":0},{"$f":"AJ135*DATA!F135-AK135","v":0}]
[null,null,"سلف"]
[68,{"$f":"DATA!B137","v":"فايز المحلاوى"},"يوم",null,null,null,null,null,null,null,null,null,null,null,null,null,null,null,null,null,null,null,null,null,null,null,null,null,null,null,null,null,null,null,{"$f":"SUM(D137:AH137)","v":0},{"$f":"AI137/8","v":0},{"$f":"SUM(D138:AH138)","v":0},{"$f":"AJ137*DATA!F137-AK137","v":0}]
[null,null,"سلف"]
[69,{"$f":"DATA!B139","v":"هشام محمود السعيد"},"يوم",null,null,null,null,null,null,null,null,null,null,null,null,null,null,null,null,null,null,null,null,null,null,null,null,null,null,null,null,null,null,null,{"$f":"SUM(D139:AH139)","v":0},{"$f":"AI139/8","v":0},{"$f":"SUM(D140:AH140)","v":0},{"$f":"AJ139*DATA!F139-AK139","v":0}]
[null,null,"سلف"]
[70,{"$f":"DATA!B141","v":"صالح محمد نواره"},"يوم",null,null,null,null,null,null,null,null,null,null,null,null,null,null,null,null,null,null,null,null,null,null,null,null,null,null,null,null,null,null,null,{"$f":"SUM(D141:AH141)","v":0},{"$f":"AI141/8","v":0},{"$f":"SUM(D142:AH142)","v":0},{"$f":"AJ141*DATA!F141-AK141","v":0}]
[null,null,"سلف"]
[71,{"$f":"DATA!B143","v":"محمد السيد السيد"},"يوم",null,null,null,null,null,null,null,null,null,null,null,null,null,null,null,null,null,null,null,null,null,null,null,null,null,null,null,null,null,null,null,{"$f":"SUM(D143:AH143)","v":0},{"$f":"AI143/8","v":0},{"$f":"SUM(D144:AH144)","v":0},{"$f":"AJ143*DATA!F143-AK143","v":0}]
[null,null,"سلف"]
[72,{"$f":"DATA!B145","v":"محمود السيد السيد"},"يوم",null,null,null,null,null,null,null,null,null,null,null,null,null,null,null,null,null,null,null,null,null,null,null,null,null,null,null,null,null,null,null,{"$f":"SUM(D145:AH145)","v":0},{"$f":"AI145/8","v":0},{"$f":"SUM(D146:AH146)","v":0},{"$f":"AJ145*DATA!F145-AK145","v":0}]
[null,null,"سلف"]
[73,{"$f":"DATA!B147","v":"ابراهيم عبد الخالق"},"يوم",null,null,null,null,null,null,null,null,null,null,null,null,null,null,null,null,null,null,null,null,null,null,null,null,null,null,null,null,null,null,null,{"$f":"SUM(D147:AH147)","v":0},{"$f":"AI147/8","v":0},{"$f":"SUM(D148:AH148)","v":0},{"$f":"AJ147*DATA!F147-AK147","v":0}]
[null,null,"سلف"]
[74,{"$f":"DATA!B149","v":"محمد شحاته"},"يوم",null,null,null,null,null,null,null,null,null,null,null,null,null,null,null,null,null,null,null,null,null,null,null,null,null,null,null,null,null,null,null,{"$f":"SUM(D149:AH149)","v":0},{"$f":"AI149/8","v":0},{"$f":"SUM(D150:AH150)","v":0},{"$f":"AJ149*DATA!F149-AK149","v":0}]
[null,null,"سلف"]
[75,{"$f":"DATA!B151","v":"ابراهيم القطب"},"يوم",null,null,null,null,null,null,null,null,null,null,null,null,null,null,null,null,null,null,null,null,null,null,null,null,null,null,null,null,null,null,null,{"$f":"SUM(D151:AH151)","v":0},{"$f":"AI151/8","v":0},{"$f":"SUM(D152:AH152)","v":0},{"$f":"AJ151*DATA!F151-AK151","v":0}]
[null,null,"سلف"]
[76,{"$f":"DATA!B153","v":"محمد احمد الطيب"},"يوم",null,null,null,null,null,null,null,null,null,null,null,null,null,null,null,null,null,null,null,null,null,null,null,null,null,null,null,null,null,null,null,{"$f":"SUM(D153:AH153)","v":0},{"$f":"AI153/8","v":0},{"$f":"SUM(D154:AH154)","v":0},{"$f":"AJ153*DATA!F153-AK153","v":0}]
[null,null,"سلف"]
[77,{"$f":"DATA!B155","v":"حماده عونى"},"يوم",null,null,null,null,null,null,null,null,null,null,null,null,null,null,null,null,null,null,null,null,null,null,null,null,null,null,null,null,null,null,null,{"$f":"SUM(D155:AH155)","v":0},{"$f":"AI155/8","v":0},{"$f":"SUM(D156:AH156)","v":0},{"$f":"AJ155*DATA!F155-AK155","v":0}]
[null,null,"سلف"]
[78,{"$f":"DATA!B157","v":"محمد عادل مرعي"},"يوم",null,null,null,null,null,null,null,null,null,null,null,null,null,null,null,null,null,null,null,null,null,null,null,null,null,null,null,null,null,null,null,{"$f":"SUM(D157:AH157)","v":0},{"$f":"AI157/8","v":0},{"$f":"SUM(D158:AH158)","v":0},{"$f":"AJ157*DATA!F157-AK157","v":0}]
[null,null,"سلف"]
[79,{"$f":"DATA!B159","v":"محمد اسعد"},"يوم",null,null,null,null,null,null,null,null,null,null,null,null,null,null,null,null,null,null,null,null,null,null,null,null,null,null,null,null,null,null,null,{"$f":"SUM(D159:AH159)","v":0},{"$f":"AI159/8","v":0},{"$f":"SUM(D160:AH160)","v":0},{"$f":"AJ159*DATA!F159-AK159","v":0}]
[null,null,"سلف"]
[80,{"$f":"DATA!B161","v":"المتولى محمد شحاتة"},"يوم",null,null,null,null,null,null,null,null,null,null,null,null,null,null,null,null,null,null,null,null,null,null,null,null,null,null,null,null,null,null,null,{"$f":"SUM(D161:AH161)","v":0},{"$f":"AI161/8","v":0},{"$f":"SUM(D162:AH162)","v":0},{"$f":"AJ161*DATA!F161-AK161","v":0}]
[null,null,"سلف"]
[81,{"$f":"DATA!B163","v":"محمد عوضين الدكش"},"يوم",null,null,null,null,null,null,null,null,null,null,null,null,null,null,null,null,null,null,null,null,null,null,null,null,null,null,null,null,null,null,null,{"$f":"SUM(D163:AH163)","v":0},{"$f":"AI163/8","v":0},{"$f":"SUM(D164:AH164)","v":0},{"$f":"AJ163*DATA!F163-AK163","v":0}]
[null,null,"سلف"]
[82,{"$f":"DATA!B165","v":"رجب الشحات"},"يوم",null,null,null,null,null,null,null,null,null,null,null,null,null,null,null,null,null,null,null,null,null,null,null,null,null,null,null,null,null,null,null,{"$f":"SUM(D165:AH165)","v":0},{"$f":"AI165/8","v":0},{"$f":"SUM(D166:AH166)","v":0},{"$f":"AJ165*DATA!F165-AK165","v":0}]
[null,null,"سلف"]
[83,{"$f":"DATA!B167","v":0},"يوم",null,null,null,null,null,null,null,null,null,null,null,null,null,null,null,null,null,null,null,null,null,null,null,null,null,null,null,null,null,null,null,{"$f":"SUM(D167:AH167)","v":0},{"$f":"AI167/8","v":0},{"$f":"SUM(D168:AH168)","v":0},{"$f":"AJ167*DATA!F167-AK167","v":0}]
[null,null,"سلف"]
[84,{"$f":"DATA!B169","v":0},"يوم",null,null,null,null,null,null,null,null,null,null,null,null,null,null,null,null,null,null,null,null,null,null,null,null,null,null,null,null,null,null,null,{"$f":"SUM(D169:AH169)","v":0},{"$f":"AI169/8","v":0},{"$f":"SUM(D170:AH170)","v":0},{"$f":"AJ169*DATA!F169-AK169","v":0}]
[null,null,"سلف"]
[85,{"$f":"DATA!B171","v":"ابراهيم العيسوى"},"يوم",null,null,null,null,null,null,null,null,null,null,null,null,null,null,null,null,null,null,null,null,null,null,null,null,null,null,null,null,null,null,null,{"$f":"SUM(D171:AH171)","v":0},{"$f":"AI171/8","v":0},{"$f":"SUM(D172:AH172)","v":0},{"$f":"AJ171*DATA!F171-AK171","v":0}]
[null,null,"سلف"]
[86,{"$f":"DATA!B173","v":0},"يوم",null,null,null,null,null,null,null,null,null,null,null,null,null,null,null,null,null,null,null,null,null,null,null,null,null,null,null,null,null,null,null,{"$f":"SUM(D173:AH173)","v":0},{"$f":"AI173/8","v":0},{"$f":"SUM(D174:AH174)","v":0},{"$f":"AJ173*DATA!F173-AK173","v":0}]
[null,null,"سلف"]
[87,{"$f":"DATA!B175","v":0},"يوم",null,null,null,null,null,null,null,null,null,null,null,null,null,null,null,null,null,null,null,null,null,null,null,null,null,null,null,null,null,null,null,{"$f":"SUM(D175:AH175)","v":0},{"$f":"AI175/8","v":0},{"$f":"SUM(D176:AH176)","v":0},{"$f":"AJ175*DATA!F175-AK175","v":0}]
[null,null,"سلف"]
[88,{"$f":"DATA!B177","v":0},"يوم",null,null,null,null,null,null,null,null,null,null,null,null,null,null,null,null,null,null,null,null,null,null,null,null,null,null,null,null,null,null,null,{"$f":"SUM(D177:AH177)","v":0},{"$f":"AI177/8","v":0},{"$f":"SUM(D178:AH178)","v":0},{"$f":"AJ177*DATA!F177-AK177","v":0}]
[null,null,"سلف"]
[89,{"$f":"DATA!B179","v":0},"يوم",null,null,null,null,null,null,null,null,null,null,null,null,null,null,null,null,null,null,null,null,null,null,null,null,null,null,null,null,null,null,null,{"$f":"SUM(D179:AH179)","v":0},{"$f":"AI179/8","v":0},{"$f":"SUM(D180:AH180)","v":0},{"$f":"AJ179*DATA!F179-AK179","v":0}]
[null,null,"سلف"]
[90,{"$f":"DATA!B181","v":0},"يوم",null,null,null,null,null,null,null,null,null,null,null,null,null,null,null,null,null,null,null,null,null,null,null,null,null,null,null,null,null,null,null,{"$f":"SUM(D181:AH181)","v":0},{"$f":"AI181/8","v":0},{"$f":"SUM(D182:AH182)","v":0},{"$f":"AJ181*DATA!F181-AK181","v":0}]
[null,null,"سلف"]
[91,{"$f":"DATA!B183","v":0},"يوم",null,null,null,null,null,null,null,null,null,null,null,null,null,null,null,null,null,null,null,null,null,null,null,null,null,null,null,null,null,null,null,{"$f":"SUM(D183:AH183)","v":0},{"$f":"AI183/8","v":0},{"$f":"SUM(D184:AH184)","v":0},{"$f":"AJ183*DATA!F183-AK183","v":0}]
[null,null,"سلف"]
[92,{"$f":"DATA!B185","v":0},"يوم",null,null,null,null,null,null,null,null,null,null,null,null,null,null,null,null,null,null,null,null,null,null,null,null,null,null,null,null,null,null,null,{"$f":"SUM(D185:AH185)","v":0},{"$f":"AI185/8","v":0},{"$f":"SUM(D186:AH186)","v":0},{"$f":"AJ185*DATA!F185-AK185","v":0}]
[null,null,"سلف"]
[93,{"$f":"DATA!B187","v":0},"يوم",null,null,null,null,null,null,null,null,null,null,null,null,null,null,null,null,null,null,null,null,null,null,null,null,null,null,null,null,null,null,null,{"$f":"SUM(D187:AH187)","v":0},{"$f":"AI187/8","v":0},{"$f":"SUM(D188:AH188)","v":0},{"$f":"AJ187*DATA!F187-AK187","v":0}]
[null,null,"سلف"]
[94,{"$f":"DATA!B189","v":0},"يوم",null,null,null,null,null,null,null,null,null,null,null,null,null,null,null,null,null,null,null,null,null,null,null,null,null,null,null,null,null,null,null,{"$f":"SUM(D189:AH189)","v":0},{"$f":"AI189/8","v":0},{"$f":"SUM(D190:AH190)","v":0},{"$f":"AJ189*DATA!F189-AK189","v":0}]
[null,null,"سلف"]
[95,{"$f":"DATA!B191","v":0},"يوم",null,null,null,null,null,null,null,null,null,null,null,null,null,null,null,null,null,null,null,null,null,null,null,null,null,null,null,null,null,null,null,{"$f":"SUM(D191:AH191)","v":0},{"$f":"AI191/8","v":0},{"$f":"SUM(D192:AH192)","v":0},{"$f":"AJ191*DATA!F191-AK191","v":0}]
[null,null,"سلف"]
[96,{"$f":"DATA!B193","v":0},"يوم",null,null,null,null,null,null,null,null,null,null,null,null,null,null,null,null,null,null,null,null,null,null,null,null,null,null,null,null,null,null,null,{"$f":"SUM(D193:AH193)","v":0},{"$f":"AI193/8","v":0},{"$f":"SUM(D194:AH194)","v":0},{"$f":"AJ193*DATA!F193-AK193","v":0}]
[null,null,"سلف"]
[97,{"$f":"DATA!B195","v":0},"يوم",null,null,null,null,null,null,null,null,null,null,null,null,null,null,null,null,null,null,null,null,null,null,null,null,null,null,null,null,null,null,null,{"$f":"SUM(D195:AH195)","v":0},{"$f":"AI195/8","v":0},{"$f":"SUM(D196:AH196)","v":0},{"$f":"AJ195*DATA!F195-AK195","v":0}]
[null,null,"سلف"]
[98,{"$f":"DATA!B197","v":0},"يوم",null,null,null,null,null,null,null,null,null,null,null,null,null,null,null,null,null,null,null,null,null,null,null,null,null,null,null,null,null,null,null,{"$f":"SUM(D197:AH197)","v":0},{"$f":"AI197/8","v":0},{"$f":"SUM(D198:AH198)","v":0},{"$f":"AJ197*DATA!F197-AK197","v":0}]
[null,null,"سلف"]
[99,{"$f":"DATA!B199","v":0},"يوم",null,null,null,null,null,null,null,null,null,null,null,null,null,null,null,null,null,null,null,null,null,null,null,null,null,null,null,null,null,null,null,{"$f":"SUM(D199:AH199)","v":0},{"$f":"AI199/8","v":0},{"$f":"SUM(D200:AH200)","v":0},{"$f":"AJ199*DATA!F199-AK199","v":0}]
[null,null,"سلف"]
[100,{"$f":"DATA!B201","v":0},"يوم",null,null,null,null,null,null,null,null,null,null,null,null,null,null,null,null,null,null,null,null,null,null,null,null,null,null,null,null,null,null,null,{"$f":"SUM(D201:AH201)","v":0},{"$f":"AI201/8","v":0},{"$f":"SUM(D202:AH202)","v":0},{"$f":"AJ201*DATA!F201-AK201","v":0}]
[null,null,"سلف"]

{"sheet":"البوم","index":2,"n_rows":2,"n_cols":3,"rows_kept":2,"cut":false,"hidden":false,"merged":[]}
["م","صورة","ملاحظة"]
["1.(1/18)","البوم_Images/2.صورة.193328.png"]

{"sheet":"DATA","index":3,"n_rows":207,"n_cols":6,"rows_kept":207,"cut":false,"hidden":false,"merged":[[40,1,41,1],[40,2,41,2],[42,1,43,1],[42,2,43,2],[42,3,43,3],[42,4,43,4],[42,5,43,5],[42,0,43,0],[44,0,45,0],[44,1,45,1],[44,2,45,2],[44,3,45,3],[44,4,45,4],[44,5,45,5],[40,3,41,3],[40,4,41,4],[2,0,3,0],[2,1,3,1],[2,2,3,2],[2,3,3,3],[2,4,3,4],[2,5,3,5],[4,0,5,0],[4,5,5,5],[8,0,9,0],[10,0,11,0],[10,1,11,1],[10,2,11,2],[10,3,11,3],[10,4,11,4],[10,5,11,5],[4,1,5,1],[4,2,5,2],[6,0,7,0],[6,1,7,1],[6,2,7,2],[8,1,9,1],[8,2,9,2],[4,3,5,3],[4,4,5,4],[6,3,7,3],[6,4,7,4],[6,5,7,5],[8,3,9,3],[8,4,9,4],[8,5,9,5],[12,0,13,0],[12,1,13,1],[12,2,13,2],[12,3,13,3],[12,4,13,4],[12,5,13,5],[14,0,15,0],[14,5,15,5],[18,0,19,0],[14,3,15,3],[14,4,15,4],[16,3,17,3],[16,4,17,4],[16,5,17,5],[18,3,19,3],[18,4,19,4],[18,5,19,5],[14,1,15,1],[14,2,15,2],[16,0,17,0],[16,1,17,1],[16,2,17,2],[18,1,19,1],[18,2,19,2],[20,0,21,0],[20,1,21,1],[20,2,21,2],[20,3,21,3],[20,4,21,4],[20,5,21,5],[48,1,49,1],[48,2,49,2],[48,5,49,5],[24,3,25,3],[24,4,25,4],[22,0,23,0],[22,1,23,1],[22,2,23,2],[22,3,23,3],[22,4,23,4],[22,5,23,5],[24,0,25,0],[24,5,25,5],[24,1,25,1],[24,2,25,2],[26,1,27,1],[26,2,27,2],[26,3,27,3],[26,4,27,4],[26,5,27,5],[26,0,27,0],[28,0,29,0],[28,1,29,1],[28,2,29,2],[28,3,29,3],[28,4,29,4],[28,5,29,5],[32,3,33,3],[32,4,33,4],[30,0,31,0],[30,1,31,1],[30,2,31,2],[30,3,31,3],[30,4,31,4],[30,5,31,5],[32,0,33,0],[32,5,33,5],[32,1,33,1],[32,2,33,2],[34,1,35,1],[34,2,35,2],[34,3,35,3],[34,4,35,4],[34,5,35,5],[34,0,35,0],[36,0,37,0],[36,1,37,1],[36,2,37,2],[36,3,37,3],[36,4,37,4],[36,5,37,5],[38,0,39,0],[38,1,39,1],[38,2,39,2],[38,3,39,3],[38,4,39,4],[38,5,39,5],[40,0,41,0],[40,5,41,5],[62,3,63,3],[62,4,63,4],[60,0,61,0],[60,1,61,1],[60,2,61,2],[60,3,61,3],[60,4,61,4],[60,5,61,5],[62,0,63,0],[62,5,63,5],[48,3,49,3],[48,4,49,4],[46,0,47,0],[46,1,47,1],[46,2,47,2],[46,3,47,3],[88,1,89,1],[88,2,89,2],[88,3,89,3],[88,4,89,4],[88,5,89,5],[88,0,89,0],[52,1,53,1],[52,2,53,2],[54,0,55,0],[54,1,55,1],[54,2,55,2],[56,1,57,1],[56,2,57,2],[80,5,81,5],[72,4,73,4],[72,5,73,5],[64,0,65,0],[66,0,67,0],[66,1,67,1],[58,0,59,0],[58,1,59,1],[58,2,59,2],[58,3,59,3],[58,4,59,4],[46,4,47,4],[46,5,47,5],[48,0,49,0],[52,3,53,3],[52,4,53,4],[54,3,55,3],[54,4,55,4],[54,5,55,5],[56,3,57,3],[56,4,57,4],[56,5,57,5],[50,0,51,0],[50,1,51,1],[50,2,51,2],[50,3,51,3],[50,4,51,4],[50,5,51,5],[52,0,53,0],[52,5,53,5],[56,0,57,0],[58,5,59,5],[90,0,91,0],[90,1,91,1],[90,2,91,2],[90,3,91,3],[90,4,91,4],[90,5,91,5],[62,1,63,1],[62,2,63,2],[64,1,65,1],[64,2,65,2],[64,3,65,3],[64,4,65,4],[64,5,65,5],[72,1,73,1],[72,2,73,2],[72,3,73,3],[86,1,87,1],[86,2,87,2],[66,2,67,2],[66,3,67,3],[66,4,67,4],[66,5,67,5],[70,3,71,3],[70,4,71,4],[68,0,69,0],[68,1,69,1],[68,2,69,2],[68,3,69,3],[68,4,69,4],[68,5,69,5],[70,0,71,0],[70,5,71,5],[70,1,71,1],[70,2,71,2],[86,5,87,5],[72,0,73,0],[74,0,75,0],[74,1,75,1],[74,2,75,2],[74,3,75,3],[74,4,75,4],[74,5,75,5],[78,3,79,3],[78,4,79,4],[76,0,77,0],[76,1,77,1],[76,2,77,2],[76,3,77,3],[76,4,77,4],[76,5,77,5],[78,0,79,0],[78,5,79,5],[78,1,79,1],[78,2,79,2],[80,1,81,1],[80,2,81,2],[80,3,81,3],[80,4,81,4],[106,0,107,0],[106,1,107,1],[106,2,107,2],[106,3,107,3],[106,4,107,4],[106,5,107,5],[108,0,109,0],[108,5,109,5],[80,0,81,0],[82,0,83,0],[82,1,83,1],[82,2,83,2],[82,3,83,3],[82,4,83,4],[82,5,83,5],[86,3,87,3],[86,4,87,4],[84,0,85,0],[84,1,85,1],[84,2,85,2],[84,3,85,3],[84,4,85,4],[84,5,85,5],[86,0,87,0],[92,0,93,0],[92,1,93,1],[92,2,93,2],[92,3,93,3],[92,4,93,4],[92,5,93,5],[94,0,95,0],[98,3,99,3],[98,4,99,4],[94,1,95,1],[94,2,95,2],[94,5,95,5],[94,3,95,3],[94,4,95,4],[100,5,101,5],[102,3,103,3],[102,4,103,4],[102,5,103,5],[96,0,97,0],[96,1,97,1],[96,2,97,2],[96,3,97,3],[96,4,97,4],[96,5,97,5],[98,0,99,0],[98,5,99,5],[102,0,103,0],[98,1,99,1],[98,2,99,2],[100,0,101,0],[100,1,101,1],[100,2,101,2],[102,1,103,1],[102,2,103,2],[100,3,101,3],[100,4,101,4],[126,5,127,5],[140,3,141,3],[140,4,141,4],[104,0,105,0],[104,1,105,1],[104,2,105,2],[104,3,105,3],[104,4,105,4],[104,5,105,5],[132,1,133,1],[132,2,133,2],[134,1,135,1],[134,2,135,2],[134,3,135,3],[134,4,135,4],[134,5,135,5],[134,0,135,0],[136,0,137,0],[136,1,137,1],[136,2,137,2],[136,3,137,3],[136,4,137,4],[136,5,137,5],[108,3,109,3],[108,1,109,1],[108,2,109,2],[110,1,111,1],[110,2,111,2],[110,3,111,3],[110,4,111,4],[110,5,111,5],[118,1,119,1],[118,2,119,2],[118,3,119,3],[118,4,119,4],[118,5,119,5],[108,4,109,4],[110,0,111,0],[112,0,113,0],[112,1,113,1],[112,2,113,2],[112,3,113,3],[112,4,113,4],[112,5,113,5],[116,3,117,3],[116,4,117,4],[114,0,115,0],[114,1,115,1],[114,2,115,2],[114,3,115,3],[114,4,115,4],[114,5,115,5],[116,0,117,0],[116,5,117,5],[116,1,117,1],[116,2,117,2],[132,5,133,5],[118,0,119,0],[120,0,121,0],[120,1,121,1],[120,2,121,2],[120,3,121,3],[120,4,121,4],[120,5,121,5],[124,3,125,3],[124,4,125,4],[122,0,123,0],[122,1,123,1],[122,2,123,2],[122,3,123,3],[122,4,123,4],[122,5,123,5],[124,0,125,0],[124,5,125,5],[124,1,125,1],[124,2,125,2],[126,1,127,1],[126,2,127,2],[126,3,127,3],[126,4,127,4],[152,0,153,0],[152,1,153,1],[152,2,153,2],[152,3,153,3],[152,4,153,4],[152,5,153,5],[154,0,155,0],[154,5,155,5],[126,0,127,0],[128,0,129,0],[128,1,129,1],[128,2,129,2],[128,3,129,3],[128,4,129,4],[128,5,129,5],[132,3,133,3],[132,4,133,4],[130,0,131,0],[130,1,131,1],[130,2,131,2],[130,3,131,3],[130,4,131,4],[130,5,131,5],[132,0,133,0],[138,0,139,0],[138,1,139,1],[138,2,139,2],[138,3,139,3],[138,4,139,4],[138,5,139,5],[140,0,141,0],[144,3,145,3],[144,4,145,4],[140,1,141,1],[140,2,141,2],[140,5,141,5],[146,5,147,5],[148,3,149,3],[148,4,149,4],[148,5,149,5],[142,0,143,0],[142,1,143,1],[142,2,143,2],[142,3,143,3],[142,4,143,4],[142,5,143,5],[144,0,145,0],[144,5,145,5],[148,0,149,0],[144,1,145,1],[144,2,145,2],[146,0,147,0],[146,1,147,1],[146,2,147,2],[148,1,149,1],[148,2,149,2],[146,3,147,3],[146,4,147,4],[172,5,173,5],[186,3,187,3],[186,4,187,4],[150,0,151,0],[150,1,151,1],[150,2,151,2],[150,3,151,3],[150,4,151,4],[150,5,151,5],[178,1,179,1],[178,2,179,2],[180,1,181,1],[180,2,181,2],[180,3,181,3],[180,4,181,4],[180,5,181,5],[180,0,181,0],[182,0,183,0],[182,1,183,1],[182,2,183,2],[182,3,183,3],[182,4,183,4],[182,5,183,5],[154,3,155,3],[154,1,155,1],[154,2,155,2],[156,1,157,1],[156,2,157,2],[156,3,157,3],[156,4,157,4],[156,5,157,5],[164,1,165,1],[164,2,165,2],[164,3,165,3],[164,4,165,4],[164,5,165,5],[154,4,155,4],[156,0,157,0],[158,0,159,0],[158,1,159,1],[158,2,159,2],[158,3,159,3],[158,4,159,4],[158,5,159,5],[162,3,163,3],[162,4,163,4],[160,0,161,0],[160,1,161,1],[160,2,161,2],[160,3,161,3],[160,4,161,4],[160,5,161,5],[162,0,163,0],[162,5,163,5],[162,1,163,1],[162,2,163,2],[178,5,179,5],[164,0,165,0],[166,0,167,0],[166,1,167,1],[166,2,167,2],[166,3,167,3],[166,4,167,4],[166,5,167,5],[170,3,171,3],[170,4,171,4],[168,0,169,0],[168,1,169,1],[168,2,169,2],[168,3,169,3],[168,4,169,4],[168,5,169,5],[170,0,171,0],[170,5,171,5],[170,1,171,1],[170,2,171,2],[172,1,173,1],[172,2,173,2],[172,3,173,3],[172,4,173,4],[198,0,199,0],[198,1,199,1],[198,2,199,2],[198,3,199,3],[198,4,199,4],[198,5,199,5],[200,0,201,0],[200,5,201,5],[172,0,173,0],[174,0,175,0],[174,1,175,1],[174,2,175,2],[174,3,175,3],[174,4,175,4],[174,5,175,5],[178,3,179,3],[178,4,179,4],[176,0,177,0],[176,1,177,1],[176,2,177,2],[176,3,177,3],[176,4,177,4],[176,5,177,5],[178,0,179,0],[184,0,185,0],[184,1,185,1],[184,2,185,2],[184,3,185,3],[184,4,185,4],[184,5,185,5],[186,0,187,0],[190,3,191,3],[190,4,191,4],[186,1,187,1],[186,2,187,2],[186,5,187,5],[188,0,189,0],[188,1,189,1],[188,2,189,2],[188,3,189,3],[188,4,189,4],[188,5,189,5],[190,0,191,0],[190,5,191,5],[194,0,195,0],[196,0,197,0],[196,1,197,1],[196,2,197,2],[196,3,197,3],[196,4,197,4],[196,5,197,5],[190,1,191,1],[190,2,191,2],[192,0,193,0],[192,1,193,1],[192,2,193,2],[194,1,195,1],[194,2,195,2],[192,3,193,3],[192,4,193,4],[192,5,193,5],[194,3,195,3],[194,4,195,4],[194,5,195,5],[204,3,205,3],[204,4,205,4],[206,2,207,2],[206,3,207,3],[206,4,207,4],[206,5,207,5],[200,1,201,1],[200,2,201,2],[202,2,203,2],[202,3,203,3],[202,4,203,4],[202,5,203,5],[204,2,205,2],[204,5,205,5],[200,3,201,3],[200,4,201,4]]}
[]
["ID","الاسم","ساعات ","ايام ","سلف","s"]
[1,"احمد الحديدي",{"$f":"'شهر 10'!AI3","v":0},{"$f":"'شهر 10'!AJ3","v":0},{"$f":"'شهر 10'!AK3","v":0}]
[]
[2,"مدحت عصام",{"$f":"'شهر 10'!AI5","v":0},{"$f":"'شهر 10'!AJ5","v":0},{"$f":"'شهر 10'!AK5","v":0}]
[]
[3,"منير العيسوى",{"$f":"'شهر 10'!AI7","v":0},{"$f":"'شهر 10'!AJ7","v":0},{"$f":"'شهر 10'!AK7","v":0}]
[]
[4,"باسم ابو الخير",{"$f":"'شهر 10'!AI9","v":0},{"$f":"'شهر 10'!AJ9","v":0},{"$f":"'شهر 10'!AK9","v":0}]
[]
[5,"عبد الطيف المرسي",{"$f":"'شهر 10'!AI11","v":0},{"$f":"'شهر 10'!AJ11","v":0},{"$f":"'شهر 10'!AK11","v":0}]
[]
[6,"محمود ابراهيم ضيف",{"$f":"'شهر 10'!AI13","v":0},{"$f":"'شهر 10'!AJ13","v":0},{"$f":"'شهر 10'!AK13","v":0}]
[]
[7,"خليل محمد خليل",{"$f":"'شهر 10'!AI15","v":0},{"$f":"'شهر 10'!AJ15","v":0},{"$f":"'شهر 10'!AK15","v":0}]
[]
[8,"حسام محسن",{"$f":"'شهر 10'!AI17","v":0},{"$f":"'شهر 10'!AJ17","v":0},{"$f":"'شهر 10'!AK17","v":0}]
[]
[9,"محمود المحلاوي",{"$f":"'شهر 10'!AI19","v":0},{"$f":"'شهر 10'!AJ19","v":0},{"$f":"'شهر 10'!AK19","v":0}]
[]
[10,"رضا رمضان الرشيدي",{"$f":"'شهر 10'!AI21","v":0},{"$f":"'شهر 10'!AJ21","v":0},{"$f":"'شهر 10'!AK21","v":0}]
[]
[11,"السيد الدمرداش",{"$f":"'شهر 10'!AI23","v":0},{"$f":"'شهر 10'!AJ23","v":0},{"$f":"'شهر 10'!AK23","v":0}]
[]
[12,"على صبح عطية",{"$f":"'شهر 10'!AI25","v":0},{"$f":"'شهر 10'!AJ25","v":0},{"$f":"'شهر 10'!AK25","v":0}]
[]
[13,"سعد الدين عماد",{"$f":"'شهر 10'!AI27","v":0},{"$f":"'شهر 10'!AJ27","v":0},{"$f":"'شهر 10'!AK27","v":0}]
[]
[14,"صلاح محمد",{"$f":"'شهر 10'!AI29","v":0},{"$f":"'شهر 10'!AJ29","v":0},{"$f":"'شهر 10'!AK29","v":0}]
[]
[15,"يوسف منصور",{"$f":"'شهر 10'!AI31","v":0},{"$f":"'شهر 10'!AJ31","v":0},{"$f":"'شهر 10'!AK31","v":0}]
[]
[16,"ابراهيم نصحي",{"$f":"'شهر 10'!AI33","v":0},{"$f":"'شهر 10'!AJ33","v":0},{"$f":"'شهر 10'!AK33","v":0}]
[]
[17,"احمد علام",{"$f":"'شهر 10'!AI35","v":0},{"$f":"'شهر 10'!AJ35","v":0},{"$f":"'شهر 10'!AK35","v":0}]
[]
[18,"عبد العزيز عبد الشافى",{"$f":"'شهر 10'!AI37","v":0},{"$f":"'شهر 10'!AJ37","v":0},{"$f":"'شهر 10'!AK37","v":0}]
[]
[19,"باسم ابو بكر",{"$f":"'شهر 10'!AI39","v":0},{"$f":"'شهر 10'!AJ39","v":0},{"$f":"'شهر 10'!AK39","v":0}]
[]
[20,"احمد محمد الدمرداش",{"$f":"'شهر 10'!AI41","v":0},{"$f":"'شهر 10'!AJ41","v":0},{"$f":"'شهر 10'!AK41","v":0}]
[]
[21,"محمد احمد جمعه",{"$f":"'شهر 10'!AI43","v":0},{"$f":"'شهر 10'!AJ43","v":0},{"$f":"'شهر 10'!AK43","v":0}]
[]
[22,"السيد رمضان الدسوقى",{"$f":"'شهر 10'!AI45","v":0},{"$f":"'شهر 10'!AJ45","v":0},{"$f":"'شهر 10'!AK45","v":0}]
[]
[23,"على السيد عبد الكريم",{"$f":"'شهر 10'!AI47","v":0},{"$f":"'شهر 10'!AJ47","v":0},{"$f":"'شهر 10'!AK47","v":0}]
[]
[24,"حلمي احمد العجوز",{"$f":"'شهر 10'!AI49","v":0},{"$f":"'شهر 10'!AJ49","v":0},{"$f":"'شهر 10'!AK49","v":0}]
[]
[25,"فارس على عبوده",{"$f":"'شهر 10'!AI51","v":0},{"$f":"'شهر 10'!AJ51","v":0},{"$f":"'شهر 10'!AK51","v":0}]
[]
[26,"محمد عبوده عبد المولى",{"$f":"'شهر 10'!AI53","v":0},{"$f":"'شهر 10'!AJ53","v":0},{"$f":"'شهر 10'!AK53","v":0}]
[]
[27,"ايمن عبوده عبد المولى",{"$f":"'شهر 10'!AI55","v":0},{"$f":"'شهر 10'!AJ55","v":0},{"$f":"'شهر 10'!AK55","v":0}]
[]
[28,"حاتم عبوده عبد المولى",{"$f":"'شهر 10'!AI57","v":0},{"$f":"'شهر 10'!AJ57","v":0},{"$f":"'شهر 10'!AK57","v":0}]
[]
[29,"نادر عبد العال",{"$f":"'شهر 10'!AI59","v":0},{"$f":"'شهر 10'!AJ59","v":0},{"$f":"'شهر 10'!AK59","v":0}]
[]
[30,"محمد متولى عباس",{"$f":"'شهر 10'!AI61","v":0},{"$f":"'شهر 10'!AJ61","v":0},{"$f":"'شهر 10'!AK61","v":0}]
[]
[31,"السعيد الشرقاوي",{"$f":"'شهر 10'!AI63","v":0},{"$f":"'شهر 10'!AJ63","v":0},{"$f":"'شهر 10'!AK63","v":0}]
[]
[32,"عزيز فتحي سعفان",{"$f":"'شهر 10'!AI65","v":0},{"$f":"'شهر 10'!AJ65","v":0},{"$f":"'شهر 10'!AK65","v":0}]
[]
[33,"محمود سعد محمود",{"$f":"'شهر 10'!AI67","v":0},{"$f":"'شهر 10'!AJ67","v":0},{"$f":"'شهر 10'!AK67","v":0}]
[]
[34,"حسن محمد طة",{"$f":"'شهر 10'!AI69","v":0},{"$f":"'شهر 10'!AJ69","v":0},{"$f":"'شهر 10'!AK69","v":0}]
[]
[35,"حسين محمد حسين",{"$f":"'شهر 10'!AI71","v":0},{"$f":"'شهر 10'!AJ71","v":0},{"$f":"'شهر 10'!AK71","v":0}]
[]
[36,"محمد ابراهيم محمد",{"$f":"'شهر 10'!AI73","v":0},{"$f":"'شهر 10'!AJ73","v":0},{"$f":"'شهر 10'!AK73","v":0}]
[]
[37,"مصطفى حسن (القاهرة)",{"$f":"'شهر 10'!AI75","v":0},{"$f":"'شهر 10'!AJ75","v":0},{"$f":"'شهر 10'!AK75","v":0}]
[]
[38,"سمير صلاح",{"$f":"'شهر 10'!AI77","v":0},{"$f":"'شهر 10'!AJ77","v":0},{"$f":"'شهر 10'!AK77","v":0}]
[]
[39,"رمضان ابراهيم منصور",{"$f":"'شهر 10'!AI79","v":0},{"$f":"'شهر 10'!AJ79","v":0},{"$f":"'شهر 10'!AK79","v":0}]
[]
[40,"يوسف الدكروري",{"$f":"'شهر 10'!AI81","v":0},{"$f":"'شهر 10'!AJ81","v":0},{"$f":"'شهر 10'!AK81","v":0}]
[]
[41,"علاء احمد ابراهيم",{"$f":"'شهر 10'!AI83","v":0},{"$f":"'شهر 10'!AJ83","v":0},{"$f":"'شهر 10'!AK83","v":0}]
[]
[42,"محمد ابراهيم السيد عقل",{"$f":"'شهر 10'!AI85","v":0},{"$f":"'شهر 10'!AJ85","v":0},{"$f":"'شهر 10'!AK85","v":0}]
[]
[43,"السيد رمضان",{"$f":"'شهر 10'!AI87","v":0},{"$f":"'شهر 10'!AJ87","v":0},{"$f":"'شهر 10'!AK87","v":0}]
[]
[44,"فارس شاكوش",{"$f":"'شهر 10'!AI89","v":0},{"$f":"'شهر 10'!AJ89","v":0},{"$f":"'شهر 10'!AK89","v":0}]
[]
[45,null,{"$f":"'شهر 10'!AI91","v":0},{"$f":"'شهر 10'!AJ91","v":0},{"$f":"'شهر 10'!AK91","v":0}]
[]
[46,"السيد نشأت",{"$f":"'شهر 10'!AI93","v":0},{"$f":"'شهر 10'!AJ93","v":0},{"$f":"'شهر 10'!AK93","v":0}]
[]
[47,"محمود ابراهيم",{"$f":"'شهر 10'!AI95","v":0},{"$f":"'شهر 10'!AJ95","v":0},{"$f":"'شهر 10'!AK95","v":0}]
[]
[48,"نصراحمد مسعد",{"$f":"'شهر 10'!AI97","v":0},{"$f":"'شهر 10'!AJ97","v":0},{"$f":"'شهر 10'!AK97","v":0}]
[]
[49,"ايمن جمعة ",{"$f":"'شهر 10'!AI99","v":0},{"$f":"'شهر 10'!AJ99","v":0},{"$f":"'شهر 10'!AK99","v":0}]
[]
[50,null,{"$f":"'شهر 10'!AI101","v":0},{"$f":"'شهر 10'!AJ101","v":0},{"$f":"'شهر 10'!AK101","v":0}]
[]
[51,"حسام محسن ابراهيم",{"$f":"'شهر 10'!AI103","v":0},{"$f":"'شهر 10'!AJ103","v":0},{"$f":"'شهر 10'!AK103","v":0}]
[]
[52,"محمد رمضان ابراهيم",{"$f":"'شهر 10'!AI105","v":0},{"$f":"'شهر 10'!AJ105","v":0},{"$f":"'شهر 10'!AK105","v":0}]
[]
[53,"علام السيد",{"$f":"'شهر 10'!AI107","v":0},{"$f":"'شهر 10'!AJ107","v":0},{"$f":"'شهر 10'!AK107","v":0}]
[]
[54,"محمد سكر",{"$f":"'شهر 10'!AI109","v":0},{"$f":"'شهر 10'!AJ109","v":0},{"$f":"'شهر 10'!AK109","v":0}]
[]
[55,"محمد الدمرداش",{"$f":"'شهر 10'!AI111","v":0},{"$f":"'شهر 10'!AJ111","v":0},{"$f":"'شهر 10'!AK111","v":0}]
[]
[56,"عيد المتولى",{"$f":"'شهر 10'!AI113","v":0},{"$f":"'شهر 10'!AJ113","v":0},{"$f":"'شهر 10'!AK113","v":0}]
[]
[57,"سمير الشحات",{"$f":"'شهر 10'!AI115","v":0},{"$f":"'شهر 10'!AJ115","v":0},{"$f":"'شهر 10'!AK115","v":0}]
[]
[58,"حسام محمدان",{"$f":"'شهر 10'!AI117","v":0},{"$f":"'شهر 10'!AJ117","v":0},{"$f":"'شهر 10'!AK117","v":0}]
[]
[59,"رمضان الخميسى",{"$f":"'شهر 10'!AI119","v":0},{"$f":"'شهر 10'!AJ119","v":0},{"$f":"'شهر 10'!AK119","v":0}]
[]
[60,"السيد ذاكى",{"$f":"'شهر 10'!AI121","v":0},{"$f":"'شهر 10'!AJ121","v":0},{"$f":"'شهر 10'!AK121","v":0}]
[]
[61,"احمد فكرى",{"$f":"'شهر 10'!AI123","v":0},{"$f":"'شهر 10'!AJ123","v":0},{"$f":"'شهر 10'!AK123","v":0}]
[]
[62,"محمد سعد",{"$f":"'شهر 10'!AI125","v":0},{"$f":"'شهر 10'!AJ125","v":0},{"$f":"'شهر 10'!AK125","v":0}]
[]
[63,"احمد محمود السعيد",{"$f":"'شهر 10'!AI127","v":0},{"$f":"'شهر 10'!AJ127","v":0},{"$f":"'شهر 10'!AK127","v":0}]
[]
[64,"خالد عزت",{"$f":"'شهر 10'!AI129","v":0},{"$f":"'شهر 10'!AJ129","v":0},{"$f":"'شهر 10'!AK129","v":0}]
[]
[65,"سامح محمد الرشيدى",{"$f":"'شهر 10'!AI131","v":0},{"$f":"'شهر 10'!AJ131","v":0},{"$f":"'شهر 10'!AK131","v":0}]
[]
[66,"خالد وليد",{"$f":"'شهر 10'!AI133","v":0},{"$f":"'شهر 10'!AJ133","v":0},{"$f":"'شهر 10'!AK133","v":0}]
[]
[67,"محمد امر الله",{"$f":"'شهر 10'!AI135","v":0},{"$f":"'شهر 10'!AJ135","v":0},{"$f":"'شهر 10'!AK135","v":0}]
[]
[68,"فايز المحلاوى",{"$f":"'شهر 10'!AI137","v":0},{"$f":"'شهر 10'!AJ137","v":0},{"$f":"'شهر 10'!AK137","v":0}]
[]
[69,"هشام محمود السعيد",{"$f":"'شهر 10'!AI139","v":0},{"$f":"'شهر 10'!AJ139","v":0},{"$f":"'شهر 10'!AK139","v":0}]
[]
[70,"صالح محمد نواره",{"$f":"'شهر 10'!AI141","v":0},{"$f":"'شهر 10'!AJ141","v":0},{"$f":"'شهر 10'!AK141","v":0}]
[]
[71,"محمد السيد السيد",{"$f":"'شهر 10'!AI143","v":0},{"$f":"'شهر 10'!AJ143","v":0},{"$f":"'شهر 10'!AK143","v":0}]
[]
[72,"محمود السيد السيد",{"$f":"'شهر 10'!AI145","v":0},{"$f":"'شهر 10'!AJ145","v":0},{"$f":"'شهر 10'!AK145","v":0}]
[]
[73,"ابراهيم عبد الخالق",{"$f":"'شهر 10'!AI147","v":0},{"$f":"'شهر 10'!AJ147","v":0},{"$f":"'شهر 10'!AK147","v":0}]
[]
[74,"محمد شحاته",{"$f":"'شهر 10'!AI149","v":0},{"$f":"'شهر 10'!AJ149","v":0},{"$f":"'شهر 10'!AK149","v":0}]
[]
[75,"ابراهيم القطب",{"$f":"'شهر 10'!AI151","v":0},{"$f":"'شهر 10'!AJ151","v":0},{"$f":"'شهر 10'!AK151","v":0}]
[]
[76,"محمد احمد الطيب",{"$f":"'شهر 10'!AI153","v":0},{"$f":"'شهر 10'!AJ153","v":0},{"$f":"'شهر 10'!AK153","v":0}]
[]
[77,"حماده عونى",{"$f":"'شهر 10'!AI155","v":0},{"$f":"'شهر 10'!AJ155","v":0},{"$f":"'شهر 10'!AK155","v":0}]
[]
[78,"محمد عادل مرعي",{"$f":"'شهر 10'!AI157","v":0},{"$f":"'شهر 10'!AJ157","v":0},{"$f":"'شهر 10'!AK157","v":0}]
[]
[79,"محمد اسعد",{"$f":"'شهر 10'!AI159","v":0},{"$f":"'شهر 10'!AJ159","v":0},{"$f":"'شهر 10'!AK159","v":0}]
[]
[80,"المتولى محمد شحاتة",{"$f":"'شهر 10'!AI161","v":0},{"$f":"'شهر 10'!AJ161","v":0},{"$f":"'شهر 10'!AK161","v":0}]
[]
[81,"محمد عوضين الدكش",{"$f":"'شهر 10'!AI163","v":0},{"$f":"'شهر 10'!AJ163","v":0},{"$f":"'شهر 10'!AK163","v":0}]
[]
[82,"رجب الشحات",{"$f":"'شهر 10'!AI165","v":0},{"$f":"'شهر 10'!AJ165","v":0},{"$f":"'شهر 10'!AK165","v":0}]
[]
[83,null,{"$f":"'شهر 10'!AI167","v":0},{"$f":"'شهر 10'!AJ167","v":0},{"$f":"'شهر 10'!AK167","v":0}]
[]
[84,null,{"$f":"'شهر 10'!AI169","v":0},{"$f":"'شهر 10'!AJ169","v":0},{"$f":"'شهر 10'!AK169","v":0}]
[]
[85,"ابراهيم العيسوى",{"$f":"'شهر 10'!AI171","v":0},{"$f":"'شهر 10'!AJ171","v":0},{"$f":"'شهر 10'!AK171","v":0}]
[]
[86,null,{"$f":"'شهر 10'!AI173","v":0},{"$f":"'شهر 10'!AJ173","v":0},{"$f":"'شهر 10'!AK173","v":0}]
[]
[87,null,{"$f":"'شهر 10'!AI175","v":0},{"$f":"'شهر 10'!AJ175","v":0},{"$f":"'شهر 10'!AK175","v":0}]
[]
[88,null,{"$f":"'شهر 10'!AI177","v":0},{"$f":"'شهر 10'!AJ177","v":0},{"$f":"'شهر 10'!AK177","v":0}]
[]
[89,null,{"$f":"'شهر 10'!AI179","v":0},{"$f":"'شهر 10'!AJ179","v":0},{"$f":"'شهر 10'!AK179","v":0}]
[]
[90,null,{"$f":"'شهر 10'!AI181","v":0},{"$f":"'شهر 10'!AJ181","v":0},{"$f":"'شهر 10'!AK181","v":0}]
[]
[91,null,{"$f":"'شهر 10'!AI183","v":0},{"$f":"'شهر 10'!AJ183","v":0},{"$f":"'شهر 10'!AK183","v":0}]
[]
[92,null,{"$f":"'شهر 10'!AI185","v":0},{"$f":"'شهر 10'!AJ185","v":0},{"$f":"'شهر 10'!AK185","v":0}]
[]
[93,null,{"$f":"'شهر 10'!AI187","v":0},{"$f":"'شهر 10'!AJ187","v":0},{"$f":"'شهر 10'!AK187","v":0}]
[]
[94,null,{"$f":"'شهر 10'!AI189","v":0},{"$f":"'شهر 10'!AJ189","v":0},{"$f":"'شهر 10'!AK189","v":0}]
[]
[95,null,{"$f":"'شهر 10'!AI191","v":0},{"$f":"'شهر 10'!AJ191","v":0},{"$f":"'شهر 10'!AK191","v":0}]
[]
[96,null,{"$f":"'شهر 10'!AI193","v":0},{"$f":"'شهر 10'!AJ193","v":0},{"$f":"'شهر 10'!AK193","v":0}]
[]
[97,null,{"$f":"'شهر 10'!AI195","v":0},{"$f":"'شهر 10'!AJ195","v":0},{"$f":"'شهر 10'!AK195","v":0}]
[]
[98,null,{"$f":"'شهر 10'!AI197","v":0},{"$f":"'شهر 10'!AJ197","v":0},{"$f":"'شهر 10'!AK197","v":0}]
[]
[99,null,{"$f":"'شهر 10'!AI199","v":0},{"$f":"'شهر 10'!AJ199","v":0},{"$f":"'شهر 10'!AK199","v":0}]
[]
[100,null,{"$f":"'شهر 10'!AI201","v":0},{"$f":"'شهر 10'!AJ201","v":0},{"$f":"'شهر 10'!AK201","v":0}]
[]
[null,null,{"$f":"'شهر 10'!AI203","v":0},{"$f":"'شهر 10'!AJ203","v":0},{"$f":"'شهر 10'!AK203","v":0}]
[]
[null,null,{"$f":"'شهر 10'!AI205","v":0},{"$f":"'شهر 10'!AJ205","v":0},{"$f":"'شهر 10'!AK205","v":0}]
[]
[null,null,{"$f":"'شهر 10'!AI207","v":0},{"$f":"'شهر 10'!AJ207","v":0},{"$f":"'شهر 10'!AK207","v":0}]

{"sheet":"الرئيسية (1)","index":4,"n_rows":9,"n_cols":6,"rows_kept":9,"cut":false,"hidden":true,"merged":[[7,2,7,3],[8,2,8,3],[0,0,0,8],[1,0,1,8],[2,0,2,8],[4,1,4,3],[5,1,5,3]]}
["كشف حدادين"]
["من شهر 10/2021"]
["الي شهر 12/2021"]
[]
[]
["الاسم",26,null,null,"شهر","شهر 8"]
[]
[null,"ID","حضور",null,"سلف"]
[null,{"$f":"VLOOKUP($B$6,#REF!,MATCH(B$8,#REF!,0),FALSE)","v":{"$error":"#REF!"}},{"$error":"#REF!"},null,{"$f":"VLOOKUP($B$6,#REF!,MATCH(E$8,#REF!,0),FALSE)","v":{"$error":"#REF!"}}]

{"sheet":"الرئيسية (2)","index":5,"n_rows":9,"n_cols":6,"rows_kept":9,"cut":false,"hidden":true,"merged":[[7,2,7,3],[8,2,8,3],[0,0,0,8],[1,0,1,8],[2,0,2,8],[4,1,4,3],[5,1,5,3]]}
["كشف حدادين"]
["من شهر 10/2021"]
["الي شهر 12/2021"]
[]
[]
["الاسم",26,null,null,"شهر","شهر 8"]
[]
[null,"ID","حضور",null,"سلف"]
[null,{"$f":"VLOOKUP($B$6,#REF!,MATCH(B$8,#REF!,0),FALSE)","v":{"$error":"#REF!"}},{"$error":"#REF!"},null,{"$f":"VLOOKUP($B$6,#REF!,MATCH(E$8,#REF!,0),FALSE)","v":{"$error":"#REF!"}}]

{"sheet":"كارت حضور عاملين","index":6,"n_rows":489,"n_cols":80,"rows_kept":489,"cut":false,"hidden":false,"merged":[[222,49,222,56],[222,57,222,59],[222,60,222,63],[222,65,222,72],[223,41,223,43],[223,44,223,47],[223,49,223,56],[223,57,223,59],[223,60,223,63],[223,65,223,72],[223,73,223,75],[223,76,223,79],[223,1,223,8],[223,9,223,11],[223,12,223,15],[223,17,223,24],[223,25,223,27],[223,28,223,31],[223,33,223,40],[224,65,224,72],[224,73,224,75],[224,76,224,79],[224,1,224,8],[224,9,224,11],[224,12,224,15],[224,17,224,24],[224,25,224,27],[224,28,224,31],[224,33,224,40],[243,65,243,70],[245,64,245,79],[237,65,237,68],[237,73,237,75],[237,76,237,79],[239,66,239,76],[241,64,241,79],[243,72,243,74],[243,75,243,79],[236,65,236,68],[236,73,236,75],[236,76,236,79],[237,17,237,20],[245,0,245,15],[187,17,187,20],[188,17,188,20],[190,18,190,28],[192,16,192,31],[194,17,194,22],[194,24,194,26],[194,27,194,31],[196,16,196,31],[196,32,196,47],[188,57,188,59],[188,60,188,63],[190,50,190,60],[192,48,192,63],[194,49,194,54],[194,56,194,58],[194,59,194,63],[236,57,236,59],[236,60,236,63],[236,17,236,20],[187,25,187,27],[199,41,199,43],[199,44,199,47],[199,49,199,56],[199,57,199,59],[199,60,199,63],[212,57,212,59],[212,60,212,63],[224,41,224,43],[224,44,224,47],[224,49,224,56],[224,57,224,59],[224,60,224,63],[188,1,188,4],[188,12,188,15],[188,25,188,27],[187,28,187,31],[188,28,188,31],[187,41,187,43],[188,41,188,43],[190,34,190,44],[192,32,192,47],[194,33,194,38],[194,40,194,42],[194,43,194,47],[237,60,237,63],[239,50,239,60],[241,48,241,63],[243,49,243,54],[243,56,243,58],[243,59,243,63],[239,18,239,28],[241,16,241,31],[243,17,243,22],[243,24,243,26],[243,27,243,31],[236,1,236,4],[236,6,237,7],[236,12,236,15],[236,22,237,23],[236,25,236,27],[237,1,237,4],[237,12,237,15],[237,25,237,27],[196,48,196,63],[194,65,194,70],[196,64,196,79],[188,65,188,68],[188,73,188,75],[188,76,188,79],[190,66,190,76],[192,64,192,79],[194,72,194,74],[194,75,194,79],[198,73,198,75],[198,76,198,79],[198,33,198,40],[198,41,198,43],[198,44,198,47],[198,49,198,56],[198,57,198,59],[198,60,198,63],[198,65,198,72],[188,49,188,52],[199,65,199,72],[199,73,199,75],[199,76,199,79],[199,1,199,8],[199,9,199,11],[199,12,199,15],[199,17,199,24],[199,25,199,27],[199,28,199,31],[199,33,199,40],[200,41,200,43],[200,44,200,47],[200,49,200,56],[200,57,200,59],[200,60,200,63],[200,65,200,72],[200,73,200,75],[200,76,200,79],[200,1,200,8],[200,9,200,11],[200,12,200,15],[200,17,200,24],[200,25,200,27],[200,28,200,31],[200,33,200,40],[212,65,212,68],[212,73,212,75],[212,76,212,79],[212,49,212,52],[213,49,213,52],[212,33,212,36],[212,38,213,39],[212,44,212,47],[212,54,213,55],[212,70,213,71],[213,33,213,36],[213,44,213,47],[212,17,212,20],[213,17,213,20],[215,18,215,28],[213,57,213,59],[213,60,213,63],[215,50,215,60],[212,1,212,4],[212,6,213,7],[212,12,212,15],[212,22,213,23],[212,25,212,27],[213,1,213,4],[213,12,213,15],[213,25,213,27],[212,28,212,31],[213,28,213,31],[212,41,212,43],[213,41,213,43],[215,34,215,44],[217,32,217,47],[219,33,219,38],[219,40,219,42],[219,43,219,47],[212,9,212,11],[219,65,219,70],[220,64,220,79],[213,65,213,68],[213,73,213,75],[213,76,213,79],[215,66,215,76],[217,64,217,79],[219,72,219,74],[219,75,219,79],[219,1,219,6],[222,1,222,8],[222,9,222,11],[222,12,222,15],[222,17,222,24],[222,25,222,27],[222,28,222,31],[213,9,213,11],[215,2,215,12],[217,0,217,15],[219,8,219,10],[219,11,219,15],[220,0,220,15],[217,16,217,31],[219,17,219,22],[219,24,219,26],[219,27,219,31],[220,16,220,31],[220,32,220,47],[222,73,222,75],[222,76,222,79],[222,33,222,40],[222,41,222,43],[247,1,247,8],[247,9,247,11],[247,12,247,15],[247,17,247,24],[247,25,247,27],[247,28,247,31],[236,9,236,11],[237,9,237,11],[239,2,239,12],[241,0,241,15],[243,1,243,6],[243,8,243,10],[243,11,243,15],[217,48,217,63],[219,49,219,54],[219,56,219,58],[219,59,219,63],[220,48,220,63],[245,48,245,63],[245,16,245,31],[236,28,236,31],[237,28,237,31],[236,41,236,43],[237,41,237,43],[239,34,239,44],[241,32,241,47],[243,33,243,38],[243,40,243,42],[243,43,243,47],[245,32,245,47],[237,57,237,59],[222,44,222,47],[335,65,335,68],[335,73,335,75],[335,76,335,79],[334,49,334,52],[335,49,335,52],[334,54,335,55],[334,70,335,71],[320,73,320,75],[320,76,320,79],[320,33,320,40],[320,41,320,43],[320,44,320,47],[320,49,320,56],[320,57,320,59],[320,60,320,63],[320,65,320,72],[321,41,321,43],[321,44,321,47],[321,49,321,56],[321,57,321,59],[321,60,321,63],[321,65,321,72],[321,73,321,75],[321,76,321,79],[321,1,321,8],[321,9,321,11],[321,12,321,15],[321,17,321,24],[321,25,321,27],[321,28,321,31],[321,33,321,40],[322,41,322,43],[322,44,322,47],[322,49,322,56],[322,57,322,59],[322,60,322,63],[322,65,322,72],[322,73,322,75],[322,76,322,79],[322,1,322,8],[322,9,322,11],[322,12,322,15],[322,17,322,24],[322,25,322,27],[322,28,322,31],[322,33,322,40],[334,28,334,31],[335,28,335,31],[334,41,334,43],[335,41,335,43],[337,34,337,44],[339,32,339,47],[341,33,341,38],[341,40,341,42],[341,43,341,47],[343,32,343,47],[334,33,334,36],[334,38,335,39],[334,44,334,47],[335,33,335,36],[335,44,335,47],[343,0,343,15],[335,57,335,59],[337,66,337,76],[339,64,339,79],[341,72,341,74],[341,75,341,79],[285,17,285,20],[286,17,286,20],[288,18,288,28],[290,16,290,31],[292,17,292,22],[292,24,292,26],[292,27,292,31],[294,16,294,31],[294,32,294,47],[286,57,286,59],[286,60,286,63],[288,50,288,60],[290,48,290,63],[292,49,292,54],[292,56,292,58],[292,59,292,63],[334,57,334,59],[334,60,334,63],[334,65,334,68],[334,73,334,75],[334,76,334,79],[334,17,334,20],[335,17,335,20],[337,18,337,28],[339,16,339,31],[292,65,292,70],[294,64,294,79],[286,65,286,68],[288,66,288,76],[290,64,290,79],[292,72,292,74],[292,75,292,79],[296,73,296,75],[296,76,296,79],[296,33,296,40],[296,41,296,43],[296,44,296,47],[296,49,296,56],[296,57,296,59],[296,60,296,63],[296,65,296,72],[286,49,286,52],[286,41,286,43],[288,34,288,44],[290,32,290,47],[292,33,292,38],[292,40,292,42],[292,43,292,47],[297,41,297,43],[297,44,297,47],[297,49,297,56],[297,57,297,59],[297,60,297,63],[297,65,297,72],[297,73,297,75],[297,76,297,79],[297,1,297,8],[297,9,297,11],[297,12,297,15],[297,17,297,24],[297,25,297,27],[297,28,297,31],[297,33,297,40],[298,41,298,43],[298,44,298,47],[298,49,298,56],[298,57,298,59],[298,60,298,63],[298,65,298,72],[298,73,298,75],[298,76,298,79],[298,1,298,8],[298,9,298,11],[298,12,298,15],[298,17,298,24],[298,25,298,27],[298,28,298,31],[298,33,298,40],[310,57,310,59],[310,60,310,63],[310,65,310,68],[310,73,310,75],[310,76,310,79],[310,49,310,52],[311,49,311,52],[310,33,310,36],[310,38,311,39],[310,44,310,47],[310,54,311,55],[310,70,311,71],[311,33,311,36],[311,44,311,47],[310,17,310,20],[311,17,311,20],[313,18,313,28],[311,57,311,59],[311,60,311,63],[313,50,313,60],[311,65,311,68],[311,73,311,75],[311,76,311,79],[313,66,313,76],[310,1,310,4],[310,6,311,7],[310,12,310,15],[310,22,311,23],[310,25,310,27],[311,1,311,4],[311,12,311,15],[311,25,311,27],[310,28,310,31],[311,28,311,31],[310,41,310,43],[311,41,311,43],[313,34,313,44],[315,32,315,47],[317,33,317,38],[317,40,317,42],[317,43,317,47],[310,9,310,11],[315,64,315,79],[317,72,317,74],[317,75,317,79],[317,1,317,6],[320,1,320,8],[320,9,320,11],[320,12,320,15],[320,17,320,24],[320,25,320,27],[320,28,320,31],[311,9,311,11],[313,2,313,12],[315,0,315,15],[317,8,317,10],[317,11,317,15],[318,0,318,15],[315,16,315,31],[317,17,317,22],[317,24,317,26],[317,27,317,31],[318,16,318,31],[318,32,318,47],[315,48,315,63],[317,49,317,54],[317,56,317,58],[317,59,317,63],[318,48,318,63],[317,65,317,70],[318,64,318,79],[345,1,345,8],[345,9,345,11],[345,12,345,15],[345,17,345,24],[345,25,345,27],[345,28,345,31],[334,9,334,11],[335,9,335,11],[337,2,337,12],[339,0,339,15],[341,1,341,6],[341,8,341,10],[341,11,341,15],[335,60,335,63],[337,50,337,60],[339,48,339,63],[341,49,341,54],[341,56,341,58],[341,59,341,63],[343,48,343,63],[341,17,341,22],[341,24,341,26],[341,27,341,31],[343,16,343,31],[334,1,334,4],[334,6,335,7],[334,12,334,15],[334,22,335,23],[334,25,334,27],[335,1,335,4],[335,12,335,15],[335,25,335,27],[341,65,341,70],[343,64,343,79],[345,73,345,75],[345,76,345,79],[345,33,345,40],[345,41,345,43],[345,44,345,47],[345,49,345,56],[345,57,345,59],[345,60,345,63],[345,65,345,72],[346,41,346,43],[346,44,346,47],[346,49,346,56],[346,57,346,59],[346,60,346,63],[346,65,346,72],[346,73,346,75],[346,76,346,79],[346,1,346,8],[346,9,346,11],[346,12,346,15],[346,17,346,24],[346,25,346,27],[346,28,346,31],[346,33,346,40],[347,41,347,43],[347,44,347,47],[347,49,347,56],[347,57,347,59],[347,60,347,63],[347,65,347,72],[347,73,347,75],[347,76,347,79],[347,1,347,8],[347,9,347,11],[347,12,347,15],[347,17,347,24],[347,25,347,27],[347,28,347,31],[347,33,347,40],[359,57,359,59],[359,60,359,63],[359,65,359,68],[359,73,359,75],[359,76,359,79],[359,49,359,52],[360,49,360,52],[359,33,359,36],[359,38,360,39],[359,44,359,47],[359,54,360,55],[359,70,360,71],[360,33,360,36],[360,44,360,47],[359,17,359,20],[360,17,360,20],[362,18,362,28],[360,57,360,59],[360,60,360,63],[362,50,362,60],[364,16,364,31],[366,17,366,22],[366,24,366,26],[366,27,366,31],[367,16,367,31],[359,1,359,4],[359,6,360,7],[359,12,359,15],[359,22,360,23],[359,25,359,27],[360,1,360,4],[360,12,360,15],[360,25,360,27],[359,28,359,31],[360,28,360,31],[359,41,359,43],[360,41,360,43],[362,34,362,44],[364,32,364,47],[366,33,366,38],[366,40,366,42],[366,43,366,47],[367,32,367,47],[359,9,359,11],[364,48,364,63],[366,49,366,54],[366,56,366,58],[366,59,366,63],[367,48,367,63],[366,65,366,70],[367,64,367,79],[360,65,360,68],[360,73,360,75],[360,76,360,79],[362,66,362,76],[364,64,364,79],[366,72,366,74],[366,75,366,79],[366,1,366,6],[369,1,369,8],[369,9,369,11],[369,12,369,15],[369,17,369,24],[369,25,369,27],[369,28,369,31],[360,9,360,11],[362,2,362,12],[364,0,364,15],[366,8,366,10],[366,11,366,15],[367,0,367,15],[369,73,369,75],[369,76,369,79],[369,33,369,40],[369,41,369,43],[369,44,369,47],[369,49,369,56],[369,57,369,59],[369,60,369,63],[369,65,369,72],[370,41,370,43],[370,44,370,47],[370,49,370,56],[370,57,370,59],[370,60,370,63],[370,65,370,72],[370,73,370,75],[370,76,370,79],[370,1,370,8],[370,9,370,11],[370,12,370,15],[370,17,370,24],[370,25,370,27],[370,28,370,31],[370,33,370,40],[371,41,371,43],[371,44,371,47],[371,49,371,56],[371,57,371,59],[371,60,371,63],[371,65,371,72],[371,73,371,75],[371,76,371,79],[371,1,371,8],[371,9,371,11],[371,12,371,15],[371,17,371,24],[371,25,371,27],[371,28,371,31],[371,33,371,40],[383,57,383,59],[383,60,383,63],[383,65,383,68],[383,73,383,75],[383,76,383,79],[383,49,383,52],[383,12,383,15],[383,22,384,23],[383,25,383,27],[384,1,384,4],[384,12,384,15],[384,25,384,27],[383,28,383,31],[384,28,384,31],[383,41,383,43],[384,41,384,43],[383,33,383,36],[392,0,392,15],[394,1,394,8],[394,9,394,11],[394,12,394,15],[394,17,394,24],[394,25,394,27],[394,28,394,31],[383,9,383,11],[384,9,384,11],[386,2,386,12],[388,0,388,15],[390,1,390,6],[390,8,390,10],[390,11,390,15],[383,17,383,20],[384,17,384,20],[386,18,386,28],[388,16,388,31],[390,17,390,22],[390,24,390,26],[390,27,390,31],[392,16,392,31],[383,1,383,4],[383,6,384,7],[418,41,418,43],[418,44,418,47],[418,49,418,56],[418,57,418,59],[418,60,418,63],[418,65,418,72],[419,41,419,43],[419,44,419,47],[419,49,419,56],[419,57,419,59],[419,60,419,63],[419,65,419,72],[419,73,419,75],[419,76,419,79],[383,38,384,39],[383,44,383,47],[383,54,384,55],[383,70,384,71],[384,44,384,47],[386,34,386,44],[388,32,388,47],[390,33,390,38],[390,40,390,42],[390,43,390,47],[392,32,392,47],[384,57,384,59],[384,60,384,63],[386,50,386,60],[388,48,388,63],[390,49,390,54],[390,56,390,58],[390,59,390,63],[419,1,419,8],[419,9,419,11],[419,12,419,15],[419,17,419,24],[419,25,419,27],[419,28,419,31],[419,33,419,40],[420,41,420,43],[420,44,420,47],[420,49,420,56],[420,57,420,59],[420,60,420,63],[420,65,420,72],[420,73,420,75],[420,76,420,79],[420,1,420,8],[420,9,420,11],[420,12,420,15],[420,17,420,24],[420,25,420,27],[420,28,420,31],[420,33,420,40],[443,76,443,79],[432,57,432,59],[432,60,432,63],[432,65,432,68],[432,73,432,75],[432,76,432,79],[432,17,432,20],[433,17,433,20],[435,18,435,28],[437,16,437,31],[439,17,439,22],[439,24,439,26],[439,27,439,31],[441,16,441,31],[432,1,432,4],[432,6,433,7],[432,12,432,15],[432,22,433,23],[432,25,432,27],[433,1,433,4],[433,12,433,15],[433,25,433,27],[432,28,432,31],[433,28,433,31],[432,41,432,43],[433,41,433,43],[435,34,435,44],[437,32,437,47],[439,33,439,38],[439,40,439,42],[439,43,439,47],[441,32,441,47],[444,41,444,43],[444,44,444,47],[444,49,444,56],[444,57,444,59],[444,60,444,63],[444,65,444,72],[444,73,444,75],[444,76,444,79],[444,1,444,8],[444,9,444,11],[444,12,444,15],[444,17,444,24],[444,25,444,27],[444,28,444,31],[444,33,444,40],[433,60,433,63],[435,50,435,60],[437,48,437,63],[439,49,439,54],[439,56,439,58],[439,59,439,63],[441,48,441,63],[439,65,439,70],[441,64,441,79],[433,65,433,68],[433,73,433,75],[433,76,433,79],[435,66,435,76],[437,64,437,79],[439,72,439,74],[439,75,439,79],[443,73,443,75],[445,41,445,43],[445,44,445,47],[445,49,445,56],[445,57,445,59],[445,60,445,63],[445,65,445,72],[445,73,445,75],[445,76,445,79],[445,1,445,8],[445,9,445,11],[445,12,445,15],[445,17,445,24],[445,25,445,27],[445,28,445,31],[445,33,445,40],[457,57,457,59],[457,60,457,63],[457,65,457,68],[457,73,457,75],[457,76,457,79],[457,49,457,52],[457,17,457,20],[458,17,458,20],[460,18,460,28],[462,16,462,31],[464,17,464,22],[464,24,464,26],[464,27,464,31],[465,16,465,31],[457,1,457,4],[457,6,458,7],[457,12,457,15],[457,22,458,23],[457,25,457,27],[458,1,458,4],[458,12,458,15],[458,25,458,27],[457,28,457,31],[458,28,458,31],[464,1,464,6],[464,65,464,70],[465,64,465,79],[458,65,458,68],[458,73,458,75],[458,76,458,79],[460,66,460,76],[462,64,462,79],[464,72,464,74],[464,75,464,79],[458,49,458,52],[457,33,457,36],[457,38,458,39],[457,44,457,47],[457,54,458,55],[457,70,458,71],[458,33,458,36],[458,44,458,47],[457,41,457,43],[458,41,458,43],[460,34,460,44],[462,32,462,47],[464,33,464,38],[464,40,464,42],[467,1,467,8],[467,9,467,11],[467,12,467,15],[467,17,467,24],[467,25,467,27],[467,28,467,31],[457,9,457,11],[458,9,458,11],[460,2,460,12],[462,0,462,15],[464,8,464,10],[464,11,464,15],[465,0,465,15],[467,73,467,75],[467,76,467,79],[467,33,467,40],[467,41,467,43],[467,44,467,47],[467,49,467,56],[467,57,467,59],[467,60,467,63],[467,65,467,72],[464,43,464,47],[465,32,465,47],[458,57,458,59],[458,60,458,63],[460,50,460,60],[462,48,462,63],[464,49,464,54],[464,56,464,58],[464,59,464,63],[465,48,465,63],[468,41,468,43],[468,44,468,47],[468,49,468,56],[468,57,468,59],[468,60,468,63],[468,65,468,72],[468,73,468,75],[468,76,468,79],[468,1,468,8],[468,9,468,11],[468,12,468,15],[468,17,468,24],[468,25,468,27],[468,28,468,31],[468,33,468,40],[469,41,469,43],[469,44,469,47],[469,49,469,56],[469,57,469,59],[469,60,469,63],[469,65,469,72],[469,73,469,75],[469,76,469,79],[469,1,469,8],[469,9,469,11],[469,12,469,15],[469,17,469,24],[469,25,469,27],[469,28,469,31],[469,33,469,40],[481,57,481,59],[481,60,481,63],[481,65,481,68],[481,73,481,75],[481,76,481,79],[481,49,481,52],[482,49,482,52],[481,33,481,36],[481,38,482,39],[481,44,481,47],[481,54,482,55],[481,70,482,71],[482,33,482,36],[482,44,482,47],[481,9,481,11],[482,9,482,11],[484,2,484,12],[481,41,481,43],[482,41,482,43],[484,34,484,44],[486,0,486,15],[488,1,488,6],[488,8,488,10],[488,11,488,15],[481,17,481,20],[482,17,482,20],[484,18,484,28],[486,16,486,31],[488,17,488,22],[488,24,488,26],[488,27,488,31],[481,1,481,4],[481,6,482,7],[481,12,481,15],[481,22,482,23],[481,25,481,27],[482,1,482,4],[482,12,482,15],[482,25,482,27],[481,28,481,31],[482,28,482,31],[486,32,486,47],[488,33,488,38],[488,40,488,42],[488,43,488,47],[482,57,482,59],[482,60,482,63],[484,50,484,60],[486,48,486,63],[488,49,488,54],[488,56,488,58],[488,59,488,63],[482,65,482,68],[482,73,482,75],[482,76,482,79],[484,66,484,76],[486,64,486,79],[488,65,488,70],[488,72,488,74],[488,75,488,79],[392,48,392,63],[390,65,390,70],[392,64,392,79],[384,65,384,68],[384,73,384,75],[384,76,384,79]],"merged_total":2200,"flags":["merged_cut"]}
["كارت حضور العاملين",null,null,null,null,null,null,null,null,null,null,null,null,null,null,null,"كارت حضور العاملين",null,null,null,null,null,null,null,null,null,null,null,null,null,null,null,"كارت حضور العاملين",null,null,null,null,null,null,null,null,null,null,null,null,null,null,null,"كارت حضور العاملين",null,null,null,null,null,null,null,null,null,null,null,null,null,null,null,"كارت حضور العاملين"]
[]
["اسم الموظف",{"$f":"DATA!$B3","v":"احمد الحديدي"},null,null,null,null,null,null,null,"كود الموظف",null,null,{"$f":"DATA!A3","v":1},null,null,null,"اسم الموظف",{"$f":"DATA!B43","v":"محمد احمد جمعه"},null,null,null,null,null,null,null,"كود الموظف",null,null,21,null,null,null,"اسم الموظف",{"$f":"DATA!B83","v":"علاء احمد ابراهيم"},null,null,null,null,null,null,null,"كود الموظف",null,null,41,null,null,null,"اسم الموظف",{"$f":"DATA!B123","v":"احمد فكرى"},null,null,null,null,null,null,null,"كود الموظف",null,null,61,null,null,null,"اسم الموظف",{"$f":"DATA!B163","v":"محمد عوضين الدكش"},null,null,null,null,null,null,null,"كود الموظف",null,null,81]
["اسم المشروع",null,null,null,null,null,null,null,null,"كود المشروع",null,null,null,null,null,null,"اسم المشروع",null,null,null,null,null,null,null,null,"كود المشروع",null,null,null,null,null,null,"اسم المشروع",null,null,null,null,null,null,null,null,"كود المشروع",null,null,null,null,null,null,"اسم المشروع",null,null,null,null,null,null,null,null,"كود المشروع",null,null,null,null,null,null,"اسم المشروع",null,null,null,null,null,null,null,null,"كود المشروع"]
["الوظيفة",null,null,null,null,null,null,null,null,"الشهر",null,null,{"$f":"'شهر 10'!$AI$1","v":"2021-10-01"},null,null,null,"الوظيفة",null,null,null,null,null,null,null,null,"الشهر",null,null,{"$f":"'شهر 10'!$AI$1","v":"2021-10-01"},null,null,null,"الوظيفة",null,null,null,null,null,null,null,null,"الشهر",null,null,{"$f":"'شهر 10'!$AI$1","v":"2021-10-01"},null,null,null,"الوظيفة",null,null,null,null,null,null,null,null,"الشهر",null,null,{"$f":"'شهر 10'!$AI$1","v":"2021-10-01"},null,null,null,"الوظيفة",null,null,null,null,null,null,null,null,"الشهر",null,null,{"$f":"'شهر 10'!$AI$1","v":"2021-10-01"}]
[]
["التاريخ",1,2,3,4,5,6,7,8,9,10,11,12,13,14,15,"التاريخ",1,2,3,4,5,6,7,8,9,10,11,12,13,14,15,"التاريخ",1,2,3,4,5,6,7,8,9,10,11,12,13,14,15,"التاريخ",1,2,3,4,5,6,7,8,9,10,11,12,13,14,15,"التاريخ",1,2,3,4,5,6,7,8,9,10,11,12,13,14,15]
["الفتره الصباحية",{"$f":"IF('شهر 10'!D3>=4,\"☑\",\"X\")","v":"X"},{"$f":"IF('شهر 10'!E3>=4,\"☑\",\"X\")","v":"X"},{"$f":"IF('شهر 10'!F3>=4,\"☑\",\"X\")","v":"X"},{"$f":"IF('شهر 10'!G3>=4,\"☑\",\"X\")","v":"X"},{"$f":"IF('شهر 10'!H3>=4,\"☑\",\"X\")","v":"X"},{"$f":"IF('شهر 10'!I3>=4,\"☑\",\"X\")","v":"X"},{"$f":"IF('شهر 10'!J3>=4,\"☑\",\"X\")","v":"X"},{"$f":"IF('شهر 10'!K3>=4,\"☑\",\"X\")","v":"X"},{"$f":"IF('شهر 10'!L3>=4,\"☑\",\"X\")","v":"X"},{"$f":"IF('شهر 10'!M3>=4,\"☑\",\"X\")","v":"X"},{"$f":"IF('شهر 10'!N3>=4,\"☑\",\"X\")","v":"X"},{"$f":"IF('شهر 10'!O3>=4,\"☑\",\"X\")","v":"X"},{"$f":"IF('شهر 10'!P3>=4,\"☑\",\"X\")","v":"X"},{"$f":"IF('شهر 10'!Q3>=4,\"☑\",\"X\")","v":"X"},{"$f":"IF('شهر 10'!R3>=4,\"☑\",\"X\")","v":"X"},"الفتره الصباحية",null,null,null,null,null,null,null,null,null,null,null,null,null,null,null,"الفتره الصباحية",null,null,null,null,null,null,null,null,null,null,null,null,null,null,null,"الفتره الصباحية",null,null,null,null,null,null,null,null,null,null,null,null,null,null,null,"الفتره الصباحية"]
["الفتره المسائية",{"$f":"IF('شهر 10'!D3>=8,\"☑\",\"X\")","v":"X"},{"$f":"IF('شهر 10'!E3>=8,\"☑\",\"X\")","v":"X"},{"$f":"IF('شهر 10'!F3>=8,\"☑\",\"X\")","v":"X"},{"$f":"IF('شهر 10'!G3>=8,\"☑\",\"X\")","v":"X"},{"$f":"IF('شهر 10'!H3>=8,\"☑\",\"X\")","v":"X"},{"$f":"IF('شهر 10'!I3>=8,\"☑\",\"X\")","v":"X"},{"$f":"IF('شهر 10'!J3>=8,\"☑\",\"X\")","v":"X"},{"$f":"IF('شهر 10'!K3>=8,\"☑\",\"X\")","v":"X"},{"$f":"IF('شهر 10'!L3>=8,\"☑\",\"X\")","v":"X"},{"$f":"IF('شهر 10'!M3>=8,\"☑\",\"X\")","v":"X"},{"$f":"IF('شهر 10'!N3>=8,\"☑\",\"X\")","v":"X"},{"$f":"IF('شهر 10'!O3>=8,\"☑\",\"X\")","v":"X"},{"$f":"IF('شهر 10'!P3>=8,\"☑\",\"X\")","v":"X"},{"$f":"IF('شهر 10'!Q3>=8,\"☑\",\"X\")","v":"X"},{"$f":"IF('شهر 10'!R3>=8,\"☑\",\"X\")","v":"X"},"الفتره المسائية",null,null,null,null,null,null,null,null,null,null,null,null,null,null,null,"الفتره المسائية",null,null,null,null,null,null,null,null,null,null,null,null,null,null,null,"الفتره المسائية",null,null,null,null,null,null,null,null,null,null,null,null,null,null,null,"الفتره المسائية"]
["الاضافي",{"$f":"IF('شهر 10'!D3=12,\"4\",IF('شهر 10'!D3=13,\"5\",\"X\"))","v":"X"},{"$f":"IF('شهر 10'!E3=12,\"4\",IF('شهر 10'!E3=13,\"5\",\"X\"))","v":"X"},{"$f":"IF('شهر 10'!F3=12,\"4\",IF('شهر 10'!F3=13,\"5\",\"X\"))","v":"X"},{"$f":"IF('شهر 10'!G3=12,\"4\",IF('شهر 10'!G3=13,\"5\",\"X\"))","v":"X"},{"$f":"IF('شهر 10'!H3=12,\"4\",IF('شهر 10'!H3=13,\"5\",\"X\"))","v":"X"},{"$f":"IF('شهر 10'!I3=12,\"4\",IF('شهر 10'!I3=13,\"5\",\"X\"))","v":"X"},{"$f":"IF('شهر 10'!J3=12,\"4\",IF('شهر 10'!J3=13,\"5\",\"X\"))","v":"X"},{"$f":"IF('شهر 10'!K3=12,\"4\",IF('شهر 10'!K3=13,\"5\",\"X\"))","v":"X"},{"$f":"IF('شهر 10'!L3=12,\"4\",IF('شهر 10'!L3=13,\"5\",\"X\"))","v":"X"},{"$f":"IF('شهر 10'!M3=12,\"4\",IF('شهر 10'!M3=13,\"5\",\"X\"))","v":"X"},{"$f":"IF('شهر 10'!N3=12,\"4\",IF('شهر 10'!N3=13,\"5\",\"X\"))","v":"X"},{"$f":"IF('شهر 10'!O3=12,\"4\",IF('شهر 10'!O3=13,\"5\",\"X\"))","v":"X"},{"$f":"IF('شهر 10'!P3=12,\"4\",IF('شهر 10'!P3=13,\"5\",\"X\"))","v":"X"},{"$f":"IF('شهر 10'!Q3=12,\"4\",IF('شهر 10'!Q3=13,\"5\",\"X\"))","v":"X"},{"$f":"IF('شهر 10'!R3=12,\"4\",IF('شهر 10'!R3=13,\"5\",\"X\"))","v":"X"},"الاضافي",null,null,null,null,null,null,null,null,null,null,null,null,null,null,null,"الاضافي",null,null,null,null,null,null,null,null,null,null,null,null,null,null,null,"الاضافي",null,null,null,null,null,null,null,null,null,null,null,null,null,null,null,"الاضافي"]
[]
["التاريخ",16,17,18,19,20,21,22,23,24,25,26,27,28,29,30,"التاريخ",16,17,18,19,20,21,22,23,24,25,26,27,28,29,30,"التاريخ",16,17,18,19,20,21,22,23,24,25,26,27,28,29,30,"التاريخ",16,17,18,19,20,21,22,23,24,25,26,27,28,29,30,"التاريخ",16,17,18,19,20,21,22,23,24,25,26,27,28,29,30]
["الفتره الصباحية",{"$f":"IF('شهر 10'!S3>=4,\"☑\",\"X\")","v":"X"},{"$f":"IF('شهر 10'!T3>=4,\"☑\",\"X\")","v":"X"},{"$f":"IF('شهر 10'!U3>=4,\"☑\",\"X\")","v":"X"},{"$f":"IF('شهر 10'!V3>=4,\"☑\",\"X\")","v":"X"},{"$f":"IF('شهر 10'!W3>=4,\"☑\",\"X\")","v":"X"},{"$f":"IF('شهر 10'!X3>=4,\"☑\",\"X\")","v":"X"},{"$f":"IF('شهر 10'!Y3>=4,\"☑\",\"X\")","v":"X"},{"$f":"IF('شهر 10'!Z3>=4,\"☑\",\"X\")","v":"X"},{"$f":"IF('شهر 10'!AA3>=4,\"☑\",\"X\")","v":"X"},{"$f":"IF('شهر 10'!AB3>=4,\"☑\",\"X\")","v":"X"},{"$f":"IF('شهر 10'!AC3>=4,\"☑\",\"X\")","v":"X"},{"$f":"IF('شهر 10'!AD3>=4,\"☑\",\"X\")","v":"X"},{"$f":"IF('شهر 10'!AE3>=4,\"☑\",\"X\")","v":"X"},{"$f":"IF('شهر 10'!AF3>=4,\"☑\",\"X\")","v":"X"},{"$f":"IF('شهر 10'!AG3>=4,\"☑\",\"X\")","v":"X"},"الفتره الصباحية",null,null,null,null,null,null,null,null,null,null,null,null,null,null,null,"الفتره الصباحية",null,null,null,null,null,null,null,null,null,null,null,null,null,null,null,"الفتره الصباحية",null,null,null,null,null,null,null,null,null,null,null,null,null,null,null,"الفتره الصباحية"]
["الفتره المسائية",{"$f":"IF('شهر 10'!S3>=8,\"☑\",\"X\")","v":"X"},{"$f":"IF('شهر 10'!T3>=8,\"☑\",\"X\")","v":"X"},{"$f":"IF('شهر 10'!U3>=8,\"☑\",\"X\")","v":"X"},{"$f":"IF('شهر 10'!V3>=8,\"☑\",\"X\")","v":"X"},{"$f":"IF('شهر 10'!W3>=8,\"☑\",\"X\")","v":"X"},{"$f":"IF('شهر 10'!X3>=8,\"☑\",\"X\")","v":"X"},{"$f":"IF('شهر 10'!Y3>=8,\"☑\",\"X\")","v":"X"},{"$f":"IF('شهر 10'!Z3>=8,\"☑\",\"X\")","v":"X"},{"$f":"IF('شهر 10'!AA3>=8,\"☑\",\"X\")","v":"X"},{"$f":"IF('شهر 10'!AB3>=8,\"☑\",\"X\")","v":"X"},{"$f":"IF('شهر 10'!AC3>=8,\"☑\",\"X\")","v":"X"},{"$f":"IF('شهر 10'!AD3>=8,\"☑\",\"X\")","v":"X"},{"$f":"IF('شهر 10'!AE3>=8,\"☑\",\"X\")","v":"X"},{"$f":"IF('شهر 10'!AF3>=8,\"☑\",\"X\")","v":"X"},{"$f":"IF('شهر 10'!AG3>=8,\"☑\",\"X\")","v":"X"},"الفتره المسائية",null,null,null,null,null,null,null,null,null,null,null,null,null,null,null,"الفتره المسائية",null,null,null,null,null,null,null,null,null,null,null,null,null,null,null,"الفتره المسائية",null,null,null,null,null,null,null,null,null,null,null,null,null,null,null,"الفتره المسائية"]
["الاضافي",{"$f":"IF('شهر 10'!S3=12,\"4\",IF('شهر 10'!S3=13,\"5\",\"X\"))","v":"X"},{"$f":"IF('شهر 10'!T3=12,\"4\",IF('شهر 10'!T3=13,\"5\",\"X\"))","v":"X"},{"$f":"IF('شهر 10'!U3=12,\"4\",IF('شهر 10'!U3=13,\"5\",\"X\"))","v":"X"},{"$f":"IF('شهر 10'!V3=12,\"4\",IF('شهر 10'!V3=13,\"5\",\"X\"))","v":"X"},{"$f":"IF('شهر 10'!W3=12,\"4\",IF('شهر 10'!W3=13,\"5\",\"X\"))","v":"X"},{"$f":"IF('شهر 10'!X3=12,\"4\",IF('شهر 10'!X3=13,\"5\",\"X\"))","v":"X"},{"$f":"IF('شهر 10'!Y3=12,\"4\",IF('شهر 10'!Y3=13,\"5\",\"X\"))","v":"X"},{"$f":"IF('شهر 10'!Z3=12,\"4\",IF('شهر 10'!Z3=13,\"5\",\"X\"))","v":"X"},{"$f":"IF('شهر 10'!AA3=12,\"4\",IF('شهر 10'!AA3=13,\"5\",\"X\"))","v":"X"},{"$f":"IF('شهر 10'!AB3=12,\"4\",IF('شهر 10'!AB3=13,\"5\",\"X\"))","v":"X"},{"$f":"IF('شهر 10'!AC3=12,\"4\",IF('شهر 10'!AC3=13,\"5\",\"X\"))","v":"X"},{"$f":"IF('شهر 10'!AD3=12,\"4\",IF('شهر 10'!AD3=13,\"5\",\"X\"))","v":"X"},{"$f":"IF('شهر 10'!AE3=12,\"4\",IF('شهر 10'!AE3=13,\"5\",\"X\"))","v":"X"},{"$f":"IF('شهر 10'!AF3=12,\"4\",IF('شهر 10'!AF3=13,\"5\",\"X\"))","v":"X"},{"$f":"IF('شهر 10'!AG3=12,\"4\",IF('شهر 10'!AG3=13,\"5\",\"X\"))","v":"X"},"الاضافي",null,null,null,null,null,null,null,null,null,null,null,null,null,null,null,"الاضافي",null,null,null,null,null,null,null,null,null,null,null,null,null,null,null,"الاضافي",null,null,null,null,null,null,null,null,null,null,null,null,null,null,null,"الاضافي"]
[]
["عدد ايام العمل",{"$f":"DATA!D3","v":0},null,null,null,null,{"$f":"DATA!F3","v":0},null,null,"سلف",null,null,{"$f":"DATA!E3","v":0},null,null,null,"عدد ايام العمل",null,null,null,null,null,null,null,null,"سلف",null,null,null,null,null,null,"عدد ايام العمل",null,null,null,null,null,null,null,null,"سلف",null,null,null,null,null,null,"عدد ايام العمل",null,null,null,null,null,null,null,null,"سلف",null,null,null,null,null,null,"عدد ايام العمل",null,null,null,null,null,null,null,null,"سلف"]
["عدد ساعات العمل",{"$f":"DATA!C3","v":0},null,null,null,null,null,null,null,"حساب الموظف",null,null,{"$f":"'شهر 10'!AL3","v":0},null,null,null,"عدد ساعات العمل",null,null,null,null,null,null,null,null,"حساب الموظف",null,null,null,null,null,null,"عدد ساعات العمل",null,null,null,null,null,null,null,null,"حساب الموظف",null,null,null,null,null,null,"عدد ساعات العمل",null,null,null,null,null,null,null,null,"حساب الموظف",null,null,null,null,null,null,"عدد ساعات العمل",null,null,null,null,null,null,null,null,"حساب الموظف"]
[]
[]
[]
[]
[]
["مدير المشروع",null,null,null,null,null,null,null,"تم اعدادة بواسطة",null,null,null,null,null,null,null,"مدير المشروع",null,null,null,null,null,null,null,"تم اعدادة بواسطة",null,null,null,null,null,null,null,"مدير المشروع",null,null,null,null,null,null,null,"تم اعدادة بواسطة",null,null,null,null,null,null,null,"مدير المشروع",null,null,null,null,null,null,null,"تم اعدادة بواسطة",null,null,null,null,null,null,null,"مدير المشروع",null,null,null,null,null,null,null,"تم اعدادة بواسطة"]
["كارت حضور العاملين",null,null,null,null,null,null,null,null,null,null,null,null,null,null,null,"كارت حضور العاملين",null,null,null,null,null,null,null,null,null,null,null,null,null,null,null,"كارت حضور العاملين",null,null,null,null,null,null,null,null,null,null,null,null,null,null,null,"كارت حضور العاملين",null,null,null,null,null,null,null,null,null,null,null,null,null,null,null,"كارت حضور العاملين"]
[]
["اسم الموظف",{"$f":"DATA!B5","v":"مدحت عصام"},null,null,null,null,null,null,null,"كود الموظف",null,null,{"$f":"DATA!A5","v":2},null,null,null,"اسم الموظف",{"$f":"DATA!B45","v":"السيد رمضان الدسوقى"},null,null,null,null,null,null,null,"كود الموظف",null,null,22,null,null,null,"اسم الموظف",{"$f":"DATA!B85","v":"محمد ابراهيم السيد عقل"},null,null,null,null,null,null,null,"كود الموظف",null,null,42,null,null,null,"اسم الموظف",{"$f":"DATA!B125","v":"محمد سعد"},null,null,null,null,null,null,null,"كود الموظف",null,null,62,null,null,null,"اسم الموظف",{"$f":"DATA!B165","v":"رجب الشحات"},null,null,null,null,null,null,null,"كود الموظف",null,null,82]
["اسم المشروع",null,null,null,null,null,null,null,null,"كود المشروع",null,null,null,null,null,null,"اسم المشروع",null,null,null,null,null,null,null,null,"كود المشروع",null,null,null,null,null,null,"اسم المشروع",null,null,null,null,null,null,null,null,"كود المشروع",null,null,null,null,null,null,"اسم المشروع",null,null,null,null,null,null,null,null,"كود المشروع",null,null,null,null,null,null,"اسم المشروع",null,null,null,null,null,null,null,null,"كود المشروع"]
["الوظيفة",null,null,null,null,null,null,null,null,"الشهر",null,null,{"$f":"'شهر 10'!$AI$1","v":"2021-10-01"},null,null,null,"الوظيفة",null,null,null,null,null,null,null,null,"الشهر",null,null,{"$f":"'شهر 10'!$AI$1","v":"2021-10-01"},null,null,null,"الوظيفة",null,null,null,null,null,null,null,null,"الشهر",null,null,{"$f":"'شهر 10'!$AI$1","v":"2021-10-01"},null,null,null,"الوظيفة",null,null,null,null,null,null,null,null,"الشهر",null,null,{"$f":"'شهر 10'!$AI$1","v":"2021-10-01"},null,null,null,"الوظيفة",null,null,null,null,null,null,null,null,"الشهر",null,null,{"$f":"'شهر 10'!$AI$1","v":"2021-10-01"}]
[]
["التاريخ",1,2,3,4,5,6,7,8,9,10,11,12,13,14,15,"التاريخ",1,2,3,4,5,6,7,8,9,10,11,12,13,14,15,"التاريخ",1,2,3,4,5,6,7,8,9,10,11,12,13,14,15,"التاريخ",1,2,3,4,5,6,7,8,9,10,11,12,13,14,15,"التاريخ",1,2,3,4,5,6,7,8,9,10,11,12,13,14,15]
["الفتره الصباحية",{"$f":"IF('شهر 10'!D5>=4,\"☑\",\"X\")","v":"X"},{"$f":"IF('شهر 10'!E5>=4,\"☑\",\"X\")","v":"X"},{"$f":"IF('شهر 10'!F5>=4,\"☑\",\"X\")","v":"X"},{"$f":"IF('شهر 10'!G5>=4,\"☑\",\"X\")","v":"X"},{"$f":"IF('شهر 10'!H5>=4,\"☑\",\"X\")","v":"X"},{"$f":"IF('شهر 10'!I5>=4,\"☑\",\"X\")","v":"X"},{"$f":"IF('شهر 10'!J5>=4,\"☑\",\"X\")","v":"X"},{"$f":"IF('شهر 10'!K5>=4,\"☑\",\"X\")","v":"X"},{"$f":"IF('شهر 10'!L5>=4,\"☑\",\"X\")","v":"X"},{"$f":"IF('شهر 10'!M5>=4,\"☑\",\"X\")","v":"X"},{"$f":"IF('شهر 10'!N5>=4,\"☑\",\"X\")","v":"X"},{"$f":"IF('شهر 10'!O5>=4,\"☑\",\"X\")","v":"X"},{"$f":"IF('شهر 10'!P5>=4,\"☑\",\"X\")","v":"X"},{"$f":"IF('شهر 10'!Q5>=4,\"☑\",\"X\")","v":"X"},{"$f":"IF('شهر 10'!R5>=4,\"☑\",\"X\")","v":"X"},"الفتره الصباحية",null,null,null,null,null,null,null,null,null,null,null,null,null,null,null,"الفتره الصباحية",null,null,null,null,null,null,null,null,null,null,null,null,null,null,null,"الفتره الصباحية",null,null,null,null,null,null,null,null,null,null,null,null,null,null,null,"الفتره الصباحية"]
["الفتره المسائية",{"$f":"IF('شهر 10'!D5>=8,\"☑\",\"X\")","v":"X"},{"$f":"IF('شهر 10'!E5>=8,\"☑\",\"X\")","v":"X"},{"$f":"IF('شهر 10'!F5>=8,\"☑\",\"X\")","v":"X"},{"$f":"IF('شهر 10'!G5>=8,\"☑\",\"X\")","v":"X"},{"$f":"IF('شهر 10'!H5>=8,\"☑\",\"X\")","v":"X"},{"$f":"IF('شهر 10'!I5>=8,\"☑\",\"X\")","v":"X"},{"$f":"IF('شهر 10'!J5>=8,\"☑\",\"X\")","v":"X"},{"$f":"IF('شهر 10'!K5>=8,\"☑\",\"X\")","v":"X"},{"$f":"IF('شهر 10'!L5>=8,\"☑\",\"X\")","v":"X"},{"$f":"IF('شهر 10'!M5>=8,\"☑\",\"X\")","v":"X"},{"$f":"IF('شهر 10'!N5>=8,\"☑\",\"X\")","v":"X"},{"$f":"IF('شهر 10'!O5>=8,\"☑\",\"X\")","v":"X"},{"$f":"IF('شهر 10'!P5>=8,\"☑\",\"X\")","v":"X"},{"$f":"IF('شهر 10'!Q5>=8,\"☑\",\"X\")","v":"X"},{"$f":"IF('شهر 10'!R5>=8,\"☑\",\"X\")","v":"X"},"الفتره المسائية",null,null,null,null,null,null,null,null,null,null,null,null,null,null,null,"الفتره المسائية",null,null,null,null,null,null,null,null,null,null,null,null,null,null,null,"الفتره المسائية",null,null,null,null,null,null,null,null,null,null,null,null,null,null,null,"الفتره المسائية"]
["الاضافي",{"$f":"IF('شهر 10'!D5=12,\"4\",IF('شهر 10'!D5=13,\"5\",\"X\"))","v":"X"},{"$f":"IF('شهر 10'!E5=12,\"4\",IF('شهر 10'!E5=13,\"5\",\"X\"))","v":"X"},{"$f":"IF('شهر 10'!F5=12,\"4\",IF('شهر 10'!F5=13,\"5\",\"X\"))","v":"X"},{"$f":"IF('شهر 10'!G5=12,\"4\",IF('شهر 10'!G5=13,\"5\",\"X\"))","v":"X"},{"$f":"IF('شهر 10'!H5=12,\"4\",IF('شهر 10'!H5=13,\"5\",\"X\"))","v":"X"},{"$f":"IF('شهر 10'!I5=12,\"4\",IF('شهر 10'!I5=13,\"5\",\"X\"))","v":"X"},{"$f":"IF('شهر 10'!J5=12,\"4\",IF('شهر 10'!J5=13,\"5\",\"X\"))","v":"X"},{"$f":"IF('شهر 10'!K5=12,\"4\",IF('شهر 10'!K5=13,\"5\",\"X\"))","v":"X"},{"$f":"IF('شهر 10'!L5=12,\"4\",IF('شهر 10'!L5=13,\"5\",\"X\"))","v":"X"},{"$f":"IF('شهر 10'!M5=12,\"4\",IF('شهر 10'!M5=13,\"5\",\"X\"))","v":"X"},{"$f":"IF('شهر 10'!N5=12,\"4\",IF('شهر 10'!N5=13,\"5\",\"X\"))","v":"X"},{"$f":"IF('شهر 10'!O5=12,\"4\",IF('شهر 10'!O5=13,\"5\",\"X\"))","v":"X"},{"$f":"IF('شهر 10'!P5=12,\"4\",IF('شهر 10'!P5=13,\"5\",\"X\"))","v":"X"},{"$f":"IF('شهر 10'!Q5=12,\"4\",IF('شهر 10'!Q5=13,\"5\",\"X\"))","v":"X"},{"$f":"IF('شهر 10'!R5=12,\"4\",IF('شهر 10'!R5=13,\"5\",\"X\"))","v":"X"},"الاضافي",null,null,null,null,null,null,null,null,null,null,null,null,null,null,null,"الاضافي",null,null,null,null,null,null,null,null,null,null,null,null,null,null,null,"الاضافي",null,null,null,null,null,null,null,null,null,null,null,null,null,null,null,"الاضافي"]
[]
["التاريخ",16,17,18,19,20,21,22,23,24,25,26,27,28,29,30,"التاريخ",16,17,18,19,20,21,22,23,24,25,26,27,28,29,30,"التاريخ",16,17,18,19,20,21,22,23,24,25,26,27,28,29,30,"التاريخ",16,17,18,19,20,21,22,23,24,25,26,27,28,29,30,"التاريخ",16,17,18,19,20,21,22,23,24,25,26,27,28,29,30]
["الفتره الصباحية",{"$f":"IF('شهر 10'!S5>=4,\"☑\",\"X\")","v":"X"},{"$f":"IF('شهر 10'!T5>=4,\"☑\",\"X\")","v":"X"},{"$f":"IF('شهر 10'!U5>=4,\"☑\",\"X\")","v":"X"},{"$f":"IF('شهر 10'!V5>=4,\"☑\",\"X\")","v":"X"},{"$f":"IF('شهر 10'!W5>=4,\"☑\",\"X\")","v":"X"},{"$f":"IF('شهر 10'!X5>=4,\"☑\",\"X\")","v":"X"},{"$f":"IF('شهر 10'!Y5>=4,\"☑\",\"X\")","v":"X"},{"$f":"IF('شهر 10'!Z5>=4,\"☑\",\"X\")","v":"X"},{"$f":"IF('شهر 10'!AA5>=4,\"☑\",\"X\")","v":"X"},{"$f":"IF('شهر 10'!AB5>=4,\"☑\",\"X\")","v":"X"},{"$f":"IF('شهر 10'!AC5>=4,\"☑\",\"X\")","v":"X"},{"$f":"IF('شهر 10'!AD5>=4,\"☑\",\"X\")","v":"X"},{"$f":"IF('شهر 10'!AE5>=4,\"☑\",\"X\")","v":"X"},{"$f":"IF('شهر 10'!AF5>=4,\"☑\",\"X\")","v":"X"},{"$f":"IF('شهر 10'!AG5>=4,\"☑\",\"X\")","v":"X"},"الفتره الصباحية",null,null,null,null,null,null,null,null,null,null,null,null,null,null,null,"الفتره الصباحية",null,null,null,null,null,null,null,null,null,null,null,null,null,null,null,"الفتره الصباحية",null,null,null,null,null,null,null,null,null,null,null,null,null,null,null,"الفتره الصباحية"]
["الفتره المسائية",{"$f":"IF('شهر 10'!S5>=8,\"☑\",\"X\")","v":"X"},{"$f":"IF('شهر 10'!T5>=8,\"☑\",\"X\")","v":"X"},{"$f":"IF('شهر 10'!U5>=8,\"☑\",\"X\")","v":"X"},{"$f":"IF('شهر 10'!V5>=8,\"☑\",\"X\")","v":"X"},{"$f":"IF('شهر 10'!W5>=8,\"☑\",\"X\")","v":"X"},{"$f":"IF('شهر 10'!X5>=8,\"☑\",\"X\")","v":"X"},{"$f":"IF('شهر 10'!Y5>=8,\"☑\",\"X\")","v":"X"},{"$f":"IF('شهر 10'!Z5>=8,\"☑\",\"X\")","v":"X"},{"$f":"IF('شهر 10'!AA5>=8,\"☑\",\"X\")","v":"X"},{"$f":"IF('شهر 10'!AB5>=8,\"☑\",\"X\")","v":"X"},{"$f":"IF('شهر 10'!AC5>=8,\"☑\",\"X\")","v":"X"},{"$f":"IF('شهر 10'!AD5>=8,\"☑\",\"X\")","v":"X"},{"$f":"IF('شهر 10'!AE5>=8,\"☑\",\"X\")","v":"X"},{"$f":"IF('شهر 10'!AF5>=8,\"☑\",\"X\")","v":"X"},{"$f":"IF('شهر 10'!AG5>=8,\"☑\",\"X\")","v":"X"},"الفتره المسائية",null,null,null,null,null,null,null,null,null,null,null,null,null,null,null,"الفتره المسائية",null,null,null,null,null,null,null,null,null,null,null,null,null,null,null,"الفتره المسائية",null,null,null,null,null,null,null,null,null,null,null,null,null,null,null,"الفتره المسائية"]
["الاضافي",{"$f":"IF('شهر 10'!S5=12,\"4\",IF('شهر 10'!S5=13,\"5\",\"X\"))","v":"X"},{"$f":"IF('شهر 10'!T5=12,\"4\",IF('شهر 10'!T5=13,\"5\",\"X\"))","v":"X"},{"$f":"IF('شهر 10'!U5=12,\"4\",IF('شهر 10'!U5=13,\"5\",\"X\"))","v":"X"},{"$f":"IF('شهر 10'!V5=12,\"4\",IF('شهر 10'!V5=13,\"5\",\"X\"))","v":"X"},{"$f":"IF('شهر 10'!W5=12,\"4\",IF('شهر 10'!W5=13,\"5\",\"X\"))","v":"X"},{"$f":"IF('شهر 10'!X5=12,\"4\",IF('شهر 10'!X5=13,\"5\",\"X\"))","v":"X"},{"$f":"IF('شهر 10'!Y5=12,\"4\",IF('شهر 10'!Y5=13,\"5\",\"X\"))","v":"X"},{"$f":"IF('شهر 10'!Z5=12,\"4\",IF('شهر 10'!Z5=13,\"5\",\"X\"))","v":"X"},{"$f":"IF('شهر 10'!AA5=12,\"4\",IF('شهر 10'!AA5=13,\"5\",\"X\"))","v":"X"},{"$f":"IF('شهر 10'!AB5=12,\"4\",IF('شهر 10'!AB5=13,\"5\",\"X\"))","v":"X"},{"$f":"IF('شهر 10'!AC5=12,\"4\",IF('شهر 10'!AC5=13,\"5\",\"X\"))","v":"X"},{"$f":"IF('شهر 10'!AD5=12,\"4\",IF('شهر 10'!AD5=13,\"5\",\"X\"))","v":"X"},{"$f":"IF('شهر 10'!AE5=12,\"4\",IF('شهر 10'!AE5=13,\"5\",\"X\"))","v":"X"},{"$f":"IF('شهر 10'!AF5=12,\"4\",IF('شهر 10'!AF5=13,\"5\",\"X\"))","v":"X"},{"$f":"IF('شهر 10'!AG5=12,\"4\",IF('شهر 10'!AG5=13,\"5\",\"X\"))","v":"X"},"الاضافي",null,null,null,null,null,null,null,null,null,null,null,null,null,null,null,"الاضافي",null,null,null,null,null,null,null,null,null,null,null,null,null,null,null,"الاضافي",null,null,null,null,null,null,null,null,null,null,null,null,null,null,null,"الاضافي"]
[]
["عدد ايام العمل",null,null,null,null,null,null,null,null,"سلف",null,null,null,null,null,null,"عدد ايام العمل",null,null,null,null,null,null,null,null,"سلف",null,null,null,null,null,null,"عدد ايام العمل",null,null,null,null,null,null,null,null,"سلف",null,null,null,null,null,null,"عدد ايام العمل",null,null,null,null,null,null,null,null,"سلف",null,null,null,null,null,null,"عدد ايام العمل",null,null,null,null,null,null,null,null,"سلف"]
["عدد ساعات العمل",null,null,null,null,null,null,null,null,"حساب الموظف",null,null,null,null,null,null,"عدد ساعات العمل",null,null,null,null,null,null,null,null,"حساب الموظف",null,null,null,null,null,null,"عدد ساعات العمل",null,null,null,null,null,null,null,null,"حساب الموظف",null,null,null,null,null,null,"عدد ساعات العمل",null,null,null,null,null,null,null,null,"حساب الموظف",null,null,null,null,null,null,"عدد ساعات العمل",null,null,null,null,null,null,null,null,"حساب الموظف"]
[]
[]
[]
[]
[]
["مدير المشروع",null,null,null,null,null,null,null,"تم اعدادة بواسطة",null,null,null,null,null,null,null,"مدير المشروع",null,null,null,null,null,null,null,"تم اعدادة بواسطة",null,null,null,null,null,null,null,"مدير المشروع",null,null,null,null,null,null,null,"تم اعدادة بواسطة",null,null,null,null,null,null,null,"مدير المشروع",null,null,null,null,null,null,null,"تم اعدادة بواسطة",null,null,null,null,null,null,null,"مدير المشروع",null,null,null,null,null,null,null,"تم اعدادة بواسطة"]
[]
["كارت حضور العاملين",null,null,null,null,null,null,null,null,null,null,null,null,null,null,null,"كارت حضور العاملين",null,null,null,null,null,null,null,null,null,null,null,null,null,null,null,"كارت حضور العاملين",null,null,null,null,null,null,null,null,null,null,null,null,null,null,null,"كارت حضور العاملين",null,null,null,null,null,null,null,null,null,null,null,null,null,null,null,"كارت حضور العاملين"]
[]
["اسم الموظف",{"$f":"DATA!B7","v":"منير العيسوى"},null,null,null,null,null,null,null,"كود الموظف",null,null,{"$f":"DATA!A7","v":3},null,null,null,"اسم الموظف",{"$f":"DATA!B47","v":"على السيد عبد الكريم"},null,null,null,null,null,null,null,"كود الموظف",null,null,23,null,null,null,"اسم الموظف",{"$f":"DATA!B87","v":"السيد رمضان"},null,null,null,null,null,null,null,"كود الموظف",null,null,43,null,null,null,"اسم الموظف",{"$f":"DATA!B127","v":"احمد محمود السعيد"},null,null,null,null,null,null,null,"كود الموظف",null,null,63,null,null,null,"اسم الموظف",{"$f":"DATA!B167","v":0},null,null,null,null,null,null,null,"كود الموظف",null,null,83]
["اسم المشروع",null,null,null,null,null,null,null,null,"كود المشروع",null,null,null,null,null,null,"اسم المشروع",null,null,null,null,null,null,null,null,"كود المشروع",null,null,null,null,null,null,"اسم المشروع",null,null,null,null,null,null,null,null,"كود المشروع",null,null,null,null,null,null,"اسم المشروع",null,null,null,null,null,null,null,null,"كود المشروع",null,null,null,null,null,null,"اسم المشروع",null,null,null,null,null,null,null,null,"كود المشروع"]
["الوظيفة",null,null,null,null,null,null,null,null,"الشهر",null,null,{"$f":"'شهر 10'!$AI$1","v":"2021-10-01"},null,null,null,"الوظيفة",null,null,null,null,null,null,null,null,"الشهر",null,null,{"$f":"'شهر 10'!$AI$1","v":"2021-10-01"},null,null,null,"الوظيفة",null,null,null,null,null,null,null,null,"الشهر",null,null,{"$f":"'شهر 10'!$AI$1","v":"2021-10-01"},null,null,null,"الوظيفة",null,null,null,null,null,null,null,null,"الشهر",null,null,{"$f":"'شهر 10'!$AI$1","v":"2021-10-01"},null,null,null,"الوظيفة",null,null,null,null,null,null,null,null,"الشهر",null,null,{"$f":"'شهر 10'!$AI$1","v":"2021-10-01"}]
[]
["التاريخ",1,2,3,4,5,6,7,8,9,10,11,12,13,14,15,"التاريخ",1,2,3,4,5,6,7,8,9,10,11,12,13,14,15,"التاريخ",1,2,3,4,5,6,7,8,9,10,11,12,13,14,15,"التاريخ",1,2,3,4,5,6,7,8,9,10,11,12,13,14,15,"التاريخ",1,2,3,4,5,6,7,8,9,10,11,12,13,14,15]
["الفتره الصباحية",{"$f":"IF('شهر 10'!D7>=4,\"☑\",\"X\")","v":"X"},{"$f":"IF('شهر 10'!E7>=4,\"☑\",\"X\")","v":"X"},{"$f":"IF('شهر 10'!F7>=4,\"☑\",\"X\")","v":"X"},{"$f":"IF('شهر 10'!G7>=4,\"☑\",\"X\")","v":"X"},{"$f":"IF('شهر 10'!H7>=4,\"☑\",\"X\")","v":"X"},{"$f":"IF('شهر 10'!I7>=4,\"☑\",\"X\")","v":"X"},{"$f":"IF('شهر 10'!J7>=4,\"☑\",\"X\")","v":"X"},{"$f":"IF('شهر 10'!K7>=4,\"☑\",\"X\")","v":"X"},{"$f":"IF('شهر 10'!L7>=4,\"☑\",\"X\")","v":"X"},{"$f":"IF('شهر 10'!M7>=4,\"☑\",\"X\")","v":"X"},{"$f":"IF('شهر 10'!N7>=4,\"☑\",\"X\")","v":"X"},{"$f":"IF('شهر 10'!O7>=4,\"☑\",\"X\")","v":"X"},{"$f":"IF('شهر 10'!P7>=4,\"☑\",\"X\")","v":"X"},{"$f":"IF('شهر 10'!Q7>=4,\"☑\",\"X\")","v":"X"},{"$f":"IF('شهر 10'!R7>=4,\"☑\",\"X\")","v":"X"},"الفتره الصباحية",null,null,null,null,null,null,null,null,null,null,null,null,null,null,null,"الفتره الصباحية",null,null,null,null,null,null,null,null,null,null,null,null,null,null,null,"الفتره الصباحية",null,null,null,null,null,null,null,null,null,null,null,null,null,null,null,"الفتره الصباحية"]
["الفتره المسائية",{"$f":"IF('شهر 10'!D7>=4,\"☑\",\"X\")","v":"X"},{"$f":"IF('شهر 10'!E7>=4,\"☑\",\"X\")","v":"X"},{"$f":"IF('شهر 10'!F7>=4,\"☑\",\"X\")","v":"X"},{"$f":"IF('شهر 10'!G7>=4,\"☑\",\"X\")","v":"X"},{"$f":"IF('شهر 10'!H7>=4,\"☑\",\"X\")","v":"X"},{"$f":"IF('شهر 10'!I7>=4,\"☑\",\"X\")","v":"X"},{"$f":"IF('شهر 10'!J7>=4,\"☑\",\"X\")","v":"X"},{"$f":"IF('شهر 10'!K7>=4,\"☑\",\"X\")","v":"X"},{"$f":"IF('شهر 10'!L7>=4,\"☑\",\"X\")","v":"X"},{"$f":"IF('شهر 10'!M7>=4,\"☑\",\"X\")","v":"X"},{"$f":"IF('شهر 10'!N7>=4,\"☑\",\"X\")","v":"X"},{"$f":"IF('شهر 10'!O7>=4,\"☑\",\"X\")","v":"X"},{"$f":"IF('شهر 10'!P7>=4,\"☑\",\"X\")","v":"X"},{"$f":"IF('شهر 10'!Q7>=4,\"☑\",\"X\")","v":"X"},{"$f":"IF('شهر 10'!R7>=4,\"☑\",\"X\")","v":"X"},"الفتره المسائية",null,null,null,null,null,null,null,null,null,null,null,null,null,null,null,"الفتره المسائية",null,null,null,null,null,null,null,null,null,null,null,null,null,null,null,"الفتره المسائية",null,null,null,null,null,null,null,null,null,null,null,null,null,null,null,"الفتره المسائية"]
["الاضافي",{"$f":"IF('شهر 10'!D7=12,\"4\",IF('شهر 10'!D7=13,\"5\",\"X\"))","v":"X"},{"$f":"IF('شهر 10'!E7=12,\"4\",IF('شهر 10'!E7=13,\"5\",\"X\"))","v":"X"},{"$f":"IF('شهر 10'!F7=12,\"4\",IF('شهر 10'!F7=13,\"5\",\"X\"))","v":"X"},{"$f":"IF('شهر 10'!G7=12,\"4\",IF('شهر 10'!G7=13,\"5\",\"X\"))","v":"X"},{"$f":"IF('شهر 10'!H7=12,\"4\",IF('شهر 10'!H7=13,\"5\",\"X\"))","v":"X"},{"$f":"IF('شهر 10'!I7=12,\"4\",IF('شهر 10'!I7=13,\"5\",\"X\"))","v":"X"},{"$f":"IF('شهر 10'!J7=12,\"4\",IF('شهر 10'!J7=13,\"5\",\"X\"))","v":"X"},{"$f":"IF('شهر 10'!K7=12,\"4\",IF('شهر 10'!K7=13,\"5\",\"X\"))","v":"X"},{"$f":"IF('شهر 10'!L7=12,\"4\",IF('شهر 10'!L7=13,\"5\",\"X\"))","v":"X"},{"$f":"IF('شهر 10'!M7=12,\"4\",IF('شهر 10'!M7=13,\"5\",\"X\"))","v":"X"},{"$f":"IF('شهر 10'!N7=12,\"4\",IF('شهر 10'!N7=13,\"5\",\"X\"))","v":"X"},{"$f":"IF('شهر 10'!O7=12,\"4\",IF('شهر 10'!O7=13,\"5\",\"X\"))","v":"X"},{"$f":"IF('شهر 10'!P7=12,\"4\",IF('شهر 10'!P7=13,\"5\",\"X\"))","v":"X"},{"$f":"IF('شهر 10'!Q7=12,\"4\",IF('شهر 10'!Q7=13,\"5\",\"X\"))","v":"X"},{"$f":"IF('شهر 10'!R7=12,\"4\",IF('شهر 10'!R7=13,\"5\",\"X\"))","v":"X"},"الاضافي",null,null,null,null,null,null,null,null,null,null,null,null,null,null,null,"الاضافي",null,null,null,null,null,null,null,null,null,null,null,null,null,null,null,"الاضافي",null,null,null,null,null,null,null,null,null,null,null,null,null,null,null,"الاضافي"]
[]
["التاريخ",16,17,18,19,20,21,22,23,24,25,26,27,28,29,30,"التاريخ",16,17,18,19,20,21,22,23,24,25,26,27,28,29,30,"التاريخ",16,17,18,19,20,21,22,23,24,25,26,27,28,29,30,"التاريخ",16,17,18,19,20,21,22,23,24,25,26,27,28,29,30,"التاريخ",16,17,18,19,20,21,22,23,24,25,26,27,28,29,30]
["الفتره الصباحية",{"$f":"IF('شهر 10'!S7>=4,\"☑\",\"X\")","v":"X"},{"$f":"IF('شهر 10'!T7>=4,\"☑\",\"X\")","v":"X"},{"$f":"IF('شهر 10'!U7>=4,\"☑\",\"X\")","v":"X"},{"$f":"IF('شهر 10'!V7>=4,\"☑\",\"X\")","v":"X"},{"$f":"IF('شهر 10'!W7>=4,\"☑\",\"X\")","v":"X"},{"$f":"IF('شهر 10'!X7>=4,\"☑\",\"X\")","v":"X"},{"$f":"IF('شهر 10'!Y7>=4,\"☑\",\"X\")","v":"X"},{"$f":"IF('شهر 10'!Z7>=4,\"☑\",\"X\")","v":"X"},{"$f":"IF('شهر 10'!AA7>=4,\"☑\",\"X\")","v":"X"},{"$f":"IF('شهر 10'!AB7>=4,\"☑\",\"X\")","v":"X"},{"$f":"IF('شهر 10'!AC7>=4,\"☑\",\"X\")","v":"X"},{"$f":"IF('شهر 10'!AD7>=4,\"☑\",\"X\")","v":"X"},{"$f":"IF('شهر 10'!AE7>=4,\"☑\",\"X\")","v":"X"},{"$f":"IF('شهر 10'!AF7>=4,\"☑\",\"X\")","v":"X"},{"$f":"IF('شهر 10'!AG7>=4,\"☑\",\"X\")","v":"X"},"الفتره الصباحية",null,null,null,null,null,null,null,null,null,null,null,null,null,null,null,"الفتره الصباحية",null,null,null,null,null,null,null,null,null,null,null,null,null,null,null,"الفتره الصباحية",null,null,null,null,null,null,null,null,null,null,null,null,null,null,null,"الفتره الصباحية"]
["الفتره المسائية",{"$f":"IF('شهر 10'!S7>=8,\"☑\",\"X\")","v":"X"},{"$f":"IF('شهر 10'!T7>=8,\"☑\",\"X\")","v":"X"},{"$f":"IF('شهر 10'!U7>=8,\"☑\",\"X\")","v":"X"},{"$f":"IF('شهر 10'!V7>=8,\"☑\",\"X\")","v":"X"},{"$f":"IF('شهر 10'!W7>=8,\"☑\",\"X\")","v":"X"},{"$f":"IF('شهر 10'!X7>=8,\"☑\",\"X\")","v":"X"},{"$f":"IF('شهر 10'!Y7>=8,\"☑\",\"X\")","v":"X"},{"$f":"IF('شهر 10'!Z7>=8,\"☑\",\"X\")","v":"X"},{"$f":"IF('شهر 10'!AA7>=8,\"☑\",\"X\")","v":"X"},{"$f":"IF('شهر 10'!AB7>=8,\"☑\",\"X\")","v":"X"},{"$f":"IF('شهر 10'!AC7>=8,\"☑\",\"X\")","v":"X"},{"$f":"IF('شهر 10'!AD7>=8,\"☑\",\"X\")","v":"X"},{"$f":"IF('شهر 10'!AE7>=8,\"☑\",\"X\")","v":"X"},{"$f":"IF('شهر 10'!AF7>=8,\"☑\",\"X\")","v":"X"},{"$f":"IF('شهر 10'!AG7>=8,\"☑\",\"X\")","v":"X"},"الفتره المسائية",null,null,null,null,null,null,null,null,null,null,null,null,null,null,null,"الفتره المسائية",null,null,null,null,null,null,null,null,null,null,null,null,null,null,null,"الفتره المسائية",null,null,null,null,null,null,null,null,null,null,null,null,null,null,null,"الفتره المسائية"]
["الاضافي",{"$f":"IF('شهر 10'!S7=12,\"4\",IF('شهر 10'!S7=13,\"5\",\"X\"))","v":"X"},{"$f":"IF('شهر 10'!T7=12,\"4\",IF('شهر 10'!T7=13,\"5\",\"X\"))","v":"X"},{"$f":"IF('شهر 10'!U7=12,\"4\",IF('شهر 10'!U7=13,\"5\",\"X\"))","v":"X"},{"$f":"IF('شهر 10'!V7=12,\"4\",IF('شهر 10'!V7=13,\"5\",\"X\"))","v":"X"},{"$f":"IF('شهر 10'!W7=12,\"4\",IF('شهر 10'!W7=13,\"5\",\"X\"))","v":"X"},{"$f":"IF('شهر 10'!X7=12,\"4\",IF('شهر 10'!X7=13,\"5\",\"X\"))","v":"X"},{"$f":"IF('شهر 10'!Y7=12,\"4\",IF('شهر 10'!Y7=13,\"5\",\"X\"))","v":"X"},{"$f":"IF('شهر 10'!Z7=12,\"4\",IF('شهر 10'!Z7=13,\"5\",\"X\"))","v":"X"},{"$f":"IF('شهر 10'!AA7=12,\"4\",IF('شهر 10'!AA7=13,\"5\",\"X\"))","v":"X"},{"$f":"IF('شهر 10'!AB7=12,\"4\",IF('شهر 10'!AB7=13,\"5\",\"X\"))","v":"X"},{"$f":"IF('شهر 10'!AC7=12,\"4\",IF('شهر 10'!AC7=13,\"5\",\"X\"))","v":"X"},{"$f":"IF('شهر 10'!AD7=12,\"4\",IF('شهر 10'!AD7=13,\"5\",\"X\"))","v":"X"},{"$f":"IF('شهر 10'!AE7=12,\"4\",IF('شهر 10'!AE7=13,\"5\",\"X\"))","v":"X"},{"$f":"IF('شهر 10'!AF7=12,\"4\",IF('شهر 10'!AF7=13,\"5\",\"X\"))","v":"X"},{"$f":"IF('شهر 10'!AG7=12,\"4\",IF('شهر 10'!AG7=13,\"5\",\"X\"))","v":"X"},"الاضافي",null,null,null,null,null,null,null,null,null,null,null,null,null,null,null,"الاضافي",null,null,null,null,null,null,null,null,null,null,null,null,null,null,null,"الاضافي",null,null,null,null,null,null,null,null,null,null,null,null,null,null,null,"الاضافي"]
[]
["عدد ايام العمل",null,null,null,null,null,null,null,null,"سلف",null,null,null,null,null,null,"عدد ايام العمل",null,null,null,null,null,null,null,null,"سلف",null,null,null,null,null,null,"عدد ايام العمل",null,null,null,null,null,null,null,null,"سلف",null,null,null,null,null,null,"عدد ايام العمل",null,null,null,null,null,null,null,null,"سلف",null,null,null,null,null,null,"عدد ايام العمل",null,null,null,null,null,null,null,null,"سلف"]
["عدد ساعات العمل",null,null,null,null,null,null,null,null,"حساب الموظف",null,null,null,null,null,null,"عدد ساعات العمل",null,null,null,null,null,null,null,null,"حساب الموظف",null,null,null,null,null,null,"عدد ساعات العمل",null,null,null,null,null,null,null,null,"حساب الموظف",null,null,null,null,null,null,"عدد ساعات العمل",null,null,null,null,null,null,null,null,"حساب الموظف",null,null,null,null,null,null,"عدد ساعات العمل",null,null,null,null,null,null,null,null,"حساب الموظف"]
[]
[]
[]
[]
[]
["مدير المشروع",null,null,null,null,null,null,null,"تم اعدادة بواسطة",null,null,null,null,null,null,null,"مدير المشروع",null,null,null,null,null,null,null,"تم اعدادة بواسطة",null,null,null,null,null,null,null,"مدير المشروع",null,null,null,null,null,null,null,"تم اعدادة بواسطة",null,null,null,null,null,null,null,"مدير المشروع",null,null,null,null,null,null,null,"تم اعدادة بواسطة",null,null,null,null,null,null,null,"مدير المشروع",null,null,null,null,null,null,null,"تم اعدادة بواسطة"]
["كارت حضور العاملين",null,null,null,null,null,null,null,null,null,null,null,null,null,null,null,"كارت حضور العاملين",null,null,null,null,null,null,null,null,null,null,null,null,null,null,null,"كارت حضور العاملين",null,null,null,null,null,null,null,null,null,null,null,null,null,null,null,"كارت حضور العاملين",null,null,null,null,null,null,null,null,null,null,null,null,null,null,null,"كارت حضور العاملين"]
[]
["اسم الموظف",{"$f":"DATA!B9","v":"باسم ابو الخير"},null,null,null,null,null,null,null,"كود الموظف",null,null,4,null,null,null,"اسم الموظف",{"$f":"DATA!B49","v":"حلمي احمد العجوز"},null,null,null,null,null,null,null,"كود الموظف",null,null,24,null,null,null,"اسم الموظف",{"$f":"DATA!B89","v":"فارس شاكوش"},null,null,null,null,null,null,null,"كود الموظف",null,null,44,null,null,null,"اسم الموظف",{"$f":"DATA!B129","v":"خالد عزت"},null,null,null,null,null,null,null,"كود الموظف",null,null,64,null,null,null,"اسم الموظف",{"$f":"DATA!B169","v":0},null,null,null,null,null,null,null,"كود الموظف",null,null,84]
["اسم المشروع",null,null,null,null,null,null,null,null,"كود المشروع",null,null,null,null,null,null,"اسم المشروع",null,null,null,null,null,null,null,null,"كود المشروع",null,null,null,null,null,null,"اسم المشروع",null,null,null,null,null,null,null,null,"كود المشروع",null,null,null,null,null,null,"اسم المشروع",null,null,null,null,null,null,null,null,"كود المشروع",null,null,null,null,null,null,"اسم المشروع",null,null,null,null,null,null,null,null,"كود المشروع"]
["الوظيفة",null,null,null,null,null,null,null,null,"الشهر",null,null,{"$f":"'شهر 10'!$AI$1","v":"2021-10-01"},null,null,null,"الوظيفة",null,null,null,null,null,null,null,null,"الشهر",null,null,{"$f":"'شهر 10'!$AI$1","v":"2021-10-01"},null,null,null,"الوظيفة",null,null,null,null,null,null,null,null,"الشهر",null,null,{"$f":"'شهر 10'!$AI$1","v":"2021-10-01"},null,null,null,"الوظيفة",null,null,null,null,null,null,null,null,"الشهر",null,null,{"$f":"'شهر 10'!$AI$1","v":"2021-10-01"},null,null,null,"الوظيفة",null,null,null,null,null,null,null,null,"الشهر",null,null,{"$f":"'شهر 10'!$AI$1","v":"2021-10-01"}]
[]
["التاريخ",1,2,3,4,5,6,7,8,9,10,11,12,13,14,15,"التاريخ",1,2,3,4,5,6,7,8,9,10,11,12,13,14,15,"التاريخ",1,2,3,4,5,6,7,8,9,10,11,12,13,14,15,"التاريخ",1,2,3,4,5,6,7,8,9,10,11,12,13,14,15,"التاريخ",1,2,3,4,5,6,7,8,9,10,11,12,13,14,15]
["الفتره الصباحية",null,null,null,null,null,null,null,null,null,null,null,null,null,null,null,"الفتره الصباحية",null,null,null,null,null,null,null,null,null,null,null,null,null,null,null,"الفتره الصباحية",null,null,null,null,null,null,null,null,null,null,null,null,null,null,null,"الفتره الصباحية",null,null,null,null,null,null,null,null,null,null,null,null,null,null,null,"الفتره الصباحية"]
["الفتره المسائية",null,null,null,null,null,null,null,null,null,null,null,null,null,null,null,"الفتره المسائية",null,null,null,null,null,null,null,null,null,null,null,null,null,null,null,"الفتره المسائية",null,null,null,null,null,null,null,null,null,null,null,null,null,null,null,"الفتره المسائية",null,null,null,null,null,null,null,null,null,null,null,null,null,null,null,"الفتره المسائية"]
["الاضافي",null,null,null,null,null,null,null,null,null,null,null,null,null,null,null,"الاضافي",null,null,null,null,null,null,null,null,null,null,null,null,null,null,null,"الاضافي",null,null,null,null,null,null,null,null,null,null,null,null,null,null,null,"الاضافي",null,null,null,null,null,null,null,null,null,null,null,null,null,null,null,"الاضافي"]
[]
["التاريخ",16,17,18,19,20,21,22,23,24,25,26,27,28,29,30,"التاريخ",16,17,18,19,20,21,22,23,24,25,26,27,28,29,30,"التاريخ",16,17,18,19,20,21,22,23,24,25,26,27,28,29,30,"التاريخ",16,17,18,19,20,21,22,23,24,25,26,27,28,29,30,"التاريخ",16,17,18,19,20,21,22,23,24,25,26,27,28,29,30]
["الفتره الصباحية",null,null,null,null,null,null,null,null,null,null,null,null,null,null,null,"الفتره الصباحية",null,null,null,null,null,null,null,null,null,null,null,null,null,null,null,"الفتره الصباحية",null,null,null,null,null,null,null,null,null,null,null,null,null,null,null,"الفتره الصباحية",null,null,null,null,null,null,null,null,null,null,null,null,null,null,null,"الفتره الصباحية"]
["الفتره المسائية",null,null,null,null,null,null,null,null,null,null,null,null,null,null,null,"الفتره المسائية",null,null,null,null,null,null,null,null,null,null,null,null,null,null,null,"الفتره المسائية",null,null,null,null,null,null,null,null,null,null,null,null,null,null,null,"الفتره المسائية",null,null,null,null,null,null,null,null,null,null,null,null,null,null,null,"الفتره المسائية"]
["الاضافي",null,null,null,null,null,null,null,null,null,null,null,null,null,null,null,"الاضافي",null,null,null,null,null,null,null,null,null,null,null,null,null,null,null,"الاضافي",null,null,null,null,null,null,null,null,null,null,null,null,null,null,null,"الاضافي",null,null,null,null,null,null,null,null,null,null,null,null,null,null,null,"الاضافي"]
[]
["عدد ايام العمل",null,null,null,null,null,null,null,null,"سلف",null,null,null,null,null,null,"عدد ايام العمل",null,null,null,null,null,null,null,null,"سلف",null,null,null,null,null,null,"عدد ايام العمل",null,null,null,null,null,null,null,null,"سلف",null,null,null,null,null,null,"عدد ايام العمل",null,null,null,null,null,null,null,null,"سلف",null,null,null,null,null,null,"عدد ايام العمل",null,null,null,null,null,null,null,null,"سلف"]
["عدد ساعات العمل",null,null,null,null,null,null,null,null,"حساب الموظف",null,null,null,null,null,null,"عدد ساعات العمل",null,null,null,null,null,null,null,null,"حساب الموظف",null,null,null,null,null,null,"عدد ساعات العمل",null,null,null,null,null,null,null,null,"حساب الموظف",null,null,null,null,null,null,"عدد ساعات العمل",null,null,null,null,null,null,null,null,"حساب الموظف",null,null,null,null,null,null,"عدد ساعات العمل",null,null,null,null,null,null,null,null,"حساب الموظف"]
[]
[]
[]
[]
[]
["مدير المشروع",null,null,null,null,null,null,null,"تم اعدادة بواسطة",null,null,null,null,null,null,null,"مدير المشروع",null,null,null,null,null,null,null,"تم اعدادة بواسطة",null,null,null,null,null,null,null,"مدير المشروع",null,null,null,null,null,null,null,"تم اعدادة بواسطة",null,null,null,null,null,null,null,"مدير المشروع",null,null,null,null,null,null,null,"تم اعدادة بواسطة",null,null,null,null,null,null,null,"مدير المشروع",null,null,null,null,null,null,null,"تم اعدادة بواسطة"]
[]
["كارت حضور العاملين",null,null,null,null,null,null,null,null,null,null,null,null,null,null,null,"كارت حضور العاملين",null,null,null,null,null,null,null,null,null,null,null,null,null,null,null,"كارت حضور العاملين",null,null,null,null,null,null,null,null,null,null,null,null,null,null,null,"كارت حضور العاملين",null,null,null,null,null,null,null,null,null,null,null,null,null,null,null,"كارت حضور العاملين"]
[]
["اسم الموظف",{"$f":"DATA!B11","v":"عبد الطيف المرسي"},null,null,null,null,null,null,null,"كود الموظف",null,null,5,null,null,null,"اسم الموظف",{"$f":"DATA!B51","v":"فارس على عبوده"},null,null,null,null,null,null,null,"كود الموظف",null,null,25,null,null,null,"اسم الموظف",{"$f":"DATA!B91","v":0},null,null,null,null,null,null,null,"كود الموظف",null,null,45,null,null,null,"اسم الموظف",{"$f":"DATA!B131","v":"سامح محمد الرشيدى"},null,null,null,null,null,null,null,"كود الموظف",null,null,65,null,null,null,"اسم الموظف",{"$f":"DATA!B171","v":"ابراهيم العيسوى"},null,null,null,null,null,null,null,"كود الموظف",null,null,85]
["اسم المشروع",null,null,null,null,null,null,null,null,"كود المشروع",null,null,null,null,null,null,"اسم المشروع",null,null,null,null,null,null,null,null,"كود المشروع",null,null,null,null,null,null,"اسم المشروع",null,null,null,null,null,null,null,null,"كود المشروع",null,null,null,null,null,null,"اسم المشروع",null,null,null,null,null,null,null,null,"كود المشروع",null,null,null,null,null,null,"اسم المشروع",null,null,null,null,null,null,null,null,"كود المشروع"]
["الوظيفة",null,null,null,null,null,null,null,null,"الشهر",null,null,{"$f":"'شهر 10'!$AI$1","v":"2021-10-01"},null,null,null,"الوظيفة",null,null,null,null,null,null,null,null,"الشهر",null,null,{"$f":"'شهر 10'!$AI$1","v":"2021-10-01"},null,null,null,"الوظيفة",null,null,null,null,null,null,null,null,"الشهر",null,null,{"$f":"'شهر 10'!$AI$1","v":"2021-10-01"},null,null,null,"الوظيفة",null,null,null,null,null,null,null,null,"الشهر",null,null,{"$f":"'شهر 10'!$AI$1","v":"2021-10-01"},null,null,null,"الوظيفة",null,null,null,null,null,null,null,null,"الشهر",null,null,{"$f":"'شهر 10'!$AI$1","v":"2021-10-01"}]
[]
["التاريخ",1,2,3,4,5,6,7,8,9,10,11,12,13,14,15,"التاريخ",1,2,3,4,5,6,7,8,9,10,11,12,13,14,15,"التاريخ",1,2,3,4,5,6,7,8,9,10,11,12,13,14,15,"التاريخ",1,2,3,4,5,6,7,8,9,10,11,12,13,14,15,"التاريخ",1,2,3,4,5,6,7,8,9,10,11,12,13,14,15]
["الفتره الصباحية",null,null,null,null,null,null,null,null,null,null,null,null,null,null,null,"الفتره الصباحية",null,null,null,null,null,null,null,null,null,null,null,null,null,null,null,"الفتره الصباحية",null,null,null,null,null,null,null,null,null,null,null,null,null,null,null,"الفتره الصباحية",null,null,null,null,null,null,null,null,null,null,null,null,null,null,null,"الفتره الصباحية"]
["الفتره المسائية",null,null,null,null,null,null,null,null,null,null,null,null,null,null,null,"الفتره المسائية",null,null,null,null,null,null,null,null,null,null,null,null,null,null,null,"الفتره المسائية",null,null,null,null,null,null,null,null,null,null,null,null,null,null,null,"الفتره المسائية",null,null,null,null,null,null,null,null,null,null,null,null,null,null,null,"الفتره المسائية"]
["الاضافي",null,null,null,null,null,null,null,null,null,null,null,null,null,null,null,"الاضافي",null,null,null,null,null,null,null,null,null,null,null,null,null,null,null,"الاضافي",null,null,null,null,null,null,null,null,null,null,null,null,null,null,null,"الاضافي",null,null,null,null,null,null,null,null,null,null,null,null,null,null,null,"الاضافي"]
[]
["التاريخ",16,17,18,19,20,21,22,23,24,25,26,27,28,29,30,"التاريخ",16,17,18,19,20,21,22,23,24,25,26,27,28,29,30,"التاريخ",16,17,18,19,20,21,22,23,24,25,26,27,28,29,30,"التاريخ",16,17,18,19,20,21,22,23,24,25,26,27,28,29,30,"التاريخ",16,17,18,19,20,21,22,23,24,25,26,27,28,29,30]
["الفتره الصباحية",null,null,null,null,null,null,null,null,null,null,null,null,null,null,null,"الفتره الصباحية",null,null,null,null,null,null,null,null,null,null,null,null,null,null,null,"الفتره الصباحية",null,null,null,null,null,null,null,null,null,null,null,null,null,null,null,"الفتره الصباحية",null,null,null,null,null,null,null,null,null,null,null,null,null,null,null,"الفتره الصباحية"]
["الفتره المسائية",null,null,null,null,null,null,null,null,null,null,null,null,null,null,null,"الفتره المسائية",null,null,null,null,null,null,null,null,null,null,null,null,null,null,null,"الفتره المسائية",null,null,null,null,null,null,null,null,null,null,null,null,null,null,null,"الفتره المسائية",null,null,null,null,null,null,null,null,null,null,null,null,null,null,null,"الفتره المسائية"]
["الاضافي",null,null,null,null,null,null,null,null,null,null,null,null,null,null,null,"الاضافي",null,null,null,null,null,null,null,null,null,null,null,null,null,null,null,"الاضافي",null,null,null,null,null,null,null,null,null,null,null,null,null,null,null,"الاضافي",null,null,null,null,null,null,null,null,null,null,null,null,null,null,null,"الاضافي"]
[]
["عدد ايام العمل",null,null,null,null,null,null,null,null,"سلف",null,null,null,null,null,null,"عدد ايام العمل",null,null,null,null,null,null,null,null,"سلف",null,null,null,null,null,null,"عدد ايام العمل",null,null,null,null,null,null,null,null,"سلف",null,null,null,null,null,null,"عدد ايام العمل",null,null,null,null,null,null,null,null,"سلف",null,null,null,null,null,null,"عدد ايام العمل",null,null,null,null,null,null,null,null,"سلف"]
["عدد ساعات العمل",null,null,null,null,null,null,null,null,"حساب الموظف",null,null,null,null,null,null,"عدد ساعات العمل",null,null,null,null,null,null,null,null,"حساب الموظف",null,null,null,null,null,null,"عدد ساعات العمل",null,null,null,null,null,null,null,null,"حساب الموظف",null,null,null,null,null,null,"عدد ساعات العمل",null,null,null,null,null,null,null,null,"حساب الموظف",null,null,null,null,null,null,"عدد ساعات العمل",null,null,null,null,null,null,null,null,"حساب الموظف"]
[]
[]
[]
[]
[]
["مدير المشروع",null,null,null,null,null,null,null,"تم اعدادة بواسطة",null,null,null,null,null,null,null,"مدير المشروع",null,null,null,null,null,null,null,"تم اعدادة بواسطة",null,null,null,null,null,null,null,"مدير المشروع",null,null,null,null,null,null,null,"تم اعدادة بواسطة",null,null,null,null,null,null,null,"مدير المشروع",null,null,null,null,null,null,null,"تم اعدادة بواسطة",null,null,null,null,null,null,null,"مدير المشروع",null,null,null,null,null,null,null,"تم اعدادة بواسطة"]
["كارت حضور العاملين",null,null,null,null,null,null,null,null,null,null,null,null,null,null,null,"كارت حضور العاملين",null,null,null,null,null,null,null,null,null,null,null,null,null,null,null,"كارت حضور العاملين",null,null,null,null,null,null,null,null,null,null,null,null,null,null,null,"كارت حضور العاملين",null,null,null,null,null,null,null,null,null,null,null,null,null,null,null,"كارت حضور العاملين"]
[]
["اسم الموظف",{"$f":"DATA!B13","v":"محمود ابراهيم ضيف"},null,null,null,null,null,null,null,"كود الموظف",null,null,6,null,null,null,"اسم الموظف",{"$f":"DATA!B53","v":"محمد عبوده عبد المولى"},null,null,null,null,null,null,null,"كود الموظف",null,null,26,null,null,null,"اسم الموظف",{"$f":"DATA!B93","v":"السيد نشأت"},null,null,null,null,null,null,null,"كود الموظف",null,null,46,null,null,null,"اسم الموظف",{"$f":"DATA!B133","v":"خالد وليد"},null,null,null,null,null,null,null,"كود الموظف",null,null,66,null,null,null,"اسم الموظف",{"$f":"DATA!B173","v":0},null,null,null,null,null,null,null,"كود الموظف",null,null,86]
["اسم المشروع",null,null,null,null,null,null,null,null,"كود المشروع",null,null,null,null,null,null,"اسم المشروع",null,null,null,null,null,null,null,null,"كود المشروع",null,null,null,null,null,null,"اسم المشروع",null,null,null,null,null,null,null,null,"كود المشروع",null,null,null,null,null,null,"اسم المشروع",null,null,null,null,null,null,null,null,"كود المشروع",null,null,null,null,null,null,"اسم المشروع",null,null,null,null,null,null,null,null,"كود المشروع"]
["الوظيفة",null,null,null,null,null,null,null,null,"الشهر",null,null,{"$f":"'شهر 10'!$AI$1","v":"2021-10-01"},null,null,null,"الوظيفة",null,null,null,null,null,null,null,null,"الشهر",null,null,{"$f":"'شهر 10'!$AI$1","v":"2021-10-01"},null,null,null,"الوظيفة",null,null,null,null,null,null,null,null,"الشهر",null,null,{"$f":"'شهر 10'!$AI$1","v":"2021-10-01"},null,null,null,"الوظيفة",null,null,null,null,null,null,null,null,"الشهر",null,null,{"$f":"'شهر 10'!$AI$1","v":"2021-10-01"},null,null,null,"الوظيفة",null,null,null,null,null,null,null,null,"الشهر",null,null,{"$f":"'شهر 10'!$AI$1","v":"2021-10-01"}]
[]
["التاريخ",1,2,3,4,5,6,7,8,9,10,11,12,13,14,15,"التاريخ",1,2,3,4,5,6,7,8,9,10,11,12,13,14,15,"التاريخ",1,2,3,4,5,6,7,8,9,10,11,12,13,14,15,"التاريخ",1,2,3,4,5,6,7,8,9,10,11,12,13,14,15,"التاريخ",1,2,3,4,5,6,7,8,9,10,11,12,13,14,15]
["الفتره الصباحية",null,null,null,null,null,null,null,null,null,null,null,null,null,null,null,"الفتره الصباحية",null,null,null,null,null,null,null,null,null,null,null,null,null,null,null,"الفتره الصباحية",null,null,null,null,null,null,null,null,null,null,null,null,null,null,null,"الفتره الصباحية",null,null,null,null,null,null,null,null,null,null,null,null,null,null,null,"الفتره الصباحية"]
["الفتره المسائية",null,null,null,null,null,null,null,null,null,null,null,null,null,null,null,"الفتره المسائية",null,null,null,null,null,null,null,null,null,null,null,null,null,null,null,"الفتره المسائية",null,null,null,null,null,null,null,null,null,null,null,null,null,null,null,"الفتره المسائية",null,null,null,null,null,null,null,null,null,null,null,null,null,null,null,"الفتره المسائية"]
["الاضافي",null,null,null,null,null,null,null,null,null,null,null,null,null,null,null,"الاضافي",null,null,null,null,null,null,null,null,null,null,null,null,null,null,null,"الاضافي",null,null,null,null,null,null,null,null,null,null,null,null,null,null,null,"الاضافي",null,null,null,null,null,null,null,null,null,null,null,null,null,null,null,"الاضافي"]
[]
["التاريخ",16,17,18,19,20,21,22,23,24,25,26,27,28,29,30,"التاريخ",16,17,18,19,20,21,22,23,24,25,26,27,28,29,30,"التاريخ",16,17,18,19,20,21,22,23,24,25,26,27,28,29,30,"التاريخ",16,17,18,19,20,21,22,23,24,25,26,27,28,29,30,"التاريخ",16,17,18,19,20,21,22,23,24,25,26,27,28,29,30]
["الفتره الصباحية",null,null,null,null,null,null,null,null,null,null,null,null,null,null,null,"الفتره الصباحية",null,null,null,null,null,null,null,null,null,null,null,null,null,null,null,"الفتره الصباحية",null,null,null,null,null,null,null,null,null,null,null,null,null,null,null,"الفتره الصباحية",null,null,null,null,null,null,null,null,null,null,null,null,null,null,null,"الفتره الصباحية"]
["الفتره المسائية",null,null,null,null,null,null,null,null,null,null,null,null,null,null,null,"الفتره المسائية",null,null,null,null,null,null,null,null,null,null,null,null,null,null,null,"الفتره المسائية",null,null,null,null,null,null,null,null,null,null,null,null,null,null,null,"الفتره المسائية",null,null,null,null,null,null,null,null,null,null,null,null,null,null,null,"الفتره المسائية"]
["الاضافي",null,null,null,null,null,null,null,null,null,null,null,null,null,null,null,"الاضافي",null,null,null,null,null,null,null,null,null,null,null,null,null,null,null,"الاضافي",null,null,null,null,null,null,null,null,null,null,null,null,null,null,null,"الاضافي",null,null,null,null,null,null,null,null,null,null,null,null,null,null,null,"الاضافي"]
[]
["عدد ايام العمل",null,null,null,null,null,null,null,null,"سلف",null,null,null,null,null,null,"عدد ايام العمل",null,null,null,null,null,null,null,null,"سلف",null,null,null,null,null,null,"عدد ايام العمل",null,null,null,null,null,null,null,null,"سلف",null,null,null,null,null,null,"عدد ايام العمل",null,null,null,null,null,null,null,null,"سلف",null,null,null,null,null,null,"عدد ايام العمل",null,null,null,null,null,null,null,null,"سلف"]
["عدد ساعات العمل",null,null,null,null,null,null,null,null,"حساب الموظف",null,null,null,null,null,null,"عدد ساعات العمل",null,null,null,null,null,null,null,null,"حساب الموظف",null,null,null,null,null,null,"عدد ساعات العمل",null,null,null,null,null,null,null,null,"حساب الموظف",null,null,null,null,null,null,"عدد ساعات العمل",null,null,null,null,null,null,null,null,"حساب الموظف",null,null,null,null,null,null,"عدد ساعات العمل",null,null,null,null,null,null,null,null,"حساب الموظف"]
[]
[]
[]
[]
[]
["مدير المشروع",null,null,null,null,null,null,null,"تم اعدادة بواسطة",null,null,null,null,null,null,null,"مدير المشروع",null,null,null,null,null,null,null,"تم اعدادة بواسطة",null,null,null,null,null,null,null,"مدير المشروع",null,null,null,null,null,null,null,"تم اعدادة بواسطة",null,null,null,null,null,null,null,"مدير المشروع",null,null,null,null,null,null,null,"تم اعدادة بواسطة",null,null,null,null,null,null,null,"مدير المشروع",null,null,null,null,null,null,null,"تم اعدادة بواسطة"]
[]
["كارت حضور العاملين",null,null,null,null,null,null,null,null,null,null,null,null,null,null,null,"كارت حضور العاملين",null,null,null,null,null,null,null,null,null,null,null,null,null,null,null,"كارت حضور العاملين",null,null,null,null,null,null,null,null,null,null,null,null,null,null,null,"كارت حضور العاملين",null,null,null,null,null,null,null,null,null,null,null,null,null,null,null,"كارت حضور العاملين"]
[]
["اسم الموظف",{"$f":"DATA!B15","v":"خليل محمد خليل"},null,null,null,null,null,null,null,"كود الموظف",null,null,7,null,null,null,"اسم الموظف",{"$f":"DATA!B55","v":"ايمن عبوده عبد المولى"},null,null,null,null,null,null,null,"كود الموظف",null,null,27,null,null,null,"اسم الموظف",{"$f":"DATA!B95","v":"محمود ابراهيم"},null,null,null,null,null,null,null,"كود الموظف",null,null,47,null,null,null,"اسم الموظف",{"$f":"DATA!B135","v":"محمد امر الله"},null,null,null,null,null,null,null,"كود الموظف",null,null,67,null,null,null,"اسم الموظف",{"$f":"DATA!B175","v":0},null,null,null,null,null,null,null,"كود الموظف",null,null,87]
["اسم المشروع",null,null,null,null,null,null,null,null,"كود المشروع",null,null,null,null,null,null,"اسم المشروع",null,null,null,null,null,null,null,null,"كود المشروع",null,null,null,null,null,null,"اسم المشروع",null,null,null,null,null,null,null,null,"كود المشروع",null,null,null,null,null,null,"اسم المشروع",null,null,null,null,null,null,null,null,"كود المشروع",null,null,null,null,null,null,"اسم المشروع",null,null,null,null,null,null,null,null,"كود المشروع"]
["الوظيفة",null,null,null,null,null,null,null,null,"الشهر",null,null,{"$f":"'شهر 10'!$AI$1","v":"2021-10-01"},null,null,null,"الوظيفة",null,null,null,null,null,null,null,null,"الشهر",null,null,{"$f":"'شهر 10'!$AI$1","v":"2021-10-01"},null,null,null,"الوظيفة",null,null,null,null,null,null,null,null,"الشهر",null,null,{"$f":"'شهر 10'!$AI$1","v":"2021-10-01"},null,null,null,"الوظيفة",null,null,null,null,null,null,null,null,"الشهر",null,null,{"$f":"'شهر 10'!$AI$1","v":"2021-10-01"},null,null,null,"الوظيفة",null,null,null,null,null,null,null,null,"الشهر",null,null,{"$f":"'شهر 10'!$AI$1","v":"2021-10-01"}]
[]
["التاريخ",1,2,3,4,5,6,7,8,9,10,11,12,13,14,15,"التاريخ",1,2,3,4,5,6,7,8,9,10,11,12,13,14,15,"التاريخ",1,2,3,4,5,6,7,8,9,10,11,12,13,14,15,"التاريخ",1,2,3,4,5,6,7,8,9,10,11,12,13,14,15,"التاريخ",1,2,3,4,5,6,7,8,9,10,11,12,13,14,15]
["الفتره الصباحية",null,null,null,null,null,null,null,null,null,null,null,null,null,null,null,"الفتره الصباحية",null,null,null,null,null,null,null,null,null,null,null,null,null,null,null,"الفتره الصباحية",null,null,null,null,null,null,null,null,null,null,null,null,null,null,null,"الفتره الصباحية",null,null,null,null,null,null,null,null,null,null,null,null,null,null,null,"الفتره الصباحية"]
["الفتره المسائية",null,null,null,null,null,null,null,null,null,null,null,null,null,null,null,"الفتره المسائية",null,null,null,null,null,null,null,null,null,null,null,null,null,null,null,"الفتره المسائية",null,null,null,null,null,null,null,null,null,null,null,null,null,null,null,"الفتره المسائية",null,null,null,null,null,null,null,null,null,null,null,null,null,null,null,"الفتره المسائية"]
["الاضافي",null,null,null,null,null,null,null,null,null,null,null,null,null,null,null,"الاضافي",null,null,null,null,null,null,null,null,null,null,null,null,null,null,null,"الاضافي",null,null,null,null,null,null,null,null,null,null,null,null,null,null,null,"الاضافي",null,null,null,null,null,null,null,null,null,null,null,null,null,null,null,"الاضافي"]
[]
["التاريخ",16,17,18,19,20,21,22,23,24,25,26,27,28,29,30,"التاريخ",16,17,18,19,20,21,22,23,24,25,26,27,28,29,30,"التاريخ",16,17,18,19,20,21,22,23,24,25,26,27,28,29,30,"التاريخ",16,17,18,19,20,21,22,23,24,25,26,27,28,29,30,"التاريخ",16,17,18,19,20,21,22,23,24,25,26,27,28,29,30]
["الفتره الصباحية",null,null,null,null,null,null,null,null,null,null,null,null,null,null,null,"الفتره الصباحية",null,null,null,null,null,null,null,null,null,null,null,null,null,null,null,"الفتره الصباحية",null,null,null,null,null,null,null,null,null,null,null,null,null,null,null,"الفتره الصباحية",null,null,null,null,null,null,null,null,null,null,null,null,null,null,null,"الفتره الصباحية"]
["الفتره المسائية",null,null,null,null,null,null,null,null,null,null,null,null,null,null,null,"الفتره المسائية",null,null,null,null,null,null,null,null,null,null,null,null,null,null,null,"الفتره المسائية",null,null,null,null,null,null,null,null,null,null,null,null,null,null,null,"الفتره المسائية",null,null,null,null,null,null,null,null,null,null,null,null,null,null,null,"الفتره المسائية"]
["الاضافي",null,null,null,null,null,null,null,null,null,null,null,null,null,null,null,"الاضافي",null,null,null,null,null,null,null,null,null,null,null,null,null,null,null,"الاضافي",null,null,null,null,null,null,null,null,null,null,null,null,null,null,null,"الاضافي",null,null,null,null,null,null,null,null,null,null,null,null,null,null,null,"الاضافي"]
[]
["عدد ايام العمل",null,null,null,null,null,null,null,null,"سلف",null,null,null,null,null,null,"عدد ايام العمل",null,null,null,null,null,null,null,null,"سلف",null,null,null,null,null,null,"عدد ايام العمل",null,null,null,null,null,null,null,null,"سلف",null,null,null,null,null,null,"عدد ايام العمل",null,null,null,null,null,null,null,null,"سلف",null,null,null,null,null,null,"عدد ايام العمل",null,null,null,null,null,null,null,null,"سلف"]
["عدد ساعات العمل",null,null,null,null,null,null,null,null,"حساب الموظف",null,null,null,null,null,null,"عدد ساعات العمل",null,null,null,null,null,null,null,null,"حساب الموظف",null,null,null,null,null,null,"عدد ساعات العمل",null,null,null,null,null,null,null,null,"حساب الموظف",null,null,null,null,null,null,"عدد ساعات العمل",null,null,null,null,null,null,null,null,"حساب الموظف",null,null,null,null,null,null,"عدد ساعات العمل",null,null,null,null,null,null,null,null,"حساب الموظف"]
[]
[]
[]
[]
[]
["مدير المشروع",null,null,null,null,null,null,null,"تم اعدادة بواسطة",null,null,null,null,null,null,null,"مدير المشروع",null,null,null,null,null,null,null,"تم اعدادة بواسطة",null,null,null,null,null,null,null,"مدير المشروع",null,null,null,null,null,null,null,"تم اعدادة بواسطة",null,null,null,null,null,null,null,"مدير المشروع",null,null,null,null,null,null,null,"تم اعدادة بواسطة",null,null,null,null,null,null,null,"مدير المشروع",null,null,null,null,null,null,null,"تم اعدادة بواسطة"]
["كارت حضور العاملين",null,null,null,null,null,null,null,null,null,null,null,null,null,null,null,"كارت حضور العاملين",null,null,null,null,null,null,null,null,null,null,null,null,null,null,null,"كارت حضور العاملين",null,null,null,null,null,null,null,null,null,null,null,null,null,null,null,"كارت حضور العاملين",null,null,null,null,null,null,null,null,null,null,null,null,null,null,null,"كارت حضور العاملين"]
[]
["اسم الموظف",{"$f":"DATA!B17","v":"حسام محسن"},null,null,null,null,null,null,null,"كود الموظف",null,null,8,null,null,null,"اسم الموظف",{"$f":"DATA!B57","v":"حاتم عبوده عبد المولى"},null,null,null,null,null,null,null,"كود الموظف",null,null,28,null,null,null,"اسم الموظف",{"$f":"DATA!B97","v":"نصراحمد مسعد"},null,null,null,null,null,null,null,"كود الموظف",null,null,48,null,null,null,"اسم الموظف",{"$f":"DATA!B137","v":"فايز المحلاوى"},null,null,null,null,null,null,null,"كود الموظف",null,null,68,null,null,null,"اسم الموظف",{"$f":"DATA!B177","v":0},null,null,null,null,null,null,null,"كود الموظف",null,null,88]
["اسم المشروع",null,null,null,null,null,null,null,null,"كود المشروع",null,null,null,null,null,null,"اسم المشروع",null,null,null,null,null,null,null,null,"كود المشروع",null,null,null,null,null,null,"اسم المشروع",null,null,null,null,null,null,null,null,"كود المشروع",null,null,null,null,null,null,"اسم المشروع",null,null,null,null,null,null,null,null,"كود المشروع",null,null,null,null,null,null,"اسم المشروع",null,null,null,null,null,null,null,null,"كود المشروع"]
["الوظيفة",null,null,null,null,null,null,null,null,"الشهر",null,null,{"$f":"'شهر 10'!$AI$1","v":"2021-10-01"},null,null,null,"الوظيفة",null,null,null,null,null,null,null,null,"الشهر",null,null,{"$f":"'شهر 10'!$AI$1","v":"2021-10-01"},null,null,null,"الوظيفة",null,null,null,null,null,null,null,null,"الشهر",null,null,{"$f":"'شهر 10'!$AI$1","v":"2021-10-01"},null,null,null,"الوظيفة",null,null,null,null,null,null,null,null,"الشهر",null,null,{"$f":"'شهر 10'!$AI$1","v":"2021-10-01"},null,null,null,"الوظيفة",null,null,null,null,null,null,null,null,"الشهر",null,null,{"$f":"'شهر 10'!$AI$1","v":"2021-10-01"}]
[]
["التاريخ",1,2,3,4,5,6,7,8,9,10,11,12,13,14,15,"التاريخ",1,2,3,4,5,6,7,8,9,10,11,12,13,14,15,"التاريخ",1,2,3,4,5,6,7,8,9,10,11,12,13,14,15,"التاريخ",1,2,3,4,5,6,7,8,9,10,11,12,13,14,15,"التاريخ",1,2,3,4,5,6,7,8,9,10,11,12,13,14,15]
["الفتره الصباحية",null,null,null,null,null,null,null,null,null,null,null,null,null,null,null,"الفتره الصباحية",null,null,null,null,null,null,null,null,null,null,null,null,null,null,null,"الفتره الصباحية",null,null,null,null,null,null,null,null,null,null,null,null,null,null,null,"الفتره الصباحية",null,null,null,null,null,null,null,null,null,null,null,null,null,null,null,"الفتره الصباحية"]
["الفتره المسائية",null,null,null,null,null,null,null,null,null,null,null,null,null,null,null,"الفتره المسائية",null,null,null,null,null,null,null,null,null,null,null,null,null,null,null,"الفتره المسائية",null,null,null,null,null,null,null,null,null,null,null,null,null,null,null,"الفتره المسائية",null,null,null,null,null,null,null,null,null,null,null,null,null,null,null,"الفتره المسائية"]
["الاضافي",null,null,null,null,null,null,null,null,null,null,null,null,null,null,null,"الاضافي",null,null,null,null,null,null,null,null,null,null,null,null,null,null,null,"الاضافي",null,null,null,null,null,null,null,null,null,null,null,null,null,null,null,"الاضافي",null,null,null,null,null,null,null,null,null,null,null,null,null,null,null,"الاضافي"]
[]
["التاريخ",16,17,18,19,20,21,22,23,24,25,26,27,28,29,30,"التاريخ",16,17,18,19,20,21,22,23,24,25,26,27,28,29,30,"التاريخ",16,17,18,19,20,21,22,23,24,25,26,27,28,29,30,"التاريخ",16,17,18,19,20,21,22,23,24,25,26,27,28,29,30,"التاريخ",16,17,18,19,20,21,22,23,24,25,26,27,28,29,30]
["الفتره الصباحية",null,null,null,null,null,null,null,null,null,null,null,null,null,null,null,"الفتره الصباحية",null,null,null,null,null,null,null,null,null,null,null,null,null,null,null,"الفتره الصباحية",null,null,null,null,null,null,null,null,null,null,null,null,null,null,null,"الفتره الصباحية",null,null,null,null,null,null,null,null,null,null,null,null,null,null,null,"الفتره الصباحية"]
["الفتره المسائية",null,null,null,null,null,null,null,null,null,null,null,null,null,null,null,"الفتره المسائية",null,null,null,null,null,null,null,null,null,null,null,null,null,null,null,"الفتره المسائية",null,null,null,null,null,null,null,null,null,null,null,null,null,null,null,"الفتره المسائية",null,null,null,null,null,null,null,null,null,null,null,null,null,null,null,"الفتره المسائية"]
["الاضافي",null,null,null,null,null,null,null,null,null,null,null,null,null,null,null,"الاضافي",null,null,null,null,null,null,null,null,null,null,null,null,null,null,null,"الاضافي",null,null,null,null,null,null,null,null,null,null,null,null,null,null,null,"الاضافي",null,null,null,null,null,null,null,null,null,null,null,null,null,null,null,"الاضافي"]
[]
["عدد ايام العمل",null,null,null,null,null,null,null,null,"سلف",null,null,null,null,null,null,"عدد ايام العمل",null,null,null,null,null,null,null,null,"سلف",null,null,null,null,null,null,"عدد ايام العمل",null,null,null,null,null,null,null,null,"سلف",null,null,null,null,null,null,"عدد ايام العمل",null,null,null,null,null,null,null,null,"سلف",null,null,null,null,null,null,"عدد ايام العمل",null,null,null,null,null,null,null,null,"سلف"]
["عدد ساعات العمل",null,null,null,null,null,null,null,null,"حساب الموظف",null,null,null,null,null,null,"عدد ساعات العمل",null,null,null,null,null,null,null,null,"حساب الموظف",null,null,null,null,null,null,"عدد ساعات العمل",null,null,null,null,null,null,null,null,"حساب الموظف",null,null,null,null,null,null,"عدد ساعات العمل",null,null,null,null,null,null,null,null,"حساب الموظف",null,null,null,null,null,null,"عدد ساعات العمل",null,null,null,null,null,null,null,null,"حساب الموظف"]
[]
[]
[]
[]
[]
["مدير المشروع",null,null,null,null,null,null,null,"تم اعدادة بواسطة",null,null,null,null,null,null,null,"مدير المشروع",null,null,null,null,null,null,null,"تم اعدادة بواسطة",null,null,null,null,null,null,null,"مدير المشروع",null,null,null,null,null,null,null,"تم اعدادة بواسطة",null,null,null,null,null,null,null,"مدير المشروع",null,null,null,null,null,null,null,"تم اعدادة بواسطة",null,null,null,null,null,null,null,"مدير المشروع",null,null,null,null,null,null,null,"تم اعدادة بواسطة"]
[]
["كارت حضور العاملين",null,null,null,null,null,null,null,null,null,null,null,null,null,null,null,"كارت حضور العاملين",null,null,null,null,null,null,null,null,null,null,null,null,null,null,null,"كارت حضور العاملين",null,null,null,null,null,null,null,null,null,null,null,null,null,null,null,"كارت حضور العاملين",null,null,null,null,null,null,null,null,null,null,null,null,null,null,null,"كارت حضور العاملين"]
[]
["اسم الموظف",{"$f":"DATA!B19","v":"محمود المحلاوي"},null,null,null,null,null,null,null,"كود الموظف",null,null,9,null,null,null,"اسم الموظف",{"$f":"DATA!B59","v":"نادر عبد العال"},null,null,null,null,null,null,null,"كود الموظف",null,null,29,null,null,null,"اسم الموظف",{"$f":"DATA!B99","v":"ايمن جمعة "},null,null,null,null,null,null,null,"كود الموظف",null,null,49,null,null,null,"اسم الموظف",{"$f":"DATA!B139","v":"هشام محمود السعيد"},null,null,null,null,null,null,null,"كود الموظف",null,null,69,null,null,null,"اسم الموظف",{"$f":"DATA!B179","v":0},null,null,null,null,null,null,null,"كود الموظف",null,null,89]
["اسم المشروع",null,null,null,null,null,null,null,null,"كود المشروع",null,null,null,null,null,null,"اسم المشروع",null,null,null,null,null,null,null,null,"كود المشروع",null,null,null,null,null,null,"اسم المشروع",null,null,null,null,null,null,null,null,"كود المشروع",null,null,null,null,null,null,"اسم المشروع",null,null,null,null,null,null,null,null,"كود المشروع",null,null,null,null,null,null,"اسم المشروع",null,null,null,null,null,null,null,null,"كود المشروع"]
["الوظيفة",null,null,null,null,null,null,null,null,"الشهر",null,null,{"$f":"'شهر 10'!$AI$1","v":"2021-10-01"},null,null,null,"الوظيفة",null,null,null,null,null,null,null,null,"الشهر",null,null,{"$f":"'شهر 10'!$AI$1","v":"2021-10-01"},null,null,null,"الوظيفة",null,null,null,null,null,null,null,null,"الشهر",null,null,{"$f":"'شهر 10'!$AI$1","v":"2021-10-01"},null,null,null,"الوظيفة",null,null,null,null,null,null,null,null,"الشهر",null,null,{"$f":"'شهر 10'!$AI$1","v":"2021-10-01"},null,null,null,"الوظيفة",null,null,null,null,null,null,null,null,"الشهر",null,null,{"$f":"'شهر 10'!$AI$1","v":"2021-10-01"}]
[]
["التاريخ",1,2,3,4,5,6,7,8,9,10,11,12,13,14,15,"التاريخ",1,2,3,4,5,6,7,8,9,10,11,12,13,14,15,"التاريخ",1,2,3,4,5,6,7,8,9,10,11,12,13,14,15,"التاريخ",1,2,3,4,5,6,7,8,9,10,11,12,13,14,15,"التاريخ",1,2,3,4,5,6,7,8,9,10,11,12,13,14,15]
["الفتره الصباحية",null,null,null,null,null,null,null,null,null,null,null,null,null,null,null,"الفتره الصباحية",null,null,null,null,null,null,null,null,null,null,null,null,null,null,null,"الفتره الصباحية",null,null,null,null,null,null,null,null,null,null,null,null,null,null,null,"الفتره الصباحية",null,null,null,null,null,null,null,null,null,null,null,null,null,null,null,"الفتره الصباحية"]
["الفتره المسائية",null,null,null,null,null,null,null,null,null,null,null,null,null,null,null,"الفتره المسائية",null,null,null,null,null,null,null,null,null,null,null,null,null,null,null,"الفتره المسائية",null,null,null,null,null,null,null,null,null,null,null,null,null,null,null,"الفتره المسائية",null,null,null,null,null,null,null,null,null,null,null,null,null,null,null,"الفتره المسائية"]
["الاضافي",null,null,null,null,null,null,null,null,null,null,null,null,null,null,null,"الاضافي",null,null,null,null,null,null,null,null,null,null,null,null,null,null,null,"الاضافي",null,null,null,null,null,null,null,null,null,null,null,null,null,null,null,"الاضافي",null,null,null,null,null,null,null,null,null,null,null,null,null,null,null,"الاضافي"]
[]
["التاريخ",16,17,18,19,20,21,22,23,24,25,26,27,28,29,30,"التاريخ",16,17,18,19,20,21,22,23,24,25,26,27,28,29,30,"التاريخ",16,17,18,19,20,21,22,23,24,25,26,27,28,29,30,"التاريخ",16,17,18,19,20,21,22,23,24,25,26,27,28,29,30,"التاريخ",16,17,18,19,20,21,22,23,24,25,26,27,28,29,30]
["الفتره الصباحية",null,null,null,null,null,null,null,null,null,null,null,null,null,null,null,"الفتره الصباحية",null,null,null,null,null,null,null,null,null,null,null,null,null,null,null,"الفتره الصباحية",null,null,null,null,null,null,null,null,null,null,null,null,null,null,null,"الفتره الصباحية",null,null,null,null,null,null,null,null,null,null,null,null,null,null,null,"الفتره الصباحية"]
["الفتره المسائية",null,null,null,null,null,null,null,null,null,null,null,null,null,null,null,"الفتره المسائية",null,null,null,null,null,null,null,null,null,null,null,null,null,null,null,"الفتره المسائية",null,null,null,null,null,null,null,null,null,null,null,null,null,null,null,"الفتره المسائية",null,null,null,null,null,null,null,null,null,null,null,null,null,null,null,"الفتره المسائية"]
["الاضافي",null,null,null,null,null,null,null,null,null,null,null,null,null,null,null,"الاضافي",null,null,null,null,null,null,null,null,null,null,null,null,null,null,null,"الاضافي",null,null,null,null,null,null,null,null,null,null,null,null,null,null,null,"الاضافي",null,null,null,null,null,null,null,null,null,null,null,null,null,null,null,"الاضافي"]
[]
["عدد ايام العمل",null,null,null,null,null,null,null,null,"سلف",null,null,null,null,null,null,"عدد ايام العمل",null,null,null,null,null,null,null,null,"سلف",null,null,null,null,null,null,"عدد ايام العمل",null,null,null,null,null,null,null,null,"سلف",null,null,null,null,null,null,"عدد ايام العمل",null,null,null,null,null,null,null,null,"سلف",null,null,null,null,null,null,"عدد ايام العمل",null,null,null,null,null,null,null,null,"سلف"]
["عدد ساعات العمل",null,null,null,null,null,null,null,null,"حساب الموظف",null,null,null,null,null,null,"عدد ساعات العمل",null,null,null,null,null,null,null,null,"حساب الموظف",null,null,null,null,null,null,"عدد ساعات العمل",null,null,null,null,null,null,null,null,"حساب الموظف",null,null,null,null,null,null,"عدد ساعات العمل",null,null,null,null,null,null,null,null,"حساب الموظف",null,null,null,null,null,null,"عدد ساعات العمل",null,null,null,null,null,null,null,null,"حساب الموظف"]
[]
[]
[]
[]
[]
["مدير المشروع",null,null,null,null,null,null,null,"تم اعدادة بواسطة",null,null,null,null,null,null,null,"مدير المشروع",null,null,null,null,null,null,null,"تم اعدادة بواسطة",null,null,null,null,null,null,null,"مدير المشروع",null,null,null,null,null,null,null,"تم اعدادة بواسطة",null,null,null,null,null,null,null,"مدير المشروع",null,null,null,null,null,null,null,"تم اعدادة بواسطة",null,null,null,null,null,null,null,"مدير المشروع",null,null,null,null,null,null,null,"تم اعدادة بواسطة"]
["كارت حضور العاملين",null,null,null,null,null,null,null,null,null,null,null,null,null,null,null,"كارت حضور العاملين",null,null,null,null,null,null,null,null,null,null,null,null,null,null,null,"كارت حضور العاملين",null,null,null,null,null,null,null,null,null,null,null,null,null,null,null,"كارت حضور العاملين",null,null,null,null,null,null,null,null,null,null,null,null,null,null,null,"كارت حضور العاملين"]
[]
["اسم الموظف",{"$f":"DATA!B21","v":"رضا رمضان الرشيدي"},null,null,null,null,null,null,null,"كود الموظف",null,null,10,null,null,null,"اسم الموظف",{"$f":"DATA!B61","v":"محمد متولى عباس"},null,null,null,null,null,null,null,"كود الموظف",null,null,30,null,null,null,"اسم الموظف",{"$f":"DATA!B101","v":0},null,null,null,null,null,null,null,"كود الموظف",null,null,50,null,null,null,"اسم الموظف",{"$f":"DATA!B141","v":"صالح محمد نواره"},null,null,null,null,null,null,null,"كود الموظف",null,null,70,null,null,null,"اسم الموظف",{"$f":"DATA!B181","v":0},null,null,null,null,null,null,null,"كود الموظف",null,null,90]
["اسم المشروع",null,null,null,null,null,null,null,null,"كود المشروع",null,null,null,null,null,null,"اسم المشروع",null,null,null,null,null,null,null,null,"كود المشروع",null,null,null,null,null,null,"اسم المشروع",null,null,null,null,null,null,null,null,"كود المشروع",null,null,null,null,null,null,"اسم المشروع",null,null,null,null,null,null,null,null,"كود المشروع",null,null,null,null,null,null,"اسم المشروع",null,null,null,null,null,null,null,null,"كود المشروع"]
["الوظيفة",null,null,null,null,null,null,null,null,"الشهر",null,null,{"$f":"'شهر 10'!$AI$1","v":"2021-10-01"},null,null,null,"الوظيفة",null,null,null,null,null,null,null,null,"الشهر",null,null,{"$f":"'شهر 10'!$AI$1","v":"2021-10-01"},null,null,null,"الوظيفة",null,null,null,null,null,null,null,null,"الشهر",null,null,{"$f":"'شهر 10'!$AI$1","v":"2021-10-01"},null,null,null,"الوظيفة",null,null,null,null,null,null,null,null,"الشهر",null,null,{"$f":"'شهر 10'!$AI$1","v":"2021-10-01"},null,null,null,"الوظيفة",null,null,null,null,null,null,null,null,"الشهر",null,null,{"$f":"'شهر 10'!$AI$1","v":"2021-10-01"}]
[]
["التاريخ",1,2,3,4,5,6,7,8,9,10,11,12,13,14,15,"التاريخ",1,2,3,4,5,6,7,8,9,10,11,12,13,14,15,"التاريخ",1,2,3,4,5,6,7,8,9,10,11,12,13,14,15,"التاريخ",1,2,3,4,5,6,7,8,9,10,11,12,13,14,15,"التاريخ",1,2,3,4,5,6,7,8,9,10,11,12,13,14,15]
["الفتره الصباحية",null,null,null,null,null,null,null,null,null,null,null,null,null,null,null,"الفتره الصباحية",null,null,null,null,null,null,null,null,null,null,null,null,null,null,null,"الفتره الصباحية",null,null,null,null,null,null,null,null,null,null,null,null,null,null,null,"الفتره الصباحية",null,null,null,null,null,null,null,null,null,null,null,null,null,null,null,"الفتره الصباحية"]
["الفتره المسائية",null,null,null,null,null,null,null,null,null,null,null,null,null,null,null,"الفتره المسائية",null,null,null,null,null,null,null,null,null,null,null,null,null,null,null,"الفتره المسائية",null,null,null,null,null,null,null,null,null,null,null,null,null,null,null,"الفتره المسائية",null,null,null,null,null,null,null,null,null,null,null,null,null,null,null,"الفتره المسائية"]
["الاضافي",null,null,null,null,null,null,null,null,null,null,null,null,null,null,null,"الاضافي",null,null,null,null,null,null,null,null,null,null,null,null,null,null,null,"الاضافي",null,null,null,null,null,null,null,null,null,null,null,null,null,null,null,"الاضافي",null,null,null,null,null,null,null,null,null,null,null,null,null,null,null,"الاضافي"]
[]
["التاريخ",16,17,18,19,20,21,22,23,24,25,26,27,28,29,30,"التاريخ",16,17,18,19,20,21,22,23,24,25,26,27,28,29,30,"التاريخ",16,17,18,19,20,21,22,23,24,25,26,27,28,29,30,"التاريخ",16,17,18,19,20,21,22,23,24,25,26,27,28,29,30,"التاريخ",16,17,18,19,20,21,22,23,24,25,26,27,28,29,30]
["الفتره الصباحية",null,null,null,null,null,null,null,null,null,null,null,null,null,null,null,"الفتره الصباحية",null,null,null,null,null,null,null,null,null,null,null,null,null,null,null,"الفتره الصباحية",null,null,null,null,null,null,null,null,null,null,null,null,null,null,null,"الفتره الصباحية",null,null,null,null,null,null,null,null,null,null,null,null,null,null,null,"الفتره الصباحية"]
["الفتره المسائية",null,null,null,null,null,null,null,null,null,null,null,null,null,null,null,"الفتره المسائية",null,null,null,null,null,null,null,null,null,null,null,null,null,null,null,"الفتره المسائية",null,null,null,null,null,null,null,null,null,null,null,null,null,null,null,"الفتره المسائية",null,null,null,null,null,null,null,null,null,null,null,null,null,null,null,"الفتره المسائية"]
["الاضافي",null,null,null,null,null,null,null,null,null,null,null,null,null,null,null,"الاضافي",null,null,null,null,null,null,null,null,null,null,null,null,null,null,null,"الاضافي",null,null,null,null,null,null,null,null,null,null,null,null,null,null,null,"الاضافي",null,null,null,null,null,null,null,null,null,null,null,null,null,null,null,"الاضافي"]
[]
["عدد ايام العمل",null,null,null,null,null,null,null,null,"سلف",null,null,null,null,null,null,"عدد ايام العمل",null,null,null,null,null,null,null,null,"سلف",null,null,null,null,null,null,"عدد ايام العمل",null,null,null,null,null,null,null,null,"سلف",null,null,null,null,null,null,"عدد ايام العمل",null,null,null,null,null,null,null,null,"سلف",null,null,null,null,null,null,"عدد ايام العمل",null,null,null,null,null,null,null,null,"سلف"]
["عدد ساعات العمل",null,null,null,null,null,null,null,null,"حساب الموظف",null,null,null,null,null,null,"عدد ساعات العمل",null,null,null,null,null,null,null,null,"حساب الموظف",null,null,null,null,null,null,"عدد ساعات العمل",null,null,null,null,null,null,null,null,"حساب الموظف",null,null,null,null,null,null,"عدد ساعات العمل",null,null,null,null,null,null,null,null,"حساب الموظف",null,null,null,null,null,null,"عدد ساعات العمل",null,null,null,null,null,null,null,null,"حساب الموظف"]
[]
[]
[]
[]
[]
["مدير المشروع",null,null,null,null,null,null,null,"تم اعدادة بواسطة",null,null,null,null,null,null,null,"مدير المشروع",null,null,null,null,null,null,null,"تم اعدادة بواسطة",null,null,null,null,null,null,null,"مدير المشروع",null,null,null,null,null,null,null,"تم اعدادة بواسطة",null,null,null,null,null,null,null,"مدير المشروع",null,null,null,null,null,null,null,"تم اعدادة بواسطة",null,null,null,null,null,null,null,"مدير المشروع",null,null,null,null,null,null,null,"تم اعدادة بواسطة"]
[]
["كارت حضور العاملين",null,null,null,null,null,null,null,null,null,null,null,null,null,null,null,"كارت حضور العاملين",null,null,null,null,null,null,null,null,null,null,null,null,null,null,null,"كارت حضور العاملين",null,null,null,null,null,null,null,null,null,null,null,null,null,null,null,"كارت حضور العاملين",null,null,null,null,null,null,null,null,null,null,null,null,null,null,null,"كارت حضور العاملين"]
[]
["اسم الموظف",{"$f":"DATA!B23","v":"السيد الدمرداش"},null,null,null,null,null,null,null,"كود الموظف",null,null,11,null,null,null,"اسم الموظف",{"$f":"DATA!B63","v":"السعيد الشرقاوي"},null,null,null,null,null,null,null,"كود الموظف",null,null,31,null,null,null,"اسم الموظف",{"$f":"DATA!B103","v":"حسام محسن ابراهيم"},null,null,null,null,null,null,null,"كود الموظف",null,null,51,null,null,null,"اسم الموظف",{"$f":"DATA!B143","v":"محمد السيد السيد"},null,null,null,null,null,null,null,"كود الموظف",null,null,71,null,null,null,"اسم الموظف",{"$f":"DATA!B183","v":0},null,null,null,null,null,null,null,"كود الموظف",null,null,91]
["اسم المشروع",null,null,null,null,null,null,null,null,"كود المشروع",null,null,null,null,null,null,"اسم المشروع",null,null,null,null,null,null,null,null,"كود المشروع",null,null,null,null,null,null,"اسم المشروع",null,null,null,null,null,null,null,null,"كود المشروع",null,null,null,null,null,null,"اسم المشروع",null,null,null,null,null,null,null,null,"كود المشروع",null,null,null,null,null,null,"اسم المشروع",null,null,null,null,null,null,null,null,"كود المشروع"]
["الوظيفة",null,null,null,null,null,null,null,null,"الشهر",null,null,{"$f":"'شهر 10'!$AI$1","v":"2021-10-01"},null,null,null,"الوظيفة",null,null,null,null,null,null,null,null,"الشهر",null,null,{"$f":"'شهر 10'!$AI$1","v":"2021-10-01"},null,null,null,"الوظيفة",null,null,null,null,null,null,null,null,"الشهر",null,null,{"$f":"'شهر 10'!$AI$1","v":"2021-10-01"},null,null,null,"الوظيفة",null,null,null,null,null,null,null,null,"الشهر",null,null,{"$f":"'شهر 10'!$AI$1","v":"2021-10-01"},null,null,null,"الوظيفة",null,null,null,null,null,null,null,null,"الشهر",null,null,{"$f":"'شهر 10'!$AI$1","v":"2021-10-01"}]
[]
["التاريخ",1,2,3,4,5,6,7,8,9,10,11,12,13,14,15,"التاريخ",1,2,3,4,5,6,7,8,9,10,11,12,13,14,15,"التاريخ",1,2,3,4,5,6,7,8,9,10,11,12,13,14,15,"التاريخ",1,2,3,4,5,6,7,8,9,10,11,12,13,14,15,"التاريخ",1,2,3,4,5,6,7,8,9,10,11,12,13,14,15]
["الفتره الصباحية",null,null,null,null,null,null,null,null,null,null,null,null,null,null,null,"الفتره الصباحية",null,null,null,null,null,null,null,null,null,null,null,null,null,null,null,"الفتره الصباحية",null,null,null,null,null,null,null,null,null,null,null,null,null,null,null,"الفتره الصباحية",null,null,null,null,null,null,null,null,null,null,null,null,null,null,null,"الفتره الصباحية"]
["الفتره المسائية",null,null,null,null,null,null,null,null,null,null,null,null,null,null,null,"الفتره المسائية",null,null,null,null,null,null,null,null,null,null,null,null,null,null,null,"الفتره المسائية",null,null,null,null,null,null,null,null,null,null,null,null,null,null,null,"الفتره المسائية",null,null,null,null,null,null,null,null,null,null,null,null,null,null,null,"الفتره المسائية"]
["الاضافي",null,null,null,null,null,null,null,null,null,null,null,null,null,null,null,"الاضافي",null,null,null,null,null,null,null,null,null,null,null,null,null,null,null,"الاضافي",null,null,null,null,null,null,null,null,null,null,null,null,null,null,null,"الاضافي",null,null,null,null,null,null,null,null,null,null,null,null,null,null,null,"الاضافي"]
[]
["التاريخ",16,17,18,19,20,21,22,23,24,25,26,27,28,29,30,"التاريخ",16,17,18,19,20,21,22,23,24,25,26,27,28,29,30,"التاريخ",16,17,18,19,20,21,22,23,24,25,26,27,28,29,30,"التاريخ",16,17,18,19,20,21,22,23,24,25,26,27,28,29,30,"التاريخ",16,17,18,19,20,21,22,23,24,25,26,27,28,29,30]
["الفتره الصباحية",null,null,null,null,null,null,null,null,null,null,null,null,null,null,null,"الفتره الصباحية",null,null,null,null,null,null,null,null,null,null,null,null,null,null,null,"الفتره الصباحية",null,null,null,null,null,null,null,null,null,null,null,null,null,null,null,"الفتره الصباحية",null,null,null,null,null,null,null,null,null,null,null,null,null,null,null,"الفتره الصباحية"]
["الفتره المسائية",null,null,null,null,null,null,null,null,null,null,null,null,null,null,null,"الفتره المسائية",null,null,null,null,null,null,null,null,null,null,null,null,null,null,null,"الفتره المسائية",null,null,null,null,null,null,null,null,null,null,null,null,null,null,null,"الفتره المسائية",null,null,null,null,null,null,null,null,null,null,null,null,null,null,null,"الفتره المسائية"]
["الاضافي",null,null,null,null,null,null,null,null,null,null,null,null,null,null,null,"الاضافي",null,null,null,null,null,null,null,null,null,null,null,null,null,null,null,"الاضافي",null,null,null,null,null,null,null,null,null,null,null,null,null,null,null,"الاضافي",null,null,null,null,null,null,null,null,null,null,null,null,null,null,null,"الاضافي"]
[]
["عدد ايام العمل",null,null,null,null,null,null,null,null,"سلف",null,null,null,null,null,null,"عدد ايام العمل",null,null,null,null,null,null,null,null,"سلف",null,null,null,null,null,null,"عدد ايام العمل",null,null,null,null,null,null,null,null,"سلف",null,null,null,null,null,null,"عدد ايام العمل",null,null,null,null,null,null,null,null,"سلف",null,null,null,null,null,null,"عدد ايام العمل",null,null,null,null,null,null,null,null,"سلف"]
["عدد ساعات العمل",null,null,null,null,null,null,null,null,"حساب الموظف",null,null,null,null,null,null,"عدد ساعات العمل",null,null,null,null,null,null,null,null,"حساب الموظف",null,null,null,null,null,null,"عدد ساعات العمل",null,null,null,null,null,null,null,null,"حساب الموظف",null,null,null,null,null,null,"عدد ساعات العمل",null,null,null,null,null,null,null,null,"حساب الموظف",null,null,null,null,null,null,"عدد ساعات العمل",null,null,null,null,null,null,null,null,"حساب الموظف"]
[]
[]
[]
[]
[]
["مدير المشروع",null,null,null,null,null,null,null,"تم اعدادة بواسطة",null,null,null,null,null,null,null,"مدير المشروع",null,null,null,null,null,null,null,"تم اعدادة بواسطة",null,null,null,null,null,null,null,"مدير المشروع",null,null,null,null,null,null,null,"تم اعدادة بواسطة",null,null,null,null,null,null,null,"مدير المشروع",null,null,null,null,null,null,null,"تم اعدادة بواسطة",null,null,null,null,null,null,null,"مدير المشروع",null,null,null,null,null,null,null,"تم اعدادة بواسطة"]
["كارت حضور العاملين",null,null,null,null,null,null,null,null,null,null,null,null,null,null,null,"كارت حضور العاملين",null,null,null,null,null,null,null,null,null,null,null,null,null,null,null,"كارت حضور العاملين",null,null,null,null,null,null,null,null,null,null,null,null,null,null,null,"كارت حضور العاملين",null,null,null,null,null,null,null,null,null,null,null,null,null,null,null,"كارت حضور العاملين"]
[]
["اسم الموظف",{"$f":"DATA!B25","v":"على صبح عطية"},null,null,null,null,null,null,null,"كود الموظف",null,null,12,null,null,null,"اسم الموظف",{"$f":"DATA!B65","v":"عزيز فتحي سعفان"},null,null,null,null,null,null,null,"كود الموظف",null,null,32,null,null,null,"اسم الموظف",{"$f":"DATA!B105","v":"محمد رمضان ابراهيم"},null,null,null,null,null,null,null,"كود الموظف",null,null,52,null,null,null,"اسم الموظف",{"$f":"DATA!B145","v":"محمود السيد السيد"},null,null,null,null,null,null,null,"كود الموظف",null,null,72,null,null,null,"اسم الموظف",{"$f":"DATA!B185","v":0},null,null,null,null,null,null,null,"كود الموظف",null,null,92]
["اسم المشروع",null,null,null,null,null,null,null,null,"كود المشروع",null,null,null,null,null,null,"اسم المشروع",null,null,null,null,null,null,null,null,"كود المشروع",null,null,null,null,null,null,"اسم المشروع",null,null,null,null,null,null,null,null,"كود المشروع",null,null,null,null,null,null,"اسم المشروع",null,null,null,null,null,null,null,null,"كود المشروع",null,null,null,null,null,null,"اسم المشروع",null,null,null,null,null,null,null,null,"كود المشروع"]
["الوظيفة",null,null,null,null,null,null,null,null,"الشهر",null,null,{"$f":"'شهر 10'!$AI$1","v":"2021-10-01"},null,null,null,"الوظيفة",null,null,null,null,null,null,null,null,"الشهر",null,null,{"$f":"'شهر 10'!$AI$1","v":"2021-10-01"},null,null,null,"الوظيفة",null,null,null,null,null,null,null,null,"الشهر",null,null,{"$f":"'شهر 10'!$AI$1","v":"2021-10-01"},null,null,null,"الوظيفة",null,null,null,null,null,null,null,null,"الشهر",null,null,{"$f":"'شهر 10'!$AI$1","v":"2021-10-01"},null,null,null,"الوظيفة",null,null,null,null,null,null,null,null,"الشهر",null,null,{"$f":"'شهر 10'!$AI$1","v":"2021-10-01"}]
[]
["التاريخ",1,2,3,4,5,6,7,8,9,10,11,12,13,14,15,"التاريخ",1,2,3,4,5,6,7,8,9,10,11,12,13,14,15,"التاريخ",1,2,3,4,5,6,7,8,9,10,11,12,13,14,15,"التاريخ",1,2,3,4,5,6,7,8,9,10,11,12,13,14,15,"التاريخ",1,2,3,4,5,6,7,8,9,10,11,12,13,14,15]
["الفتره الصباحية",null,null,null,null,null,null,null,null,null,null,null,null,null,null,null,"الفتره الصباحية",null,null,null,null,null,null,null,null,null,null,null,null,null,null,null,"الفتره الصباحية",null,null,null,null,null,null,null,null,null,null,null,null,null,null,null,"الفتره الصباحية",null,null,null,null,null,null,null,null,null,null,null,null,null,null,null,"الفتره الصباحية"]
["الفتره المسائية",null,null,null,null,null,null,null,null,null,null,null,null,null,null,null,"الفتره المسائية",null,null,null,null,null,null,null,null,null,null,null,null,null,null,null,"الفتره المسائية",null,null,null,null,null,null,null,null,null,null,null,null,null,null,null,"الفتره المسائية",null,null,null,null,null,null,null,null,null,null,null,null,null,null,null,"الفتره المسائية"]
["الاضافي",null,null,null,null,null,null,null,null,null,null,null,null,null,null,null,"الاضافي",null,null,null,null,null,null,null,null,null,null,null,null,null,null,null,"الاضافي",null,null,null,null,null,null,null,null,null,null,null,null,null,null,null,"الاضافي",null,null,null,null,null,null,null,null,null,null,null,null,null,null,null,"الاضافي"]
[]
["التاريخ",16,17,18,19,20,21,22,23,24,25,26,27,28,29,30,"التاريخ",16,17,18,19,20,21,22,23,24,25,26,27,28,29,30,"التاريخ",16,17,18,19,20,21,22,23,24,25,26,27,28,29,30,"التاريخ",16,17,18,19,20,21,22,23,24,25,26,27,28,29,30,"التاريخ",16,17,18,19,20,21,22,23,24,25,26,27,28,29,30]
["الفتره الصباحية",null,null,null,null,null,null,null,null,null,null,null,null,null,null,null,"الفتره الصباحية",null,null,null,null,null,null,null,null,null,null,null,null,null,null,null,"الفتره الصباحية",null,null,null,null,null,null,null,null,null,null,null,null,null,null,null,"الفتره الصباحية",null,null,null,null,null,null,null,null,null,null,null,null,null,null,null,"الفتره الصباحية"]
["الفتره المسائية",null,null,null,null,null,null,null,null,null,null,null,null,null,null,null,"الفتره المسائية",null,null,null,null,null,null,null,null,null,null,null,null,null,null,null,"الفتره المسائية",null,null,null,null,null,null,null,null,null,null,null,null,null,null,null,"الفتره المسائية",null,null,null,null,null,null,null,null,null,null,null,null,null,null,null,"الفتره المسائية"]
["الاضافي",null,null,null,null,null,null,null,null,null,null,null,null,null,null,null,"الاضافي",null,null,null,null,null,null,null,null,null,null,null,null,null,null,null,"الاضافي",null,null,null,null,null,null,null,null,null,null,null,null,null,null,null,"الاضافي",null,null,null,null,null,null,null,null,null,null,null,null,null,null,null,"الاضافي"]
[]
["عدد ايام العمل",null,null,null,null,null,null,null,null,"سلف",null,null,null,null,null,null,"عدد ايام العمل",null,null,null,null,null,null,null,null,"سلف",null,null,null,null,null,null,"عدد ايام العمل",null,null,null,null,null,null,null,null,"سلف",null,null,null,null,null,null,"عدد ايام العمل",null,null,null,null,null,null,null,null,"سلف",null,null,null,null,null,null,"عدد ايام العمل",null,null,null,null,null,null,null,null,"سلف"]
["عدد ساعات العمل",null,null,null,null,null,null,null,null,"حساب الموظف",null,null,null,null,null,null,"عدد ساعات العمل",null,null,null,null,null,null,null,null,"حساب الموظف",null,null,null,null,null,null,"عدد ساعات العمل",null,null,null,null,null,null,null,null,"حساب الموظف",null,null,null,null,null,null,"عدد ساعات العمل",null,null,null,null,null,null,null,null,"حساب الموظف",null,null,null,null,null,null,"عدد ساعات العمل",null,null,null,null,null,null,null,null,"حساب الموظف"]
[]
[]
[]
[]
[]
["مدير المشروع",null,null,null,null,null,null,null,"تم اعدادة بواسطة",null,null,null,null,null,null,null,"مدير المشروع",null,null,null,null,null,null,null,"تم اعدادة بواسطة",null,null,null,null,null,null,null,"مدير المشروع",null,null,null,null,null,null,null,"تم اعدادة بواسطة",null,null,null,null,null,null,null,"مدير المشروع",null,null,null,null,null,null,null,"تم اعدادة بواسطة",null,null,null,null,null,null,null,"مدير المشروع",null,null,null,null,null,null,null,"تم اعدادة بواسطة"]
[]
["كارت حضور العاملين",null,null,null,null,null,null,null,null,null,null,null,null,null,null,null,"كارت حضور العاملين",null,null,null,null,null,null,null,null,null,null,null,null,null,null,null,"كارت حضور العاملين",null,null,null,null,null,null,null,null,null,null,null,null,null,null,null,"كارت حضور العاملين",null,null,null,null,null,null,null,null,null,null,null,null,null,null,null,"كارت حضور العاملين"]
[]
["اسم الموظف",{"$f":"DATA!B27","v":"سعد الدين عماد"},null,null,null,null,null,null,null,"كود الموظف",null,null,13,null,null,null,"اسم الموظف",{"$f":"DATA!B67","v":"محمود سعد محمود"},null,null,null,null,null,null,null,"كود الموظف",null,null,33,null,null,null,"اسم الموظف",{"$f":"DATA!B107","v":"علام السيد"},null,null,null,null,null,null,null,"كود الموظف",null,null,53,null,null,null,"اسم الموظف",{"$f":"DATA!B147","v":"ابراهيم عبد الخالق"},null,null,null,null,null,null,null,"كود الموظف",null,null,73,null,null,null,"اسم الموظف",{"$f":"DATA!B187","v":0},null,null,null,null,null,null,null,"كود الموظف",null,null,93]
["اسم المشروع",null,null,null,null,null,null,null,null,"كود المشروع",null,null,null,null,null,null,"اسم المشروع",null,null,null,null,null,null,null,null,"كود المشروع",null,null,null,null,null,null,"اسم المشروع",null,null,null,null,null,null,null,null,"كود المشروع",null,null,null,null,null,null,"اسم المشروع",null,null,null,null,null,null,null,null,"كود المشروع",null,null,null,null,null,null,"اسم المشروع",null,null,null,null,null,null,null,null,"كود المشروع"]
["الوظيفة",null,null,null,null,null,null,null,null,"الشهر",null,null,{"$f":"'شهر 10'!$AI$1","v":"2021-10-01"},null,null,null,"الوظيفة",null,null,null,null,null,null,null,null,"الشهر",null,null,{"$f":"'شهر 10'!$AI$1","v":"2021-10-01"},null,null,null,"الوظيفة",null,null,null,null,null,null,null,null,"الشهر",null,null,{"$f":"'شهر 10'!$AI$1","v":"2021-10-01"},null,null,null,"الوظيفة",null,null,null,null,null,null,null,null,"الشهر",null,null,{"$f":"'شهر 10'!$AI$1","v":"2021-10-01"},null,null,null,"الوظيفة",null,null,null,null,null,null,null,null,"الشهر",null,null,{"$f":"'شهر 10'!$AI$1","v":"2021-10-01"}]
[]
["التاريخ",1,2,3,4,5,6,7,8,9,10,11,12,13,14,15,"التاريخ",1,2,3,4,5,6,7,8,9,10,11,12,13,14,15,"التاريخ",1,2,3,4,5,6,7,8,9,10,11,12,13,14,15,"التاريخ",1,2,3,4,5,6,7,8,9,10,11,12,13,14,15,"التاريخ",1,2,3,4,5,6,7,8,9,10,11,12,13,14,15]
["الفتره الصباحية",null,null,null,null,null,null,null,null,null,null,null,null,null,null,null,"الفتره الصباحية",null,null,null,null,null,null,null,null,null,null,null,null,null,null,null,"الفتره الصباحية",null,null,null,null,null,null,null,null,null,null,null,null,null,null,null,"الفتره الصباحية",null,null,null,null,null,null,null,null,null,null,null,null,null,null,null,"الفتره الصباحية"]
["الفتره المسائية",null,null,null,null,null,null,null,null,null,null,null,null,null,null,null,"الفتره المسائية",null,null,null,null,null,null,null,null,null,null,null,null,null,null,null,"الفتره المسائية",null,null,null,null,null,null,null,null,null,null,null,null,null,null,null,"الفتره المسائية",null,null,null,null,null,null,null,null,null,null,null,null,null,null,null,"الفتره المسائية"]
["الاضافي",null,null,null,null,null,null,null,null,null,null,null,null,null,null,null,"الاضافي",null,null,null,null,null,null,null,null,null,null,null,null,null,null,null,"الاضافي",null,null,null,null,null,null,null,null,null,null,null,null,null,null,null,"الاضافي",null,null,null,null,null,null,null,null,null,null,null,null,null,null,null,"الاضافي"]
[]
["التاريخ",16,17,18,19,20,21,22,23,24,25,26,27,28,29,30,"التاريخ",16,17,18,19,20,21,22,23,24,25,26,27,28,29,30,"التاريخ",16,17,18,19,20,21,22,23,24,25,26,27,28,29,30,"التاريخ",16,17,18,19,20,21,22,23,24,25,26,27,28,29,30,"التاريخ",16,17,18,19,20,21,22,23,24,25,26,27,28,29,30]
["الفتره الصباحية",null,null,null,null,null,null,null,null,null,null,null,null,null,null,null,"الفتره الصباحية",null,null,null,null,null,null,null,null,null,null,null,null,null,null,null,"الفتره الصباحية",null,null,null,null,null,null,null,null,null,null,null,null,null,null,null,"الفتره الصباحية",null,null,null,null,null,null,null,null,null,null,null,null,null,null,null,"الفتره الصباحية"]
["الفتره المسائية",null,null,null,null,null,null,null,null,null,null,null,null,null,null,null,"الفتره المسائية",null,null,null,null,null,null,null,null,null,null,null,null,null,null,null,"الفتره المسائية",null,null,null,null,null,null,null,null,null,null,null,null,null,null,null,"الفتره المسائية",null,null,null,null,null,null,null,null,null,null,null,null,null,null,null,"الفتره المسائية"]
["الاضافي",null,null,null,null,null,null,null,null,null,null,null,null,null,null,null,"الاضافي",null,null,null,null,null,null,null,null,null,null,null,null,null,null,null,"الاضافي",null,null,null,null,null,null,null,null,null,null,null,null,null,null,null,"الاضافي",null,null,null,null,null,null,null,null,null,null,null,null,null,null,null,"الاضافي"]
[]
["عدد ايام العمل",null,null,null,null,null,null,null,null,"سلف",null,null,null,null,null,null,"عدد ايام العمل",null,null,null,null,null,null,null,null,"سلف",null,null,null,null,null,null,"عدد ايام العمل",null,null,null,null,null,null,null,null,"سلف",null,null,null,null,null,null,"عدد ايام العمل",null,null,null,null,null,null,null,null,"سلف",null,null,null,null,null,null,"عدد ايام العمل",null,null,null,null,null,null,null,null,"سلف"]
["عدد ساعات العمل",null,null,null,null,null,null,null,null,"حساب الموظف",null,null,null,null,null,null,"عدد ساعات العمل",null,null,null,null,null,null,null,null,"حساب الموظف",null,null,null,null,null,null,"عدد ساعات العمل",null,null,null,null,null,null,null,null,"حساب الموظف",null,null,null,null,null,null,"عدد ساعات العمل",null,null,null,null,null,null,null,null,"حساب الموظف",null,null,null,null,null,null,"عدد ساعات العمل",null,null,null,null,null,null,null,null,"حساب الموظف"]
[]
[]
[]
[]
[]
["مدير المشروع",null,null,null,null,null,null,null,"تم اعدادة بواسطة",null,null,null,null,null,null,null,"مدير المشروع",null,null,null,null,null,null,null,"تم اعدادة بواسطة",null,null,null,null,null,null,null,"مدير المشروع",null,null,null,null,null,null,null,"تم اعدادة بواسطة",null,null,null,null,null,null,null,"مدير المشروع",null,null,null,null,null,null,null,"تم اعدادة بواسطة",null,null,null,null,null,null,null,"مدير المشروع",null,null,null,null,null,null,null,"تم اعدادة بواسطة"]
["كارت حضور العاملين",null,null,null,null,null,null,null,null,null,null,null,null,null,null,null,"كارت حضور العاملين",null,null,null,null,null,null,null,null,null,null,null,null,null,null,null,"كارت حضور العاملين",null,null,null,null,null,null,null,null,null,null,null,null,null,null,null,"كارت حضور العاملين",null,null,null,null,null,null,null,null,null,null,null,null,null,null,null,"كارت حضور العاملين"]
[]
["اسم الموظف",{"$f":"DATA!B29","v":"صلاح محمد"},null,null,null,null,null,null,null,"كود الموظف",null,null,14,null,null,null,"اسم الموظف",{"$f":"DATA!B69","v":"حسن محمد طة"},null,null,null,null,null,null,null,"كود الموظف",null,null,34,null,null,null,"اسم الموظف",{"$f":"DATA!B109","v":"محمد سكر"},null,null,null,null,null,null,null,"كود الموظف",null,null,54,null,null,null,"اسم الموظف",{"$f":"DATA!B149","v":"محمد شحاته"},null,null,null,null,null,null,null,"كود الموظف",null,null,74,null,null,null,"اسم الموظف",{"$f":"DATA!B189","v":0},null,null,null,null,null,null,null,"كود الموظف",null,null,94]
["اسم المشروع",null,null,null,null,null,null,null,null,"كود المشروع",null,null,null,null,null,null,"اسم المشروع",null,null,null,null,null,null,null,null,"كود المشروع",null,null,null,null,null,null,"اسم المشروع",null,null,null,null,null,null,null,null,"كود المشروع",null,null,null,null,null,null,"اسم المشروع",null,null,null,null,null,null,null,null,"كود المشروع",null,null,null,null,null,null,"اسم المشروع",null,null,null,null,null,null,null,null,"كود المشروع"]
["الوظيفة",null,null,null,null,null,null,null,null,"الشهر",null,null,{"$f":"'شهر 10'!$AI$1","v":"2021-10-01"},null,null,null,"الوظيفة",null,null,null,null,null,null,null,null,"الشهر",null,null,{"$f":"'شهر 10'!$AI$1","v":"2021-10-01"},null,null,null,"الوظيفة",null,null,null,null,null,null,null,null,"الشهر",null,null,{"$f":"'شهر 10'!$AI$1","v":"2021-10-01"},null,null,null,"الوظيفة",null,null,null,null,null,null,null,null,"الشهر",null,null,{"$f":"'شهر 10'!$AI$1","v":"2021-10-01"},null,null,null,"الوظيفة",null,null,null,null,null,null,null,null,"الشهر",null,null,{"$f":"'شهر 10'!$AI$1","v":"2021-10-01"}]
[]
["التاريخ",1,2,3,4,5,6,7,8,9,10,11,12,13,14,15,"التاريخ",1,2,3,4,5,6,7,8,9,10,11,12,13,14,15,"التاريخ",1,2,3,4,5,6,7,8,9,10,11,12,13,14,15,"التاريخ",1,2,3,4,5,6,7,8,9,10,11,12,13,14,15,"التاريخ",1,2,3,4,5,6,7,8,9,10,11,12,13,14,15]
["الفتره الصباحية",null,null,null,null,null,null,null,null,null,null,null,null,null,null,null,"الفتره الصباحية",null,null,null,null,null,null,null,null,null,null,null,null,null,null,null,"الفتره الصباحية",null,null,null,null,null,null,null,null,null,null,null,null,null,null,null,"الفتره الصباحية",null,null,null,null,null,null,null,null,null,null,null,null,null,null,null,"الفتره الصباحية"]
["الفتره المسائية",null,null,null,null,null,null,null,null,null,null,null,null,null,null,null,"الفتره المسائية",null,null,null,null,null,null,null,null,null,null,null,null,null,null,null,"الفتره المسائية",null,null,null,null,null,null,null,null,null,null,null,null,null,null,null,"الفتره المسائية",null,null,null,null,null,null,null,null,null,null,null,null,null,null,null,"الفتره المسائية"]
["الاضافي",null,null,null,null,null,null,null,null,null,null,null,null,null,null,null,"الاضافي",null,null,null,null,null,null,null,null,null,null,null,null,null,null,null,"الاضافي",null,null,null,null,null,null,null,null,null,null,null,null,null,null,null,"الاضافي",null,null,null,null,null,null,null,null,null,null,null,null,null,null,null,"الاضافي"]
[]
["التاريخ",16,17,18,19,20,21,22,23,24,25,26,27,28,29,30,"التاريخ",16,17,18,19,20,21,22,23,24,25,26,27,28,29,30,"التاريخ",16,17,18,19,20,21,22,23,24,25,26,27,28,29,30,"التاريخ",16,17,18,19,20,21,22,23,24,25,26,27,28,29,30,"التاريخ",16,17,18,19,20,21,22,23,24,25,26,27,28,29,30]
["الفتره الصباحية",null,null,null,null,null,null,null,null,null,null,null,null,null,null,null,"الفتره الصباحية",null,null,null,null,null,null,null,null,null,null,null,null,null,null,null,"الفتره الصباحية",null,null,null,null,null,null,null,null,null,null,null,null,null,null,null,"الفتره الصباحية",null,null,null,null,null,null,null,null,null,null,null,null,null,null,null,"الفتره الصباحية"]
["الفتره المسائية",null,null,null,null,null,null,null,null,null,null,null,null,null,null,null,"الفتره المسائية",null,null,null,null,null,null,null,null,null,null,null,null,null,null,null,"الفتره المسائية",null,null,null,null,null,null,null,null,null,null,null,null,null,null,null,"الفتره المسائية",null,null,null,null,null,null,null,null,null,null,null,null,null,null,null,"الفتره المسائية"]
["الاضافي",null,null,null,null,null,null,null,null,null,null,null,null,null,null,null,"الاضافي",null,null,null,null,null,null,null,null,null,null,null,null,null,null,null,"الاضافي",null,null,null,null,null,null,null,null,null,null,null,null,null,null,null,"الاضافي",null,null,null,null,null,null,null,null,null,null,null,null,null,null,null,"الاضافي"]
[]
["عدد ايام العمل",null,null,null,null,null,null,null,null,"سلف",null,null,null,null,null,null,"عدد ايام العمل",null,null,null,null,null,null,null,null,"سلف",null,null,null,null,null,null,"عدد ايام العمل",null,null,null,null,null,null,null,null,"سلف",null,null,null,null,null,null,"عدد ايام العمل",null,null,null,null,null,null,null,null,"سلف",null,null,null,null,null,null,"عدد ايام العمل",null,null,null,null,null,null,null,null,"سلف"]
["عدد ساعات العمل",null,null,null,null,null,null,null,null,"حساب الموظف",null,null,null,null,null,null,"عدد ساعات العمل",null,null,null,null,null,null,null,null,"حساب الموظف",null,null,null,null,null,null,"عدد ساعات العمل",null,null,null,null,null,null,null,null,"حساب الموظف",null,null,null,null,null,null,"عدد ساعات العمل",null,null,null,null,null,null,null,null,"حساب الموظف",null,null,null,null,null,null,"عدد ساعات العمل",null,null,null,null,null,null,null,null,"حساب الموظف"]
[]
[]
[]
[]
[]
["مدير المشروع",null,null,null,null,null,null,null,"تم اعدادة بواسطة",null,null,null,null,null,null,null,"مدير المشروع",null,null,null,null,null,null,null,"تم اعدادة بواسطة",null,null,null,null,null,null,null,"مدير المشروع",null,null,null,null,null,null,null,"تم اعدادة بواسطة",null,null,null,null,null,null,null,"مدير المشروع",null,null,null,null,null,null,null,"تم اعدادة بواسطة",null,null,null,null,null,null,null,"مدير المشروع",null,null,null,null,null,null,null,"تم اعدادة بواسطة"]
[]
["كارت حضور العاملين",null,null,null,null,null,null,null,null,null,null,null,null,null,null,null,"كارت حضور العاملين",null,null,null,null,null,null,null,null,null,null,null,null,null,null,null,"كارت حضور العاملين",null,null,null,null,null,null,null,null,null,null,null,null,null,null,null,"كارت حضور العاملين",null,null,null,null,null,null,null,null,null,null,null,null,null,null,null,"كارت حضور العاملين"]
[]
["اسم الموظف",{"$f":"DATA!B31","v":"يوسف منصور"},null,null,null,null,null,null,null,"كود الموظف",null,null,15,null,null,null,"اسم الموظف",{"$f":"DATA!B71","v":"حسين محمد حسين"},null,null,null,null,null,null,null,"كود الموظف",null,null,35,null,null,null,"اسم الموظف",{"$f":"DATA!B11","v":"عبد الطيف المرسي"},null,null,null,null,null,null,null,"كود الموظف",null,null,55,null,null,null,"اسم الموظف",{"$f":"DATA!B151","v":"ابراهيم القطب"},null,null,null,null,null,null,null,"كود الموظف",null,null,75,null,null,null,"اسم الموظف",{"$f":"DATA!B191","v":0},null,null,null,null,null,null,null,"كود الموظف",null,null,95]
["اسم المشروع",null,null,null,null,null,null,null,null,"كود المشروع",null,null,null,null,null,null,"اسم المشروع",null,null,null,null,null,null,null,null,"كود المشروع",null,null,null,null,null,null,"اسم المشروع",null,null,null,null,null,null,null,null,"كود المشروع",null,null,null,null,null,null,"اسم المشروع",null,null,null,null,null,null,null,null,"كود المشروع",null,null,null,null,null,null,"اسم المشروع",null,null,null,null,null,null,null,null,"كود المشروع"]
["الوظيفة",null,null,null,null,null,null,null,null,"الشهر",null,null,{"$f":"'شهر 10'!$AI$1","v":"2021-10-01"},null,null,null,"الوظيفة",null,null,null,null,null,null,null,null,"الشهر",null,null,{"$f":"'شهر 10'!$AI$1","v":"2021-10-01"},null,null,null,"الوظيفة",null,null,null,null,null,null,null,null,"الشهر",null,null,{"$f":"'شهر 10'!$AI$1","v":"2021-10-01"},null,null,null,"الوظيفة",null,null,null,null,null,null,null,null,"الشهر",null,null,{"$f":"'شهر 10'!$AI$1","v":"2021-10-01"},null,null,null,"الوظيفة",null,null,null,null,null,null,null,null,"الشهر",null,null,{"$f":"'شهر 10'!$AI$1","v":"2021-10-01"}]
[]
["التاريخ",1,2,3,4,5,6,7,8,9,10,11,12,13,14,15,"التاريخ",1,2,3,4,5,6,7,8,9,10,11,12,13,14,15,"التاريخ",1,2,3,4,5,6,7,8,9,10,11,12,13,14,15,"التاريخ",1,2,3,4,5,6,7,8,9,10,11,12,13,14,15,"التاريخ",1,2,3,4,5,6,7,8,9,10,11,12,13,14,15]
["الفتره الصباحية",null,null,null,null,null,null,null,null,null,null,null,null,null,null,null,"الفتره الصباحية",null,null,null,null,null,null,null,null,null,null,null,null,null,null,null,"الفتره الصباحية",null,null,null,null,null,null,null,null,null,null,null,null,null,null,null,"الفتره الصباحية",null,null,null,null,null,null,null,null,null,null,null,null,null,null,null,"الفتره الصباحية"]
["الفتره المسائية",null,null,null,null,null,null,null,null,null,null,null,null,null,null,null,"الفتره المسائية",null,null,null,null,null,null,null,null,null,null,null,null,null,null,null,"الفتره المسائية",null,null,null,null,null,null,null,null,null,null,null,null,null,null,null,"الفتره المسائية",null,null,null,null,null,null,null,null,null,null,null,null,null,null,null,"الفتره المسائية"]
["الاضافي",null,null,null,null,null,null,null,null,null,null,null,null,null,null,null,"الاضافي",null,null,null,null,null,null,null,null,null,null,null,null,null,null,null,"الاضافي",null,null,null,null,null,null,null,null,null,null,null,null,null,null,null,"الاضافي",null,null,null,null,null,null,null,null,null,null,null,null,null,null,null,"الاضافي"]
[]
["التاريخ",16,17,18,19,20,21,22,23,24,25,26,27,28,29,30,"التاريخ",16,17,18,19,20,21,22,23,24,25,26,27,28,29,30,"التاريخ",16,17,18,19,20,21,22,23,24,25,26,27,28,29,30,"التاريخ",16,17,18,19,20,21,22,23,24,25,26,27,28,29,30,"التاريخ",16,17,18,19,20,21,22,23,24,25,26,27,28,29,30]
["الفتره الصباحية",null,null,null,null,null,null,null,null,null,null,null,null,null,null,null,"الفتره الصباحية",null,null,null,null,null,null,null,null,null,null,null,null,null,null,null,"الفتره الصباحية",null,null,null,null,null,null,null,null,null,null,null,null,null,null,null,"الفتره الصباحية",null,null,null,null,null,null,null,null,null,null,null,null,null,null,null,"الفتره الصباحية"]
["الفتره المسائية",null,null,null,null,null,null,null,null,null,null,null,null,null,null,null,"الفتره المسائية",null,null,null,null,null,null,null,null,null,null,null,null,null,null,null,"الفتره المسائية",null,null,null,null,null,null,null,null,null,null,null,null,null,null,null,"الفتره المسائية",null,null,null,null,null,null,null,null,null,null,null,null,null,null,null,"الفتره المسائية"]
["الاضافي",null,null,null,null,null,null,null,null,null,null,null,null,null,null,null,"الاضافي",null,null,null,null,null,null,null,null,null,null,null,null,null,null,null,"الاضافي",null,null,null,null,null,null,null,null,null,null,null,null,null,null,null,"الاضافي",null,null,null,null,null,null,null,null,null,null,null,null,null,null,null,"الاضافي"]
[]
["عدد ايام العمل",null,null,null,null,null,null,null,null,"سلف",null,null,null,null,null,null,"عدد ايام العمل",null,null,null,null,null,null,null,null,"سلف",null,null,null,null,null,null,"عدد ايام العمل",null,null,null,null,null,null,null,null,"سلف",null,null,null,null,null,null,"عدد ايام العمل",null,null,null,null,null,null,null,null,"سلف",null,null,null,null,null,null,"عدد ايام العمل",null,null,null,null,null,null,null,null,"سلف"]
["عدد ساعات العمل",null,null,null,null,null,null,null,null,"حساب الموظف",null,null,null,null,null,null,"عدد ساعات العمل",null,null,null,null,null,null,null,null,"حساب الموظف",null,null,null,null,null,null,"عدد ساعات العمل",null,null,null,null,null,null,null,null,"حساب الموظف",null,null,null,null,null,null,"عدد ساعات العمل",null,null,null,null,null,null,null,null,"حساب الموظف",null,null,null,null,null,null,"عدد ساعات العمل",null,null,null,null,null,null,null,null,"حساب الموظف"]
[]
[]
[]
[]
[]
["مدير المشروع",null,null,null,null,null,null,null,"تم اعدادة بواسطة",null,null,null,null,null,null,null,"مدير المشروع",null,null,null,null,null,null,null,"تم اعدادة بواسطة",null,null,null,null,null,null,null,"مدير المشروع",null,null,null,null,null,null,null,"تم اعدادة بواسطة",null,null,null,null,null,null,null,"مدير المشروع",null,null,null,null,null,null,null,"تم اعدادة بواسطة",null,null,null,null,null,null,null,"مدير المشروع",null,null,null,null,null,null,null,"تم اعدادة بواسطة"]
["كارت حضور العاملين",null,null,null,null,null,null,null,null,null,null,null,null,null,null,null,"كارت حضور العاملين",null,null,null,null,null,null,null,null,null,null,null,null,null,null,null,"كارت حضور العاملين",null,null,null,null,null,null,null,null,null,null,null,null,null,null,null,"كارت حضور العاملين",null,null,null,null,null,null,null,null,null,null,null,null,null,null,null,"كارت حضور العاملين"]
[]
["اسم الموظف",{"$f":"DATA!B33","v":"ابراهيم نصحي"},null,null,null,null,null,null,null,"كود الموظف",null,null,16,null,null,null,"اسم الموظف",{"$f":"DATA!B73","v":"محمد ابراهيم محمد"},null,null,null,null,null,null,null,"كود الموظف",null,null,36,null,null,null,"اسم الموظف",{"$f":"DATA!B113","v":"عيد المتولى"},null,null,null,null,null,null,null,"كود الموظف",null,null,56,null,null,null,"اسم الموظف",{"$f":"DATA!B153","v":"محمد احمد الطيب"},null,null,null,null,null,null,null,"كود الموظف",null,null,76,null,null,null,"اسم الموظف",{"$f":"DATA!B193","v":0},null,null,null,null,null,null,null,"كود الموظف",null,null,96]
["اسم المشروع",null,null,null,null,null,null,null,null,"كود المشروع",null,null,null,null,null,null,"اسم المشروع",null,null,null,null,null,null,null,null,"كود المشروع",null,null,null,null,null,null,"اسم المشروع",null,null,null,null,null,null,null,null,"كود المشروع",null,null,null,null,null,null,"اسم المشروع",null,null,null,null,null,null,null,null,"كود المشروع",null,null,null,null,null,null,"اسم المشروع",null,null,null,null,null,null,null,null,"كود المشروع"]
["الوظيفة",null,null,null,null,null,null,null,null,"الشهر",null,null,{"$f":"'شهر 10'!$AI$1","v":"2021-10-01"},null,null,null,"الوظيفة",null,null,null,null,null,null,null,null,"الشهر",null,null,{"$f":"'شهر 10'!$AI$1","v":"2021-10-01"},null,null,null,"الوظيفة",null,null,null,null,null,null,null,null,"الشهر",null,null,{"$f":"'شهر 10'!$AI$1","v":"2021-10-01"},null,null,null,"الوظيفة",null,null,null,null,null,null,null,null,"الشهر",null,null,{"$f":"'شهر 10'!$AI$1","v":"2021-10-01"},null,null,null,"الوظيفة",null,null,null,null,null,null,null,null,"الشهر",null,null,{"$f":"'شهر 10'!$AI$1","v":"2021-10-01"}]
[]
["التاريخ",1,2,3,4,5,6,7,8,9,10,11,12,13,14,15,"التاريخ",1,2,3,4,5,6,7,8,9,10,11,12,13,14,15,"التاريخ",1,2,3,4,5,6,7,8,9,10,11,12,13,14,15,"التاريخ",1,2,3,4,5,6,7,8,9,10,11,12,13,14,15,"التاريخ",1,2,3,4,5,6,7,8,9,10,11,12,13,14,15]
["الفتره الصباحية",null,null,null,null,null,null,null,null,null,null,null,null,null,null,null,"الفتره الصباحية",null,null,null,null,null,null,null,null,null,null,null,null,null,null,null,"الفتره الصباحية",null,null,null,null,null,null,null,null,null,null,null,null,null,null,null,"الفتره الصباحية",null,null,null,null,null,null,null,null,null,null,null,null,null,null,null,"الفتره الصباحية"]
["الفتره المسائية",null,null,null,null,null,null,null,null,null,null,null,null,null,null,null,"الفتره المسائية",null,null,null,null,null,null,null,null,null,null,null,null,null,null,null,"الفتره المسائية",null,null,null,null,null,null,null,null,null,null,null,null,null,null,null,"الفتره المسائية",null,null,null,null,null,null,null,null,null,null,null,null,null,null,null,"الفتره المسائية"]
["الاضافي",null,null,null,null,null,null,null,null,null,null,null,null,null,null,null,"الاضافي",null,null,null,null,null,null,null,null,null,null,null,null,null,null,null,"الاضافي",null,null,null,null,null,null,null,null,null,null,null,null,null,null,null,"الاضافي",null,null,null,null,null,null,null,null,null,null,null,null,null,null,null,"الاضافي"]
[]
["التاريخ",16,17,18,19,20,21,22,23,24,25,26,27,28,29,30,"التاريخ",16,17,18,19,20,21,22,23,24,25,26,27,28,29,30,"التاريخ",16,17,18,19,20,21,22,23,24,25,26,27,28,29,30,"التاريخ",16,17,18,19,20,21,22,23,24,25,26,27,28,29,30,"التاريخ",16,17,18,19,20,21,22,23,24,25,26,27,28,29,30]
["الفتره الصباحية",null,null,null,null,null,null,null,null,null,null,null,null,null,null,null,"الفتره الصباحية",null,null,null,null,null,null,null,null,null,null,null,null,null,null,null,"الفتره الصباحية",null,null,null,null,null,null,null,null,null,null,null,null,null,null,null,"الفتره الصباحية",null,null,null,null,null,null,null,null,null,null,null,null,null,null,null,"الفتره الصباحية"]
["الفتره المسائية",null,null,null,null,null,null,null,null,null,null,null,null,null,null,null,"الفتره المسائية",null,null,null,null,null,null,null,null,null,null,null,null,null,null,null,"الفتره المسائية",null,null,null,null,null,null,null,null,null,null,null,null,null,null,null,"الفتره المسائية",null,null,null,null,null,null,null,null,null,null,null,null,null,null,null,"الفتره المسائية"]
["الاضافي",null,null,null,null,null,null,null,null,null,null,null,null,null,null,null,"الاضافي",null,null,null,null,null,null,null,null,null,null,null,null,null,null,null,"الاضافي",null,null,null,null,null,null,null,null,null,null,null,null,null,null,null,"الاضافي",null,null,null,null,null,null,null,null,null,null,null,null,null,null,null,"الاضافي"]
[]
["عدد ايام العمل",null,null,null,null,null,null,null,null,"سلف",null,null,null,null,null,null,"عدد ايام العمل",null,null,null,null,null,null,null,null,"سلف",null,null,null,null,null,null,"عدد ايام العمل",null,null,null,null,null,null,null,null,"سلف",null,null,null,null,null,null,"عدد ايام العمل",null,null,null,null,null,null,null,null,"سلف",null,null,null,null,null,null,"عدد ايام العمل",null,null,null,null,null,null,null,null,"سلف"]
["عدد ساعات العمل",null,null,null,null,null,null,null,null,"حساب الموظف",null,null,null,null,null,null,"عدد ساعات العمل",null,null,null,null,null,null,null,null,"حساب الموظف",null,null,null,null,null,null,"عدد ساعات العمل",null,null,null,null,null,null,null,null,"حساب الموظف",null,null,null,null,null,null,"عدد ساعات العمل",null,null,null,null,null,null,null,null,"حساب الموظف",null,null,null,null,null,null,"عدد ساعات العمل",null,null,null,null,null,null,null,null,"حساب الموظف"]
[]
[]
[]
[]
[]
["مدير المشروع",null,null,null,null,null,null,null,"تم اعدادة بواسطة",null,null,null,null,null,null,null,"مدير المشروع",null,null,null,null,null,null,null,"تم اعدادة بواسطة",null,null,null,null,null,null,null,"مدير المشروع",null,null,null,null,null,null,null,"تم اعدادة بواسطة",null,null,null,null,null,null,null,"مدير المشروع",null,null,null,null,null,null,null,"تم اعدادة بواسطة",null,null,null,null,null,null,null,"مدير المشروع",null,null,null,null,null,null,null,"تم اعدادة بواسطة"]
[]
["كارت حضور العاملين",null,null,null,null,null,null,null,null,null,null,null,null,null,null,null,"كارت حضور العاملين",null,null,null,null,null,null,null,null,null,null,null,null,null,null,null,"كارت حضور العاملين",null,null,null,null,null,null,null,null,null,null,null,null,null,null,null,"كارت حضور العاملين",null,null,null,null,null,null,null,null,null,null,null,null,null,null,null,"كارت حضور العاملين"]
[]
["اسم الموظف",{"$f":"DATA!B35","v":"احمد علام"},null,null,null,null,null,null,null,"كود الموظف",null,null,17,null,null,null,"اسم الموظف",{"$f":"DATA!B75","v":"مصطفى حسن (القاهرة)"},null,null,null,null,null,null,null,"كود الموظف",null,null,37,null,null,null,"اسم الموظف",{"$f":"DATA!B115","v":"سمير الشحات"},null,null,null,null,null,null,null,"كود الموظف",null,null,57,null,null,null,"اسم الموظف",{"$f":"DATA!B155","v":"حماده عونى"},null,null,null,null,null,null,null,"كود الموظف",null,null,77,null,null,null,"اسم الموظف",{"$f":"DATA!B195","v":0},null,null,null,null,null,null,null,"كود الموظف",null,null,97]
["اسم المشروع",null,null,null,null,null,null,null,null,"كود المشروع",null,null,null,null,null,null,"اسم المشروع",null,null,null,null,null,null,null,null,"كود المشروع",null,null,null,null,null,null,"اسم المشروع",null,null,null,null,null,null,null,null,"كود المشروع",null,null,null,null,null,null,"اسم المشروع",null,null,null,null,null,null,null,null,"كود المشروع",null,null,null,null,null,null,"اسم المشروع",null,null,null,null,null,null,null,null,"كود المشروع"]
["الوظيفة",null,null,null,null,null,null,null,null,"الشهر",null,null,{"$f":"'شهر 10'!$AI$1","v":"2021-10-01"},null,null,null,"الوظيفة",null,null,null,null,null,null,null,null,"الشهر",null,null,{"$f":"'شهر 10'!$AI$1","v":"2021-10-01"},null,null,null,"الوظيفة",null,null,null,null,null,null,null,null,"الشهر",null,null,{"$f":"'شهر 10'!$AI$1","v":"2021-10-01"},null,null,null,"الوظيفة",null,null,null,null,null,null,null,null,"الشهر",null,null,{"$f":"'شهر 10'!$AI$1","v":"2021-10-01"},null,null,null,"الوظيفة",null,null,null,null,null,null,null,null,"الشهر",null,null,{"$f":"'شهر 10'!$AI$1","v":"2021-10-01"}]
[]
["التاريخ",1,2,3,4,5,6,7,8,9,10,11,12,13,14,15,"التاريخ",1,2,3,4,5,6,7,8,9,10,11,12,13,14,15,"التاريخ",1,2,3,4,5,6,7,8,9,10,11,12,13,14,15,"التاريخ",1,2,3,4,5,6,7,8,9,10,11,12,13,14,15,"التاريخ",1,2,3,4,5,6,7,8,9,10,11,12,13,14,15]
["الفتره الصباحية",null,null,null,null,null,null,null,null,null,null,null,null,null,null,null,"الفتره الصباحية",null,null,null,null,null,null,null,null,null,null,null,null,null,null,null,"الفتره الصباحية",null,null,null,null,null,null,null,null,null,null,null,null,null,null,null,"الفتره الصباحية",null,null,null,null,null,null,null,null,null,null,null,null,null,null,null,"الفتره الصباحية"]
["الفتره المسائية",null,null,null,null,null,null,null,null,null,null,null,null,null,null,null,"الفتره المسائية",null,null,null,null,null,null,null,null,null,null,null,null,null,null,null,"الفتره المسائية",null,null,null,null,null,null,null,null,null,null,null,null,null,null,null,"الفتره المسائية",null,null,null,null,null,null,null,null,null,null,null,null,null,null,null,"الفتره المسائية"]
["الاضافي",null,null,null,null,null,null,null,null,null,null,null,null,null,null,null,"الاضافي",null,null,null,null,null,null,null,null,null,null,null,null,null,null,null,"الاضافي",null,null,null,null,null,null,null,null,null,null,null,null,null,null,null,"الاضافي",null,null,null,null,null,null,null,null,null,null,null,null,null,null,null,"الاضافي"]
[]
["التاريخ",16,17,18,19,20,21,22,23,24,25,26,27,28,29,30,"التاريخ",16,17,18,19,20,21,22,23,24,25,26,27,28,29,30,"التاريخ",16,17,18,19,20,21,22,23,24,25,26,27,28,29,30,"التاريخ",16,17,18,19,20,21,22,23,24,25,26,27,28,29,30,"التاريخ",16,17,18,19,20,21,22,23,24,25,26,27,28,29,30]
["الفتره الصباحية",null,null,null,null,null,null,null,null,null,null,null,null,null,null,null,"الفتره الصباحية",null,null,null,null,null,null,null,null,null,null,null,null,null,null,null,"الفتره الصباحية",null,null,null,null,null,null,null,null,null,null,null,null,null,null,null,"الفتره الصباحية",null,null,null,null,null,null,null,null,null,null,null,null,null,null,null,"الفتره الصباحية"]
["الفتره المسائية",null,null,null,null,null,null,null,null,null,null,null,null,null,null,null,"الفتره المسائية",null,null,null,null,null,null,null,null,null,null,null,null,null,null,null,"الفتره المسائية",null,null,null,null,null,null,null,null,null,null,null,null,null,null,null,"الفتره المسائية",null,null,null,null,null,null,null,null,null,null,null,null,null,null,null,"الفتره المسائية"]
["الاضافي",null,null,null,null,null,null,null,null,null,null,null,null,null,null,null,"الاضافي",null,null,null,null,null,null,null,null,null,null,null,null,null,null,null,"الاضافي",null,null,null,null,null,null,null,null,null,null,null,null,null,null,null,"الاضافي",null,null,null,null,null,null,null,null,null,null,null,null,null,null,null,"الاضافي"]
[]
["عدد ايام العمل",null,null,null,null,null,null,null,null,"سلف",null,null,null,null,null,null,"عدد ايام العمل",null,null,null,null,null,null,null,null,"سلف",null,null,null,null,null,null,"عدد ايام العمل",null,null,null,null,null,null,null,null,"سلف",null,null,null,null,null,null,"عدد ايام العمل",null,null,null,null,null,null,null,null,"سلف",null,null,null,null,null,null,"عدد ايام العمل",null,null,null,null,null,null,null,null,"سلف"]
["عدد ساعات العمل",null,null,null,null,null,null,null,null,"حساب الموظف",null,null,null,null,null,null,"عدد ساعات العمل",null,null,null,null,null,null,null,null,"حساب الموظف",null,null,null,null,null,null,"عدد ساعات العمل",null,null,null,null,null,null,null,null,"حساب الموظف",null,null,null,null,null,null,"عدد ساعات العمل",null,null,null,null,null,null,null,null,"حساب الموظف",null,null,null,null,null,null,"عدد ساعات العمل",null,null,null,null,null,null,null,null,"حساب الموظف"]
[]
[]
[]
[]
[]
["مدير المشروع",null,null,null,null,null,null,null,"تم اعدادة بواسطة",null,null,null,null,null,null,null,"مدير المشروع",null,null,null,null,null,null,null,"تم اعدادة بواسطة",null,null,null,null,null,null,null,"مدير المشروع",null,null,null,null,null,null,null,"تم اعدادة بواسطة",null,null,null,null,null,null,null,"مدير المشروع",null,null,null,null,null,null,null,"تم اعدادة بواسطة",null,null,null,null,null,null,null,"مدير المشروع",null,null,null,null,null,null,null,"تم اعدادة بواسطة"]
["كارت حضور العاملين",null,null,null,null,null,null,null,null,null,null,null,null,null,null,null,"كارت حضور العاملين",null,null,null,null,null,null,null,null,null,null,null,null,null,null,null,"كارت حضور العاملين",null,null,null,null,null,null,null,null,null,null,null,null,null,null,null,"كارت حضور العاملين",null,null,null,null,null,null,null,null,null,null,null,null,null,null,null,"كارت حضور العاملين"]
[]
["اسم الموظف",{"$f":"DATA!B37","v":"عبد العزيز عبد الشافى"},null,null,null,null,null,null,null,"كود الموظف",null,null,18,null,null,null,"اسم الموظف",{"$f":"DATA!B77","v":"سمير صلاح"},null,null,null,null,null,null,null,"كود الموظف",null,null,38,null,null,null,"اسم الموظف",{"$f":"DATA!B117","v":"حسام محمدان"},null,null,null,null,null,null,null,"كود الموظف",null,null,58,null,null,null,"اسم الموظف",{"$f":"DATA!B157","v":"محمد عادل مرعي"},null,null,null,null,null,null,null,"كود الموظف",null,null,78,null,null,null,"اسم الموظف",{"$f":"DATA!B197","v":0},null,null,null,null,null,null,null,"كود الموظف",null,null,98]
["اسم المشروع",null,null,null,null,null,null,null,null,"كود المشروع",null,null,null,null,null,null,"اسم المشروع",null,null,null,null,null,null,null,null,"كود المشروع",null,null,null,null,null,null,"اسم المشروع",null,null,null,null,null,null,null,null,"كود المشروع",null,null,null,null,null,null,"اسم المشروع",null,null,null,null,null,null,null,null,"كود المشروع",null,null,null,null,null,null,"اسم المشروع",null,null,null,null,null,null,null,null,"كود المشروع"]
["الوظيفة",null,null,null,null,null,null,null,null,"الشهر",null,null,{"$f":"'شهر 10'!$AI$1","v":"2021-10-01"},null,null,null,"الوظيفة",null,null,null,null,null,null,null,null,"الشهر",null,null,{"$f":"'شهر 10'!$AI$1","v":"2021-10-01"},null,null,null,"الوظيفة",null,null,null,null,null,null,null,null,"الشهر",null,null,{"$f":"'شهر 10'!$AI$1","v":"2021-10-01"},null,null,null,"الوظيفة",null,null,null,null,null,null,null,null,"الشهر",null,null,{"$f":"'شهر 10'!$AI$1","v":"2021-10-01"},null,null,null,"الوظيفة",null,null,null,null,null,null,null,null,"الشهر",null,null,{"$f":"'شهر 10'!$AI$1","v":"2021-10-01"}]
[]
["التاريخ",1,2,3,4,5,6,7,8,9,10,11,12,13,14,15,"التاريخ",1,2,3,4,5,6,7,8,9,10,11,12,13,14,15,"التاريخ",1,2,3,4,5,6,7,8,9,10,11,12,13,14,15,"التاريخ",1,2,3,4,5,6,7,8,9,10,11,12,13,14,15,"التاريخ",1,2,3,4,5,6,7,8,9,10,11,12,13,14,15]
["الفتره الصباحية",null,null,null,null,null,null,null,null,null,null,null,null,null,null,null,"الفتره الصباحية",null,null,null,null,null,null,null,null,null,null,null,null,null,null,null,"الفتره الصباحية",null,null,null,null,null,null,null,null,null,null,null,null,null,null,null,"الفتره الصباحية",null,null,null,null,null,null,null,null,null,null,null,null,null,null,null,"الفتره الصباحية"]
["الفتره المسائية",null,null,null,null,null,null,null,null,null,null,null,null,null,null,null,"الفتره المسائية",null,null,null,null,null,null,null,null,null,null,null,null,null,null,null,"الفتره المسائية",null,null,null,null,null,null,null,null,null,null,null,null,null,null,null,"الفتره المسائية",null,null,null,null,null,null,null,null,null,null,null,null,null,null,null,"الفتره المسائية"]
["الاضافي",null,null,null,null,null,null,null,null,null,null,null,null,null,null,null,"الاضافي",null,null,null,null,null,null,null,null,null,null,null,null,null,null,null,"الاضافي",null,null,null,null,null,null,null,null,null,null,null,null,null,null,null,"الاضافي",null,null,null,null,null,null,null,null,null,null,null,null,null,null,null,"الاضافي"]
[]
["التاريخ",16,17,18,19,20,21,22,23,24,25,26,27,28,29,30,"التاريخ",16,17,18,19,20,21,22,23,24,25,26,27,28,29,30,"التاريخ",16,17,18,19,20,21,22,23,24,25,26,27,28,29,30,"التاريخ",16,17,18,19,20,21,22,23,24,25,26,27,28,29,30,"التاريخ",16,17,18,19,20,21,22,23,24,25,26,27,28,29,30]
["الفتره الصباحية",null,null,null,null,null,null,null,null,null,null,null,null,null,null,null,"الفتره الصباحية",null,null,null,null,null,null,null,null,null,null,null,null,null,null,null,"الفتره الصباحية",null,null,null,null,null,null,null,null,null,null,null,null,null,null,null,"الفتره الصباحية",null,null,null,null,null,null,null,null,null,null,null,null,null,null,null,"الفتره الصباحية"]
["الفتره المسائية",null,null,null,null,null,null,null,null,null,null,null,null,null,null,null,"الفتره المسائية",null,null,null,null,null,null,null,null,null,null,null,null,null,null,null,"الفتره المسائية",null,null,null,null,null,null,null,null,null,null,null,null,null,null,null,"الفتره المسائية",null,null,null,null,null,null,null,null,null,null,null,null,null,null,null,"الفتره المسائية"]
["الاضافي",null,null,null,null,null,null,null,null,null,null,null,null,null,null,null,"الاضافي",null,null,null,null,null,null,null,null,null,null,null,null,null,null,null,"الاضافي",null,null,null,null,null,null,null,null,null,null,null,null,null,null,null,"الاضافي",null,null,null,null,null,null,null,null,null,null,null,null,null,null,null,"الاضافي"]
[]
["عدد ايام العمل",null,null,null,null,null,null,null,null,"سلف",null,null,null,null,null,null,"عدد ايام العمل",null,null,null,null,null,null,null,null,"سلف",null,null,null,null,null,null,"عدد ايام العمل",null,null,null,null,null,null,null,null,"سلف",null,null,null,null,null,null,"عدد ايام العمل",null,null,null,null,null,null,null,null,"سلف",null,null,null,null,null,null,"عدد ايام العمل",null,null,null,null,null,null,null,null,"سلف"]
["عدد ساعات العمل",null,null,null,null,null,null,null,null,"حساب الموظف",null,null,null,null,null,null,"عدد ساعات العمل",null,null,null,null,null,null,null,null,"حساب الموظف",null,null,null,null,null,null,"عدد ساعات العمل",null,null,null,null,null,null,null,null,"حساب الموظف",null,null,null,null,null,null,"عدد ساعات العمل",null,null,null,null,null,null,null,null,"حساب الموظف",null,null,null,null,null,null,"عدد ساعات العمل",null,null,null,null,null,null,null,null,"حساب الموظف"]
[]
[]
[]
[]
[]
["مدير المشروع",null,null,null,null,null,null,null,"تم اعدادة بواسطة",null,null,null,null,null,null,null,"مدير المشروع",null,null,null,null,null,null,null,"تم اعدادة بواسطة",null,null,null,null,null,null,null,"مدير المشروع",null,null,null,null,null,null,null,"تم اعدادة بواسطة",null,null,null,null,null,null,null,"مدير المشروع",null,null,null,null,null,null,null,"تم اعدادة بواسطة",null,null,null,null,null,null,null,"مدير المشروع",null,null,null,null,null,null,null,"تم اعدادة بواسطة"]
[]
["كارت حضور العاملين",null,null,null,null,null,null,null,null,null,null,null,null,null,null,null,"كارت حضور العاملين",null,null,null,null,null,null,null,null,null,null,null,null,null,null,null,"كارت حضور العاملين",null,null,null,null,null,null,null,null,null,null,null,null,null,null,null,"كارت حضور العاملين",null,null,null,null,null,null,null,null,null,null,null,null,null,null,null,"كارت حضور العاملين"]
[]
["اسم الموظف",{"$f":"DATA!B39","v":"باسم ابو بكر"},null,null,null,null,null,null,null,"كود الموظف",null,null,19,null,null,null,"اسم الموظف",{"$f":"DATA!B79","v":"رمضان ابراهيم منصور"},null,null,null,null,null,null,null,"كود الموظف",null,null,39,null,null,null,"اسم الموظف",{"$f":"DATA!B119","v":"رمضان الخميسى"},null,null,null,null,null,null,null,"كود الموظف",null,null,59,null,null,null,"اسم الموظف",{"$f":"DATA!B159","v":"محمد اسعد"},null,null,null,null,null,null,null,"كود الموظف",null,null,79,null,null,null,"اسم الموظف",{"$f":"DATA!B199","v":0},null,null,null,null,null,null,null,"كود الموظف",null,null,99]
["اسم المشروع",null,null,null,null,null,null,null,null,"كود المشروع",null,null,null,null,null,null,"اسم المشروع",null,null,null,null,null,null,null,null,"كود المشروع",null,null,null,null,null,null,"اسم المشروع",null,null,null,null,null,null,null,null,"كود المشروع",null,null,null,null,null,null,"اسم المشروع",null,null,null,null,null,null,null,null,"كود المشروع",null,null,null,null,null,null,"اسم المشروع",null,null,null,null,null,null,null,null,"كود المشروع"]
["الوظيفة",null,null,null,null,null,null,null,null,"الشهر",null,null,{"$f":"'شهر 10'!$AI$1","v":"2021-10-01"},null,null,null,"الوظيفة",null,null,null,null,null,null,null,null,"الشهر",null,null,{"$f":"'شهر 10'!$AI$1","v":"2021-10-01"},null,null,null,"الوظيفة",null,null,null,null,null,null,null,null,"الشهر",null,null,{"$f":"'شهر 10'!$AI$1","v":"2021-10-01"},null,null,null,"الوظيفة",null,null,null,null,null,null,null,null,"الشهر",null,null,{"$f":"'شهر 10'!$AI$1","v":"2021-10-01"},null,null,null,"الوظيفة",null,null,null,null,null,null,null,null,"الشهر",null,null,{"$f":"'شهر 10'!$AI$1","v":"2021-10-01"}]
[]
["التاريخ",1,2,3,4,5,6,7,8,9,10,11,12,13,14,15,"التاريخ",1,2,3,4,5,6,7,8,9,10,11,12,13,14,15,"التاريخ",1,2,3,4,5,6,7,8,9,10,11,12,13,14,15,"التاريخ",1,2,3,4,5,6,7,8,9,10,11,12,13,14,15,"التاريخ",1,2,3,4,5,6,7,8,9,10,11,12,13,14,15]
["الفتره الصباحية",null,null,null,null,null,null,null,null,null,null,null,null,null,null,null,"الفتره الصباحية",null,null,null,null,null,null,null,null,null,null,null,null,null,null,null,"الفتره الصباحية",null,null,null,null,null,null,null,null,null,null,null,null,null,null,null,"الفتره الصباحية",null,null,null,null,null,null,null,null,null,null,null,null,null,null,null,"الفتره الصباحية"]
["الفتره المسائية",null,null,null,null,null,null,null,null,null,null,null,null,null,null,null,"الفتره المسائية",null,null,null,null,null,null,null,null,null,null,null,null,null,null,null,"الفتره المسائية",null,null,null,null,null,null,null,null,null,null,null,null,null,null,null,"الفتره المسائية",null,null,null,null,null,null,null,null,null,null,null,null,null,null,null,"الفتره المسائية"]
["الاضافي",null,null,null,null,null,null,null,null,null,null,null,null,null,null,null,"الاضافي",null,null,null,null,null,null,null,null,null,null,null,null,null,null,null,"الاضافي",null,null,null,null,null,null,null,null,null,null,null,null,null,null,null,"الاضافي",null,null,null,null,null,null,null,null,null,null,null,null,null,null,null,"الاضافي"]
[]
["التاريخ",16,17,18,19,20,21,22,23,24,25,26,27,28,29,30,"التاريخ",16,17,18,19,20,21,22,23,24,25,26,27,28,29,30,"التاريخ",16,17,18,19,20,21,22,23,24,25,26,27,28,29,30,"التاريخ",16,17,18,19,20,21,22,23,24,25,26,27,28,29,30,"التاريخ",16,17,18,19,20,21,22,23,24,25,26,27,28,29,30]
["الفتره الصباحية",null,null,null,null,null,null,null,null,null,null,null,null,null,null,null,"الفتره الصباحية",null,null,null,null,null,null,null,null,null,null,null,null,null,null,null,"الفتره الصباحية",null,null,null,null,null,null,null,null,null,null,null,null,null,null,null,"الفتره الصباحية",null,null,null,null,null,null,null,null,null,null,null,null,null,null,null,"الفتره الصباحية"]
["الفتره المسائية",null,null,null,null,null,null,null,null,null,null,null,null,null,null,null,"الفتره المسائية",null,null,null,null,null,null,null,null,null,null,null,null,null,null,null,"الفتره المسائية",null,null,null,null,null,null,null,null,null,null,null,null,null,null,null,"الفتره المسائية",null,null,null,null,null,null,null,null,null,null,null,null,null,null,null,"الفتره المسائية"]
["الاضافي",null,null,null,null,null,null,null,null,null,null,null,null,null,null,null,"الاضافي",null,null,null,null,null,null,null,null,null,null,null,null,null,null,null,"الاضافي",null,null,null,null,null,null,null,null,null,null,null,null,null,null,null,"الاضافي",null,null,null,null,null,null,null,null,null,null,null,null,null,null,null,"الاضافي"]
[]
["عدد ايام العمل",null,null,null,null,null,null,null,null,"سلف",null,null,null,null,null,null,"عدد ايام العمل",null,null,null,null,null,null,null,null,"سلف",null,null,null,null,null,null,"عدد ايام العمل",null,null,null,null,null,null,null,null,"سلف",null,null,null,null,null,null,"عدد ايام العمل",null,null,null,null,null,null,null,null,"سلف",null,null,null,null,null,null,"عدد ايام العمل",null,null,null,null,null,null,null,null,"سلف"]
["عدد ساعات العمل",null,null,null,null,null,null,null,null,"حساب الموظف",null,null,null,null,null,null,"عدد ساعات العمل",null,null,null,null,null,null,null,null,"حساب الموظف",null,null,null,null,null,null,"عدد ساعات العمل",null,null,null,null,null,null,null,null,"حساب الموظف",null,null,null,null,null,null,"عدد ساعات العمل",null,null,null,null,null,null,null,null,"حساب الموظف",null,null,null,null,null,null,"عدد ساعات العمل",null,null,null,null,null,null,null,null,"حساب الموظف"]
[]
[]
[]
[]
[]
["مدير المشروع",null,null,null,null,null,null,null,"تم اعدادة بواسطة",null,null,null,null,null,null,null,"مدير المشروع",null,null,null,null,null,null,null,"تم اعدادة بواسطة",null,null,null,null,null,null,null,"مدير المشروع",null,null,null,null,null,null,null,"تم اعدادة بواسطة",null,null,null,null,null,null,null,"مدير المشروع",null,null,null,null,null,null,null,"تم اعدادة بواسطة",null,null,null,null,null,null,null,"مدير المشروع",null,null,null,null,null,null,null,"تم اعدادة بواسطة"]
["كارت حضور العاملين",null,null,null,null,null,null,null,null,null,null,null,null,null,null,null,"كارت حضور العاملين",null,null,null,null,null,null,null,null,null,null,null,null,null,null,null,"كارت حضور العاملين",null,null,null,null,null,null,null,null,null,null,null,null,null,null,null,"كارت حضور العاملين",null,null,null,null,null,null,null,null,null,null,null,null,null,null,null,"كارت حضور العاملين"]
[]
["اسم الموظف",{"$f":"DATA!B41","v":"احمد محمد الدمرداش"},null,null,null,null,null,null,null,"كود الموظف",null,null,20,null,null,null,"اسم الموظف",{"$f":"DATA!B81","v":"يوسف الدكروري"},null,null,null,null,null,null,null,"كود الموظف",null,null,40,null,null,null,"اسم الموظف",{"$f":"DATA!B121","v":"السيد ذاكى"},null,null,null,null,null,null,null,"كود الموظف",null,null,60,null,null,null,"اسم الموظف",{"$f":"DATA!B161","v":"المتولى محمد شحاتة"},null,null,null,null,null,null,null,"كود الموظف",null,null,80,null,null,null,"اسم الموظف",{"$f":"DATA!B201","v":0},null,null,null,null,null,null,null,"كود الموظف",null,null,100]
["اسم المشروع",null,null,null,null,null,null,null,null,"كود المشروع",null,null,null,null,null,null,"اسم المشروع",null,null,null,null,null,null,null,null,"كود المشروع",null,null,null,null,null,null,"اسم المشروع",null,null,null,null,null,null,null,null,"كود المشروع",null,null,null,null,null,null,"اسم المشروع",null,null,null,null,null,null,null,null,"كود المشروع",null,null,null,null,null,null,"اسم المشروع",null,null,null,null,null,null,null,null,"كود المشروع"]
["الوظيفة",null,null,null,null,null,null,null,null,"الشهر",null,null,{"$f":"'شهر 10'!$AI$1","v":"2021-10-01"},null,null,null,"الوظيفة",null,null,null,null,null,null,null,null,"الشهر",null,null,{"$f":"'شهر 10'!$AI$1","v":"2021-10-01"},null,null,null,"الوظيفة",null,null,null,null,null,null,null,null,"الشهر",null,null,{"$f":"'شهر 10'!$AI$1","v":"2021-10-01"},null,null,null,"الوظيفة",null,null,null,null,null,null,null,null,"الشهر",null,null,{"$f":"'شهر 10'!$AI$1","v":"2021-10-01"},null,null,null,"الوظيفة",null,null,null,null,null,null,null,null,"الشهر",null,null,{"$f":"'شهر 10'!$AI$1","v":"2021-10-01"}]
[]
["التاريخ",1,2,3,4,5,6,7,8,9,10,11,12,13,14,15,"التاريخ",1,2,3,4,5,6,7,8,9,10,11,12,13,14,15,"التاريخ",1,2,3,4,5,6,7,8,9,10,11,12,13,14,15,"التاريخ",1,2,3,4,5,6,7,8,9,10,11,12,13,14,15,"التاريخ",1,2,3,4,5,6,7,8,9,10,11,12,13,14,15]
["الفتره الصباحية",null,null,null,null,null,null,null,null,null,null,null,null,null,null,null,"الفتره الصباحية",null,null,null,null,null,null,null,null,null,null,null,null,null,null,null,"الفتره الصباحية",null,null,null,null,null,null,null,null,null,null,null,null,null,null,null,"الفتره الصباحية",null,null,null,null,null,null,null,null,null,null,null,null,null,null,null,"الفتره الصباحية"]
["الفتره المسائية",null,null,null,null,null,null,null,null,null,null,null,null,null,null,null,"الفتره المسائية",null,null,null,null,null,null,null,null,null,null,null,null,null,null,null,"الفتره المسائية",null,null,null,null,null,null,null,null,null,null,null,null,null,null,null,"الفتره المسائية",null,null,null,null,null,null,null,null,null,null,null,null,null,null,null,"الفتره المسائية"]
["الاضافي",null,null,null,null,null,null,null,null,null,null,null,null,null,null,null,"الاضافي",null,null,null,null,null,null,null,null,null,null,null,null,null,null,null,"الاضافي",null,null,null,null,null,null,null,null,null,null,null,null,null,null,null,"الاضافي",null,null,null,null,null,null,null,null,null,null,null,null,null,null,null,"الاضافي"]
[]
["التاريخ",16,17,18,19,20,21,22,23,24,25,26,27,28,29,30,"التاريخ",16,17,18,19,20,21,22,23,24,25,26,27,28,29,30,"التاريخ",16,17,18,19,20,21,22,23,24,25,26,27,28,29,30,"التاريخ",16,17,18,19,20,21,22,23,24,25,26,27,28,29,30,"التاريخ",16,17,18,19,20,21,22,23,24,25,26,27,28,29,30]
["الفتره الصباحية",null,null,null,null,null,null,null,null,null,null,null,null,null,null,null,"الفتره الصباحية",null,null,null,null,null,null,null,null,null,null,null,null,null,null,null,"الفتره الصباحية",null,null,null,null,null,null,null,null,null,null,null,null,null,null,null,"الفتره الصباحية",null,null,null,null,null,null,null,null,null,null,null,null,null,null,null,"الفتره الصباحية"]
["الفتره المسائية",null,null,null,null,null,null,null,null,null,null,null,null,null,null,null,"الفتره المسائية",null,null,null,null,null,null,null,null,null,null,null,null,null,null,null,"الفتره المسائية",null,null,null,null,null,null,null,null,null,null,null,null,null,null,null,"الفتره المسائية",null,null,null,null,null,null,null,null,null,null,null,null,null,null,null,"الفتره المسائية"]
["الاضافي",null,null,null,null,null,null,null,null,null,null,null,null,null,null,null,"الاضافي",null,null,null,null,null,null,null,null,null,null,null,null,null,null,null,"الاضافي",null,null,null,null,null,null,null,null,null,null,null,null,null,null,null,"الاضافي",null,null,null,null,null,null,null,null,null,null,null,null,null,null,null,"الاضافي"]
[]
["عدد ايام العمل",null,null,null,null,null,null,null,null,"سلف",null,null,null,null,null,null,"عدد ايام العمل",null,null,null,null,null,null,null,null,"سلف",null,null,null,null,null,null,"عدد ايام العمل",null,null,null,null,null,null,null,null,"سلف",null,null,null,null,null,null,"عدد ايام العمل",null,null,null,null,null,null,null,null,"سلف",null,null,null,null,null,null,"عدد ايام العمل",null,null,null,null,null,null,null,null,"سلف"]
["عدد ساعات العمل",null,null,null,null,null,null,null,null,"حساب الموظف",null,null,null,null,null,null,"عدد ساعات العمل",null,null,null,null,null,null,null,null,"حساب الموظف",null,null,null,null,null,null,"عدد ساعات العمل",null,null,null,null,null,null,null,null,"حساب الموظف",null,null,null,null,null,null,"عدد ساعات العمل",null,null,null,null,null,null,null,null,"حساب الموظف",null,null,null,null,null,null,"عدد ساعات العمل",null,null,null,null,null,null,null,null,"حساب الموظف"]
[]
[]
[]
[]
[]
["مدير المشروع",null,null,null,null,null,null,null,"تم اعدادة بواسطة",null,null,null,null,null,null,null,"مدير المشروع",null,null,null,null,null,null,null,"تم اعدادة بواسطة",null,null,null,null,null,null,null,"مدير المشروع",null,null,null,null,null,null,null,"تم اعدادة بواسطة",null,null,null,null,null,null,null,"مدير المشروع",null,null,null,null,null,null,null,"تم اعدادة بواسطة",null,null,null,null,null,null,null,"مدير المشروع",null,null,null,null,null,null,null,"تم اعدادة بواسطة"]